Department Family,Entity,Date,Expense Type,Expense Area,Supplier,Transaction Number,Amount,VAT Registration Number
Department of Health,East Sussex Healthcare NHS Trust,03/05/2011,NHS SUPPLY CHAIN CREDITORS,Cross Site,NHS SUPPLY CHAIN,0000130680,170448.61,
Department of Health,East Sussex Healthcare NHS Trust,03/05/2011,NHS SUPPLY CHAIN CREDITORS,Cross Site,NHS SUPPLY CHAIN,0000130716,165681.12,
Department of Health,East Sussex Healthcare NHS Trust,03/05/2011,YEAR END NRVS JV GENERAL CRS,NHS Creditors,CONNECTING FOR HEALTH,0000130813,992.00,
Department of Health,East Sussex Healthcare NHS Trust,03/05/2011,YEAR END NRVS JV GENERAL CRS,NHS Creditors,NHS BUSINESS SERVICES AUTHORITY,0000130827,186272.01,
Department of Health,East Sussex Healthcare NHS Trust,03/05/2011,SLA WITH HIS (AAW),Management & Corporate Services,SUSSEX HIS,0000130921,261231.00,
Department of Health,East Sussex Healthcare NHS Trust,03/05/2011,YEAR END NRVS JV GENERAL CRS,NHS Creditors,SOUTH EAST COAST AMB NHS FOUND TRUST,0000130944,118453.92,
Department of Health,East Sussex Healthcare NHS Trust,03/05/2011,YEAR END NRVS JV GENERAL CRS,NHS Creditors,NHS BUSINESS SERVICES AUTHORITY,0000131024,4386.52,
Department of Health,East Sussex Healthcare NHS Trust,03/05/2011,RENT,Management & Corporate Services,NHS BUSINESS SERVICES AUTHORITY,0000131104,4417.64,
Department of Health,East Sussex Healthcare NHS Trust,03/05/2011,YEAR END NRVS JV GENERAL CRS,NHS Creditors,NORTH WEST LONDON HOSPITALS NHS TRUST,0000131137,1261.50,
Department of Health,East Sussex Healthcare NHS Trust,03/05/2011,YEAR END NRVS JV GENERAL CRS,NHS Creditors,NORTH WEST LONDON HOSPITALS NHS TRUST,0000131138,1551.50,
Department of Health,East Sussex Healthcare NHS Trust,03/05/2011,YEAR END NRVS JV GENERAL CRS,NHS Creditors,PORTSMOUTH HOSPITALS NHS TRUST,0000131158,1032.00,
Department of Health,East Sussex Healthcare NHS Trust,03/05/2011,YEAR END NRVS JV GENERAL CRS,NHS Creditors,BRIGHTON & HOVE CITY TEACHING PCT,0000131164,18617.55,
Department of Health,East Sussex Healthcare NHS Trust,03/05/2011,ADMIN & CLERICAL BAND 7,Medicine & A&E,BRIGHTON & HOVE CITY TEACHING PCT,0000131165,10063.14,
Department of Health,East Sussex Healthcare NHS Trust,03/05/2011,SR SE COAST AMB FOUND ROUTINE,Facilities,SOUTH EAST COAST AMB NHS FOUND TRUST,0000131273,118453.92,
Department of Health,East Sussex Healthcare NHS Trust,03/05/2011,CONQ RAD X-RAY IGE MED,Clilcal Support Division,NHS SUPPLY CHAIN,0000131274,29275.17,
Department of Health,East Sussex Healthcare NHS Trust,03/05/2011,AGENCY MLSO,Clilcal Support Division,LABMED,0000269002,1543.06
Department of Health,East Sussex Healthcare NHS Trust,03/05/2011,AGENCY MLSO,Clilcal Support Division,LABMED,0000269120,1543.06
Department of Health,East Sussex Healthcare NHS Trust,03/05/2011,AGENCY MLSO,Clilcal Support Division,LABMED,0000269245,1543.06
Department of Health,East Sussex Healthcare NHS Trust,03/05/2011,AGENCY NURSE - QUALIFIED,Medicine & A&E,MAYDAY HEALTHCARE PLC,0000269544,629.63
Department of Health,East Sussex Healthcare NHS Trust,03/05/2011,AGENCY MLSO,Clilcal Support Division,LABMED,0000269730,1543.06
Department of Health,East Sussex Healthcare NHS Trust,03/05/2011,PROVISIONS,Facilities,DAIRY CREST LTD,0000269796,876.80
Department of Health,East Sussex Healthcare NHS Trust,03/05/2011,PROVISIONS,Facilities,THE BESPOKE COFFEE CO LTD,0000269820,641.50
Department of Health,East Sussex Healthcare NHS Trust,03/05/2011,PROVISIONS,Facilities,DAIRY CREST LTD,0000269824,1807.90
Department of Health,East Sussex Healthcare NHS Trust,03/05/2011,PROVISIONS,Facilities,ANCHOR CATERING LTD,0000269830,1012.10
Department of Health,East Sussex Healthcare NHS Trust,03/05/2011,PROVISIONS,Facilities,ANCHOR CATERING LTD,0000269833,1012.10
Department of Health,East Sussex Healthcare NHS Trust,03/05/2011,AGENCY STAFF GRADE,Anaesthetics & Surgery,SURGI-CALL LOCUMS,0000270074,1794.00
Department of Health,East Sussex Healthcare NHS Trust,03/05/2011,PROVISIONS,Facilities,N H CASE LTD,0000270095,538.78
Department of Health,East Sussex Healthcare NHS Trust,03/05/2011,PROVISIONS,Facilities,DAIRY CREST LTD,0000270103,1005.80
Department of Health,East Sussex Healthcare NHS Trust,03/05/2011,AGENCY NURSE - QUALIFIED,Medicine & A&E,MAYDAY HEALTHCARE PLC,0000270123,551.82
Department of Health,East Sussex Healthcare NHS Trust,03/05/2011,AGENCY NURSE - QUALIFIED,Medicine & A&E,MAYDAY HEALTHCARE PLC,0000270136,580.92
Department of Health,East Sussex Healthcare NHS Trust,03/05/2011,AGENCY NURSE - QUALIFIED,Medicine & A&E,MAYDAY HEALTHCARE PLC,0000270138,556.72
Department of Health,East Sussex Healthcare NHS Trust,03/05/2011,AGENCY NURSE - QUALIFIED,Medicine & A&E,MAYDAY HEALTHCARE PLC,0000270142,571.13
Department of Health,East Sussex Healthcare NHS Trust,03/05/2011,AGENCY NURSE - QUALIFIED,Medicine & A&E,MAYDAY HEALTHCARE PLC,0000270144,1527.38
Department of Health,East Sussex Healthcare NHS Trust,03/05/2011,AGENCY NURSE - QUALIFIED,Medicine & A&E,MAYDAY HEALTHCARE PLC,0000270145,571.13
Department of Health,East Sussex Healthcare NHS Trust,03/05/2011,AGENCY NURSE - QUALIFIED,Medicine & A&E,MAYDAY HEALTHCARE PLC,0000270146,629.82
Department of Health,East Sussex Healthcare NHS Trust,03/05/2011,AGENCY NURSE - QUALIFIED,Medicine & A&E,MAYDAY HEALTHCARE PLC,0000270147,522.55
Department of Health,East Sussex Healthcare NHS Trust,03/05/2011,AGENCY NURSE - QUALIFIED,Medicine & A&E,MAYDAY HEALTHCARE PLC,0000270149,576.03
Department of Health,East Sussex Healthcare NHS Trust,03/05/2011,AGENCY NURSE - QUALIFIED,Medicine & A&E,MAYDAY HEALTHCARE PLC,0000270150,576.03
Department of Health,East Sussex Healthcare NHS Trust,03/05/2011,AGENCY NURSE - QUALIFIED,Medicine & A&E,MAYDAY HEALTHCARE PLC,0000270151,576.03
Department of Health,East Sussex Healthcare NHS Trust,03/05/2011,AGENCY NURSE - QUALIFIED,Medicine & A&E,MAYDAY HEALTHCARE PLC,0000270153,568.82
Department of Health,East Sussex Healthcare NHS Trust,03/05/2011,AGENCY NURSE - QUALIFIED,Medicine & A&E,MAYDAY HEALTHCARE PLC,0000270157,571.13
Department of Health,East Sussex Healthcare NHS Trust,03/05/2011,AGENCY NURSE - QUALIFIED,Medicine & A&E,MAYDAY HEALTHCARE PLC,0000270158,571.13
Department of Health,East Sussex Healthcare NHS Trust,03/05/2011,AGENCY NURSE - QUALIFIED,Medicine & A&E,MAYDAY HEALTHCARE PLC,0000270160,649.38
Department of Health,East Sussex Healthcare NHS Trust,03/05/2011,AGENCY NURSE - QUALIFIED,Medicine & A&E,MAYDAY HEALTHCARE PLC,0000270162,571.13
Department of Health,East Sussex Healthcare NHS Trust,03/05/2011,AGENCY NURSE - QUALIFIED,Medicine & A&E,MAYDAY HEALTHCARE PLC,0000270163,571.13
Department of Health,East Sussex Healthcare NHS Trust,03/05/2011,AGENCY NURSE - QUALIFIED,Medicine & A&E,MAYDAY HEALTHCARE PLC,0000270168,576.03
Department of Health,East Sussex Healthcare NHS Trust,03/05/2011,AGENCY NURSE - QUALIFIED,Medicine & A&E,MAYDAY HEALTHCARE PLC,0000270169,659.16
Department of Health,East Sussex Healthcare NHS Trust,03/05/2011,AGENCY NURSE - QUALIFIED,Medicine & A&E,MAYDAY HEALTHCARE PLC,0000270264,659.16
Department of Health,East Sussex Healthcare NHS Trust,03/05/2011,AGENCY STAFF GRADE,Medicine & A&E,TLC - THE LOCUM CONSULTANCY,0000270269,2394.00
Department of Health,East Sussex Healthcare NHS Trust,03/05/2011,AGENCY NURSE - QUALIFIED,Medicine & A&E,MAYDAY HEALTHCARE PLC,0000270279,588.13
Department of Health,East Sussex Healthcare NHS Trust,03/05/2011,AGENCY NURSE - QUALIFIED,Medicine & A&E,MAYDAY HEALTHCARE PLC,0000270280,556.72
Department of Health,East Sussex Healthcare NHS Trust,03/05/2011,AGENCY NURSE - QUALIFIED,Medicine & A&E,MAYDAY HEALTHCARE PLC,0000270281,600.93
Department of Health,East Sussex Healthcare NHS Trust,03/05/2011,AGENCY NURSE - QUALIFIED,Medicine & A&E,MAYDAY HEALTHCARE PLC,0000270282,615.15
Department of Health,East Sussex Healthcare NHS Trust,03/05/2011,AGENCY NURSE - QUALIFIED,Medicine & A&E,MAYDAY HEALTHCARE PLC,0000270284,1279.20
Department of Health,East Sussex Healthcare NHS Trust,03/05/2011,AGENCY NURSE - QUALIFIED,Medicine & A&E,MAYDAY HEALTHCARE PLC,0000270285,576.03
Department of Health,East Sussex Healthcare NHS Trust,03/05/2011,AGENCY NURSE - QUALIFIED,Anaesthetics & Surgery,MAYDAY HEALTHCARE PLC,0000270290,537.28
Department of Health,East Sussex Healthcare NHS Trust,03/05/2011,AGENCY NURSE - QUALIFIED,Medicine & A&E,MAYDAY HEALTHCARE PLC,0000270292,532.51
Department of Health,East Sussex Healthcare NHS Trust,03/05/2011,AGENCY NURSE - QUALIFIED,Medicine & A&E,MAYDAY HEALTHCARE PLC,0000270293,571.13
Department of Health,East Sussex Healthcare NHS Trust,03/05/2011,AGENCY MTO,Anaesthetics & Surgery,ORION LOCUMS LTD,0000270303,3379.08
Department of Health,East Sussex Healthcare NHS Trust,03/05/2011,AGENCY MTO,Anaesthetics & Surgery,ORION LOCUMS LTD,0000270304,503.45
Department of Health,East Sussex Healthcare NHS Trust,03/05/2011,AGENCY MTO,Anaesthetics & Surgery,ORION LOCUMS LTD,0000270305,3436.76
Department of Health,East Sussex Healthcare NHS Trust,03/05/2011,AGENCY NURSE - QUALIFIED,Anaesthetics & Surgery,ORION LOCUMS LTD,0000270306,1497.60
Department of Health,East Sussex Healthcare NHS Trust,03/05/2011,PROVISIONS,Facilities,DAIRY CREST LTD,0000270329,948.30
Department of Health,East Sussex Healthcare NHS Trust,03/05/2011,AGENCY STAFF GRADE,Medicine & A&E,TLC - THE LOCUM CONSULTANCY,0000270350,2394.00
Department of Health,East Sussex Healthcare NHS Trust,03/05/2011,AGENCY MTO,Anaesthetics & Surgery,ORION LOCUMS LTD,0000270414,614.40
Department of Health,East Sussex Healthcare NHS Trust,03/05/2011,AGENCY MTO,Anaesthetics & Surgery,ORION LOCUMS LTD,0000270415,979.20
Department of Health,East Sussex Healthcare NHS Trust,03/05/2011,AGENCY MTO,Anaesthetics & Surgery,ORION LOCUMS LTD,0000270416,1440.00
Department of Health,East Sussex Healthcare NHS Trust,03/05/2011,AGENCY NURSE - QUALIFIED,Anaesthetics & Surgery,ORION LOCUMS LTD,0000270417,1939.12
Department of Health,East Sussex Healthcare NHS Trust,03/05/2011,AGENCY SPECIALIST REG,Medicine & A&E,MEDACS HEALTHCARE SERVICES LTD,0000270446,5213.52
Department of Health,East Sussex Healthcare NHS Trust,03/05/2011,AGENCY SHO - LOCUM,Medicine & A&E,MEDACS HEALTHCARE SERVICES LTD,0000270447,1434.68
Department of Health,East Sussex Healthcare NHS Trust,03/05/2011,AGENCY - GENERAL GRADES,Facilities,INTERWORK RECRUITMENT CONSULTANTS LTD,0000270454,736.32
Department of Health,East Sussex Healthcare NHS Trust,03/05/2011,AGENCY - GENERAL GRADES,Facilities,INTERWORK RECRUITMENT CONSULTANTS LTD,0000270457,732.22
Department of Health,East Sussex Healthcare NHS Trust,03/05/2011,AGENCY ANCILLARY,Facilities,INTERWORK RECRUITMENT CONSULTANTS LTD,0000270458,810.96
Department of Health,East Sussex Healthcare NHS Trust,03/05/2011,AGENCY - GENERAL GRADES,Facilities,INTERWORK RECRUITMENT CONSULTANTS LTD,0000270459,4132.58
Department of Health,East Sussex Healthcare NHS Trust,03/05/2011,AGENCY STAFF GRADE,Anaesthetics & Surgery,MEDACS HEALTHCARE SERVICES LTD,0000270460,1958.20
Department of Health,East Sussex Healthcare NHS Trust,03/05/2011,AGENCY MTO,Anaesthetics & Surgery,ORION LOCUMS LTD,0000270463,864.00
Department of Health,East Sussex Healthcare NHS Trust,03/05/2011,AGENCY SHO - LOCUM,Medicine & A&E,MEDACS HEALTHCARE SERVICES LTD,0000270480,1842.49
Department of Health,East Sussex Healthcare NHS Trust,03/05/2011,AGENCY SPECIALIST REG,Medicine & A&E,MEDACS HEALTHCARE SERVICES LTD,0000270481,1313.09
Department of Health,East Sussex Healthcare NHS Trust,03/05/2011,AGENCY SHO - LOCUM,Medicine & A&E,MEDACS HEALTHCARE SERVICES LTD,0000270485,2838.43
Department of Health,East Sussex Healthcare NHS Trust,03/05/2011,AGENCY SHO - LOCUM,Medicine & A&E,MEDACS HEALTHCARE SERVICES LTD,0000270486,703.96
Department of Health,East Sussex Healthcare NHS Trust,03/05/2011,AGENCY MTO,Anaesthetics & Surgery,ORION LOCUMS LTD,0000270490,1539.54
Department of Health,East Sussex Healthcare NHS Trust,03/05/2011,AGENCY ANCILLARY,Facilities,INTERWORK RECRUITMENT CONSULTANTS LTD,0000270495,3115.94
Department of Health,East Sussex Healthcare NHS Trust,03/05/2011,AGENCY ANCILLARY,Facilities,INTERWORK RECRUITMENT CONSULTANTS LTD,0000270501,656.03
Department of Health,East Sussex Healthcare NHS Trust,03/05/2011,AGENCY ANCILLARY,Facilities,INTERWORK RECRUITMENT CONSULTANTS LTD,0000270508,697.78
Department of Health,East Sussex Healthcare NHS Trust,03/05/2011,PROVISIONS,Facilities,DAIRY CREST LTD,0000270564,1091.43
Department of Health,East Sussex Healthcare NHS Trust,03/05/2011,AGENCY MTO,Anaesthetics & Surgery,ORION LOCUMS LTD,0000270602,1363.20
Department of Health,East Sussex Healthcare NHS Trust,03/05/2011,AGENCY MTO,Anaesthetics & Surgery,ORION LOCUMS LTD,0000270603,1267.20
Department of Health,East Sussex Healthcare NHS Trust,03/05/2011,AGENCY MTO,Anaesthetics & Surgery,ORION LOCUMS LTD,0000270604,1382.40
Department of Health,East Sussex Healthcare NHS Trust,03/05/2011,AGENCY MTO,Anaesthetics & Surgery,ORION LOCUMS LTD,0000270605,1382.40
Department of Health,East Sussex Healthcare NHS Trust,03/05/2011,AGENCY - GENERAL GRADES,Facilities,INTERWORK RECRUITMENT CONSULTANTS LTD,0000270621,3846.07
Department of Health,East Sussex Healthcare NHS Trust,03/05/2011,AGENCY - GENERAL GRADES,Facilities,INTERWORK RECRUITMENT CONSULTANTS LTD,0000270651,625.72
Department of Health,East Sussex Healthcare NHS Trust,03/05/2011,AGENCY - GENERAL GRADES,Facilities,INTERWORK RECRUITMENT CONSULTANTS LTD,0000270656,506.92
Department of Health,East Sussex Healthcare NHS Trust,03/05/2011,AGENCY - GENERAL GRADES,Facilities,INTERWORK RECRUITMENT CONSULTANTS LTD,0000270657,4040.78
Department of Health,East Sussex Healthcare NHS Trust,03/05/2011,AGENCY - GENERAL GRADES,Facilities,INTERWORK RECRUITMENT CONSULTANTS LTD,0000270659,571.68
Department of Health,East Sussex Healthcare NHS Trust,03/05/2011,PROFESSIONAL FEES,Facilities,RICHARD WILES ASSOCIATES LTD,0000355501,3475.00
Department of Health,East Sussex Healthcare NHS Trust,03/05/2011,PROFESSIONAL FEES,Facilities,RICHARD WILES ASSOCIATES LTD,0000355502,4218.75
Department of Health,East Sussex Healthcare NHS Trust,03/05/2011,CAPITAL EXPENDITURE,Capital,H WILSON (ALFRISTON) LTD,0000355867,83874.55
Department of Health,East Sussex Healthcare NHS Trust,03/05/2011,CONQ A & E,Medicine & A&E,RICOH UK LTD,0000487406,859.29
Department of Health,East Sussex Healthcare NHS Trust,03/05/2011,PHOTOCOPIER HIRE,Anaesthetics & Surgery,RICOH UK LTD,0000487409,729.90
Department of Health,East Sussex Healthcare NHS Trust,03/05/2011,PHOTOCOPIER HIRE,Medicine & A&E,RICOH UK LTD,0000487415,446.49
Department of Health,East Sussex Healthcare NHS Trust,03/05/2011,PHOTOCOPIER HIRE,Facilities,RICOH UK LTD,0000487418,1097.85
Department of Health,East Sussex Healthcare NHS Trust,03/05/2011,ST.ANNES ADMIN,Management & Corporate Services,RICOH UK LTD,0000487420,847.48
Department of Health,East Sussex Healthcare NHS Trust,03/05/2011,PHOTOCOPIER HIRE,Management & Corporate Services,RICOH UK LTD,0000487449,473.34
Department of Health,East Sussex Healthcare NHS Trust,03/05/2011,M&S GENERAL SUPPLIES-OTHER,Clilcal Support Division,COOK (UK) LTD,0000487766,907.20
Department of Health,East Sussex Healthcare NHS Trust,03/05/2011,MONOVETTE CONSUMABLES,Clilcal Support Division,GREINER BIO-ONE LTD,0000487799,2652.43
Department of Health,East Sussex Healthcare NHS Trust,03/05/2011,PROSTHESES-OTHER,Anaesthetics & Surgery,BIOMET EUROPE,0000487808,8310.05
Department of Health,East Sussex Healthcare NHS Trust,03/05/2011,PACEMAKERS,Medicine & A&E,MEDTRONIC LTD,0000487844,4500.00
Department of Health,East Sussex Healthcare NHS Trust,03/05/2011,CARDIOLOGY CATHETERS,Medicine & A&E,ST JUDE MEDICAL UK LIMITED,0000488061,1950.00
Department of Health,East Sussex Healthcare NHS Trust,03/05/2011,M&S GENERAL SUPPLIES-OTHER,Anaesthetics & Surgery,BIOMET EUROPE,0000488147,28.50
Department of Health,East Sussex Healthcare NHS Trust,03/05/2011,PROSTHESES-OTHER,Anaesthetics & Surgery,BIOMET EUROPE,0000488147,4128.00
Department of Health,East Sussex Healthcare NHS Trust,03/05/2011,PROSTHESES-KNEES,Anaesthetics & Surgery,BIOMET EUROPE,0000488148,7977.48
Department of Health,East Sussex Healthcare NHS Trust,03/05/2011,NATIONAL JOINT REGISTRY LEVY,Anaesthetics & Surgery,BIOMET EUROPE,0000488148,60.01
Department of Health,East Sussex Healthcare NHS Trust,03/05/2011,SURGICAL INSTRUMENTS,Anaesthetics & Surgery,B BRAUN MEDICAL LTD,0000488159,8400.00
Department of Health,East Sussex Healthcare NHS Trust,03/05/2011,M&S GENERAL SUPPLIES-OTHER,Anaesthetics & Surgery,ARTHROCARE UK LIMITED,0000488195,663.00
Department of Health,East Sussex Healthcare NHS Trust,03/05/2011,COMPUTER HARDWARE,Anaesthetics & Surgery,GAMBRO LUNDIA AB,0000488259,1317.53
Department of Health,East Sussex Healthcare NHS Trust,03/05/2011,INTERVENTIONAL DISPOSABLES,Medicine & A&E,ST JUDE MEDICAL UK LIMITED,0000488282,2892.00
Department of Health,East Sussex Healthcare NHS Trust,03/05/2011,PACEMAKERS,Medicine & A&E,BOSTON SCIENTIFIC LTD,0000488310,19440.00
Department of Health,East Sussex Healthcare NHS Trust,03/05/2011,PACEMAKERS,Medicine & A&E,BOSTON SCIENTIFIC LTD,0000488311,16680.00
Department of Health,East Sussex Healthcare NHS Trust,03/05/2011,SUTURES,Anaesthetics & Surgery,ARTHROCARE UK LIMITED,0000488375,1023.00
Department of Health,East Sussex Healthcare NHS Trust,03/05/2011,M&S GENERAL SUPPLIES-OTHER,Anaesthetics & Surgery,ARTHROCARE UK LIMITED,0000488375,486.00
Department of Health,East Sussex Healthcare NHS Trust,03/05/2011,PROSTHESES-OTHER,Anaesthetics & Surgery,ARTHROCARE UK LIMITED,0000488377,711.14
Department of Health,East Sussex Healthcare NHS Trust,03/05/2011,PROSTHESES-OTHER,Anaesthetics & Surgery,ARTHROCARE UK LIMITED,0000488400,715.30
Department of Health,East Sussex Healthcare NHS Trust,03/05/2011,CARDIOLOGY CATHETERS,Medicine & A&E,BOSTON SCIENTIFIC LTD,0000488415,1452.00
Department of Health,East Sussex Healthcare NHS Trust,03/05/2011,CARDIOLOGY CATHETERS,Medicine & A&E,BOSTON SCIENTIFIC LTD,0000488416,540.00
Department of Health,East Sussex Healthcare NHS Trust,03/05/2011,CARDIOLOGY STENTS,Medicine & A&E,MEDTRONIC LTD,0000488421,2160.00
Department of Health,East Sussex Healthcare NHS Trust,03/05/2011,M&S GENERAL SUPPLIES-OTHER,Anaesthetics & Surgery,BIOMET EUROPE,0000488434,39.60
Department of Health,East Sussex Healthcare NHS Trust,03/05/2011,PROSTHESES-KNEES,Anaesthetics & Surgery,BIOMET EUROPE,0000488434,7261.20
Department of Health,East Sussex Healthcare NHS Trust,03/05/2011,NATIONAL JOINT REGISTRY LEVY,Anaesthetics & Surgery,BIOMET EUROPE,0000488434,100.02
Department of Health,East Sussex Healthcare NHS Trust,03/05/2011,CARDIOLOGY STENTS,Medicine & A&E,BOSTON SCIENTIFIC LTD,0000488435,3294.00
Department of Health,East Sussex Healthcare NHS Trust,03/05/2011,X-RAY - EQUIPMENT & MATERIALS,Clilcal Support Division,MED IMAGING LTD,0000488595,2347.00
Department of Health,East Sussex Healthcare NHS Trust,03/05/2011,PROSTHESES-HIP,Anaesthetics & Surgery,STRYKER UK,0000488681,2189.40
Department of Health,East Sussex Healthcare NHS Trust,03/05/2011,PROSTHESES-OTHER,Anaesthetics & Surgery,STRYKER UK,0000488681,87.12
Department of Health,East Sussex Healthcare NHS Trust,03/05/2011,NATIONAL JOINT REGISTRY LEVY,Anaesthetics & Surgery,STRYKER UK,0000488681,20.00
Department of Health,East Sussex Healthcare NHS Trust,03/05/2011,PROSTHESES-HIP,Anaesthetics & Surgery,STRYKER UK,0000488683,6817.14
Department of Health,East Sussex Healthcare NHS Trust,03/05/2011,PROSTHESES-OTHER,Anaesthetics & Surgery,STRYKER UK,0000488683,491.11
Department of Health,East Sussex Healthcare NHS Trust,03/05/2011,PROSTHESES-HIP,Anaesthetics & Surgery,LIMA ORTHOPAEDICS UK LIMITED,0000488732,2479.20
Department of Health,East Sussex Healthcare NHS Trust,03/05/2011,PROSTHESES-OTHER,Anaesthetics & Surgery,LIMA ORTHOPAEDICS UK LIMITED,0000488732,496.80
Department of Health,East Sussex Healthcare NHS Trust,03/05/2011,NATIONAL JOINT REGISTRY LEVY,Anaesthetics & Surgery,LIMA ORTHOPAEDICS UK LIMITED,0000488732,40.01
Department of Health,East Sussex Healthcare NHS Trust,03/05/2011,GENERAL LAB. CONSUMABLES,Clilcal Support Division,HOLOGIC UK LTD,0000489376,1147.20
Department of Health,East Sussex Healthcare NHS Trust,03/05/2011,PROFESSIONAL FEES,Anaesthetics & Surgery,BIOMNI VOICE LTD,0000585626,1240.34
Department of Health,East Sussex Healthcare NHS Trust,03/05/2011,PROFESSIONAL FEES,Anaesthetics & Surgery,BIOMNI VOICE LTD,0000586681,1115.32
Department of Health,East Sussex Healthcare NHS Trust,03/05/2011,PROFESSIONAL FEES,Anaesthetics & Surgery,BIOMNI VOICE LTD,0000587430,1224.54
Department of Health,East Sussex Healthcare NHS Trust,03/05/2011,INTERVENTIONAL DISPOSABLES,Clilcal Support Division,JOHNSON & JOHNSON MEDICAL LTD,0000587504,780.00
Department of Health,East Sussex Healthcare NHS Trust,03/05/2011,IMPLANTABLE DEFIBRILLATOR,Medicine & A&E,ST JUDE MEDICAL UK LIMITED,0000587882,22309.20
Department of Health,East Sussex Healthcare NHS Trust,03/05/2011,IMPLANTABLE DEFIBRILLATOR,Medicine & A&E,ST JUDE MEDICAL UK LIMITED,0000587883,22309.20
Department of Health,East Sussex Healthcare NHS Trust,03/05/2011,CARDIOLOGY CATHETERS,Medicine & A&E,ST JUDE MEDICAL UK LIMITED,0000588097,2640.00
Department of Health,East Sussex Healthcare NHS Trust,03/05/2011,PRE-STERILE COMMERCIAL PACKS,Facilities,ROCIALLE INHEALTH,0000588131,826.37
Department of Health,East Sussex Healthcare NHS Trust,03/05/2011,INTERVASCULAR STENTS,Clilcal Support Division,MEDTRONIC LTD,0000588241,7800.00
Department of Health,East Sussex Healthcare NHS Trust,03/05/2011,CARDIOLOGY CATHETERS,Medicine & A&E,MEDTRONIC LTD,0000588242,3600.00
Department of Health,East Sussex Healthcare NHS Trust,03/05/2011,CARDIOLOGY CATHETERS,Medicine & A&E,MEDTRONIC LTD,0000588243,4800.00
Department of Health,East Sussex Healthcare NHS Trust,03/05/2011,IMPLANTABLE DEFIBRILLATOR,Medicine & A&E,ST JUDE MEDICAL UK LIMITED,0000588444,22308.00
Department of Health,East Sussex Healthcare NHS Trust,03/05/2011,INTERVENTIONAL DISPOSABLES,Medicine & A&E,ST JUDE MEDICAL UK LIMITED,0000588445,2304.00
Department of Health,East Sussex Healthcare NHS Trust,03/05/2011,CARDIOLOGY CATHETERS,Medicine & A&E,ST JUDE MEDICAL UK LIMITED,0000588445,468.00
Department of Health,East Sussex Healthcare NHS Trust,03/05/2011,CARDIOLOGY CATHETERS,Medicine & A&E,MEDTRONIC LTD,0000588446,4800.00
Department of Health,East Sussex Healthcare NHS Trust,03/05/2011,M&S GENERAL SUPPLIES-OTHER,Medicine & A&E,POSHCHAIR MEDICAL LTD,0000588450,180.00
Department of Health,East Sussex Healthcare NHS Trust,03/05/2011,HIRE OF SPECIAL BEDS,Medicine & A&E,POSHCHAIR MEDICAL LTD,0000588450,2788.80
Department of Health,East Sussex Healthcare NHS Trust,03/05/2011,INTERVENTIONAL DISPOSABLES,Medicine & A&E,ST JUDE MEDICAL UK LIMITED,0000588509,744.00
Department of Health,East Sussex Healthcare NHS Trust,03/05/2011,CARDIOLOGY CATHETERS,Medicine & A&E,ST JUDE MEDICAL UK LIMITED,0000588509,480.00
Department of Health,East Sussex Healthcare NHS Trust,03/05/2011,DRESSINGS-OTHER,Medicine & A&E,ST JUDE MEDICAL UK LIMITED,0000588530,903.60
Department of Health,East Sussex Healthcare NHS Trust,03/05/2011,CARDIOLOGY CATHETERS,Medicine & A&E,ST JUDE MEDICAL UK LIMITED,0000588530,1950.00
Department of Health,East Sussex Healthcare NHS Trust,03/05/2011,STAPLING DEVICES,Anaesthetics & Surgery,JOHNSON & JOHNSON MEDICAL LTD,0000588550,1095.13
Department of Health,East Sussex Healthcare NHS Trust,03/05/2011,LASER/LAPARASCOPIC EQUIPMENT,Anaesthetics & Surgery,JOHNSON & JOHNSON MEDICAL LTD,0000588550,3030.98
Department of Health,East Sussex Healthcare NHS Trust,03/05/2011,CARDIOLOGY CATHETERS,Medicine & A&E,ST JUDE MEDICAL UK LIMITED,0000588709,1950.00
Department of Health,East Sussex Healthcare NHS Trust,03/05/2011,INTERVASCULAR STENTS,Clilcal Support Division,MEDTRONIC LTD,0000588745,7800.00
Department of Health,East Sussex Healthcare NHS Trust,03/05/2011,INTERVASCULAR STENTS,Clilcal Support Division,MEDTRONIC LTD,0000588746,7800.00
Department of Health,East Sussex Healthcare NHS Trust,03/05/2011,INTERVASCULAR STENTS,Clilcal Support Division,MEDTRONIC LTD,0000588747,15600.00
Department of Health,East Sussex Healthcare NHS Trust,03/05/2011,CARDIOLOGY STENTS,Medicine & A&E,MEDTRONIC LTD,0000588837,540.00
Department of Health,East Sussex Healthcare NHS Trust,03/05/2011,M&S GENERAL SUPPLIES-OTHER,Anaesthetics & Surgery,MEDTRONIC LTD,0000588838,573.60
Department of Health,East Sussex Healthcare NHS Trust,03/05/2011,M&S GENERAL SUPPLIES-OTHER,Medicine & A&E,MEDTRONIC LTD,0000588838,18.00
Department of Health,East Sussex Healthcare NHS Trust,03/05/2011,CARDIOLOGY CATHETERS,Medicine & A&E,MEDTRONIC LTD,0000588842,4800.00
Department of Health,East Sussex Healthcare NHS Trust,03/05/2011,CARDIOLOGY CATHETERS,Medicine & A&E,MEDTRONIC LTD,0000588843,4800.00
Department of Health,East Sussex Healthcare NHS Trust,03/05/2011,M&S GENERAL SUPPLIES-OTHER,Medicine & A&E,ST JUDE MEDICAL UK LIMITED,0000588869,450.00
Department of Health,East Sussex Healthcare NHS Trust,03/05/2011,INTERVENTIONAL DISPOSABLES,Medicine & A&E,ST JUDE MEDICAL UK LIMITED,0000588869,720.00
Department of Health,East Sussex Healthcare NHS Trust,03/05/2011,INTERVENTIONAL DISPOSABLES,Medicine & A&E,ST JUDE MEDICAL UK LIMITED,0000589011,900.00
Department of Health,East Sussex Healthcare NHS Trust,03/05/2011,INTERVENTIONAL DISPOSABLES,Medicine & A&E,ST JUDE MEDICAL UK LIMITED,0000589012,600.00
Department of Health,East Sussex Healthcare NHS Trust,03/05/2011,INTERVENTIONAL DISPOSABLES,Medicine & A&E,ST JUDE MEDICAL UK LIMITED,0000589022,2400.00
Department of Health,East Sussex Healthcare NHS Trust,03/05/2011,PACEMAKERS,Medicine & A&E,MEDTRONIC LTD,0000589066,1800.00
Department of Health,East Sussex Healthcare NHS Trust,03/05/2011,CARDIOLOGY CATHETERS,Medicine & A&E,MEDTRONIC LTD,0000589089,4800.00
Department of Health,East Sussex Healthcare NHS Trust,03/05/2011,CARDIOLOGY CATHETERS,Medicine & A&E,MEDTRONIC LTD,0000589090,4800.00
Department of Health,East Sussex Healthcare NHS Trust,03/05/2011,COMPUTER HARDWARE,Medicine & A&E,HEWLETT-PACKARD LTD,0000589094,948.00
Department of Health,East Sussex Healthcare NHS Trust,03/05/2011,OESOPHAGEAL (UPPER GI) STENTS,Clilcal Support Division,BOSTON SCIENTIFIC LTD,0000589096,1680.00
Department of Health,East Sussex Healthcare NHS Trust,03/05/2011,OTHER STENTS,Clilcal Support Division,BOSTON SCIENTIFIC LTD,0000589096,780.00
Department of Health,East Sussex Healthcare NHS Trust,03/05/2011,OESOPHAGEAL (UPPER GI) STENTS,Clilcal Support Division,BOSTON SCIENTIFIC LTD,0000589097,2340.00
Department of Health,East Sussex Healthcare NHS Trust,03/05/2011,CLINICAL WASTE DISPOSAL,Facilities,SRCL LTD,0000589551,15781.12
Department of Health,East Sussex Healthcare NHS Trust,03/05/2011,CLINICAL WASTE DISPOSAL,Facilities,SRCL LTD,0000589552,19667.70
Department of Health,East Sussex Healthcare NHS Trust,03/05/2011,ENDOSCOPY CONSUMABLES,Clilcal Support Division,PARTNERS FOR ENDOSCOPY MEDICAL,0000589773,633.60
Department of Health,East Sussex Healthcare NHS Trust,03/05/2011,M&S GENERAL SUPPLIES-OTHER,Facilities,STERIPHARM UK LTD,0000589904,1330.43
Department of Health,East Sussex Healthcare NHS Trust,03/05/2011,PRE-STERILE COMMERCIAL PACKS,Facilities,STERIPHARM UK LTD,0000589904,903.46
Department of Health,East Sussex Healthcare NHS Trust,03/05/2011,DISPOSABLE DRAPES,Facilities,STERIPHARM UK LTD,0000589904,423.57
Department of Health,East Sussex Healthcare NHS Trust,03/05/2011,M&S GENERAL SUPPLIES-OTHER,Facilities,STERIPHARM UK LTD,0000589905,2108.97
Department of Health,East Sussex Healthcare NHS Trust,03/05/2011,PRE-STERILE COMMERCIAL PACKS,Facilities,STERIPHARM UK LTD,0000589905,669.31
Department of Health,East Sussex Healthcare NHS Trust,03/05/2011,DISPOSABLE DRAPES,Facilities,STERIPHARM UK LTD,0000589905,844.71
Department of Health,East Sussex Healthcare NHS Trust,03/05/2011,M&S GENERAL SUPPLIES-OTHER,Facilities,STERIPHARM UK LTD,0000589906,1252.80
Department of Health,East Sussex Healthcare NHS Trust,03/05/2011,PRE-STERILE COMMERCIAL PACKS,Facilities,STERIPHARM UK LTD,0000589906,322.56
Department of Health,East Sussex Healthcare NHS Trust,03/05/2011,DISPOSABLE DRAPES,Facilities,STERIPHARM UK LTD,0000589906,2719.63
Department of Health,East Sussex Healthcare NHS Trust,03/05/2011,PRE-STERILE COMMERCIAL PACKS,Facilities,STERIPHARM UK LTD,0000589909,470.40
Department of Health,East Sussex Healthcare NHS Trust,03/05/2011,ENGINEERING MATERIALS,Facilities,STERIPHARM UK LTD,0000589909,120.00
Department of Health,East Sussex Healthcare NHS Trust,03/05/2011,ELECTRO MEDICAL EQUIPMENT,Anaesthetics & Surgery,B BRAUN MEDICAL LTD,0000616817,3600.00
Department of Health,East Sussex Healthcare NHS Trust,03/05/2011,CONT.MAIN-MED & SURG EQUIP,Anaesthetics & Surgery,B BRAUN MEDICAL LTD,0000616817,1200.00
Department of Health,East Sussex Healthcare NHS Trust,03/05/2011,CAPITAL EXPENDITURE,Capital,H WILSON (ALFRISTON) LTD,0000617087,10104.20
Department of Health,East Sussex Healthcare NHS Trust,03/05/2011,WASTE DISPOSAL SERVICES,Facilities,GREENSOLVE,0000617094,450.00
Department of Health,East Sussex Healthcare NHS Trust,03/05/2011,DISPOSAL OF CONFIDENTIAL WASTE,Facilities,GREENSOLVE,0000617095,2100.00
Department of Health,East Sussex Healthcare NHS Trust,03/05/2011,DISPOSAL OF CONFIDENTIAL WASTE,Facilities,GREENSOLVE,0000617096,750.00
Department of Health,East Sussex Healthcare NHS Trust,03/05/2011,CAPITAL EXPENDITURE,Capital,EASTBOURNE ELECTRICAL,0000617099,4404.00
Department of Health,East Sussex Healthcare NHS Trust,03/05/2011,CAPITAL EXPENDITURE,Capital,H WILSON (ALFRISTON) LTD,0000617126,16100.90
Department of Health,East Sussex Healthcare NHS Trust,03/05/2011,CAPITAL EXPENDITURE,Capital,H WILSON (ALFRISTON) LTD,0000617134,1404.84
Department of Health,East Sussex Healthcare NHS Trust,03/05/2011,CAPITAL EXPENDITURE,Capital,EASTBOURNE ELECTRICAL,0000617136,1140.00
Department of Health,East Sussex Healthcare NHS Trust,03/05/2011,PATIENTS APPLIANCES - OTHER,Clilcal Support Division,TRULIFE,0000748898,688.87
Department of Health,East Sussex Healthcare NHS Trust,03/05/2011,PATS APPL - FOOTWARE,Clilcal Support Division,JANE SAUNDERS & MANNING LTD,0000748998,878.86
Department of Health,East Sussex Healthcare NHS Trust,03/05/2011,PATIENTS APPLIANCES - OTHER,Clilcal Support Division,OSSUR UK LTD,0000749051,959.88
Department of Health,East Sussex Healthcare NHS Trust,03/05/2011,PATIENTS APPLIANCES - OTHER,Clilcal Support Division,BEAGLE ORTHOPAEDIC,0000749074,793.20
Department of Health,East Sussex Healthcare NHS Trust,03/05/2011,PATIENTS APPLIANCES - OTHER,Clilcal Support Division,KENWARD ORTHOPAEDICS LTD,0000749080,533.12
Department of Health,East Sussex Healthcare NHS Trust,03/05/2011,STAPLING DEVICES,Anaesthetics & Surgery,JOHNSON & JOHNSON MEDICAL LTD,0000880176,5413.84
Department of Health,East Sussex Healthcare NHS Trust,03/05/2011,LASER/LAPARASCOPIC EQUIPMENT,Anaesthetics & Surgery,JOHNSON & JOHNSON MEDICAL LTD,0000880185,1201.56
Department of Health,East Sussex Healthcare NHS Trust,03/05/2011,LAPARASCOPIC EQUIP-GYNAECOLOGY,Anaesthetics & Surgery,JOHNSON & JOHNSON MEDICAL LTD,0000880185,409.96
Department of Health,East Sussex Healthcare NHS Trust,03/05/2011,INCONTINENCE M&S,Anaesthetics & Surgery,JOHNSON & JOHNSON MEDICAL LTD,0000880185,2376.00
Department of Health,East Sussex Healthcare NHS Trust,03/05/2011,M&S GENERAL SUPPLIES-OTHER,Anaesthetics & Surgery,JOHNSON & JOHNSON MEDICAL LTD,0000880185,391.57
Department of Health,East Sussex Healthcare NHS Trust,03/05/2011,SURGICAL INSTRUMENTS,Anaesthetics & Surgery,JOHNSON & JOHNSON MEDICAL LTD,0000880185,829.42
Department of Health,East Sussex Healthcare NHS Trust,03/05/2011,LASER/LAPARASCOPIC EQUIPMENT,Anaesthetics & Surgery,JOHNSON & JOHNSON MEDICAL LTD,0000880340,600.78
Department of Health,East Sussex Healthcare NHS Trust,03/05/2011,M&S GENERAL SUPPLIES-OTHER,Anaesthetics & Surgery,JOHNSON & JOHNSON MEDICAL LTD,0000880340,391.56
Department of Health,East Sussex Healthcare NHS Trust,03/05/2011,SURGICAL INSTRUMENTS,Anaesthetics & Surgery,JOHNSON & JOHNSON MEDICAL LTD,0000880340,391.56
Department of Health,East Sussex Healthcare NHS Trust,03/05/2011,LASER/LAPARASCOPIC EQUIPMENT,Anaesthetics & Surgery,JOHNSON & JOHNSON MEDICAL LTD,0000880357,6061.97
Department of Health,East Sussex Healthcare NHS Trust,03/05/2011,PROSTHESES-HIP,Anaesthetics & Surgery,BIOMET EUROPE,0000880425,600.00
Department of Health,East Sussex Healthcare NHS Trust,03/05/2011,PROSTHESES-KNEES,Anaesthetics & Surgery,BIOMET EUROPE,0000880425,3084.00
Department of Health,East Sussex Healthcare NHS Trust,03/05/2011,PROSTHESES-OTHER,Anaesthetics & Surgery,BIOMET EUROPE,0000880425,902.40
Department of Health,East Sussex Healthcare NHS Trust,03/05/2011,NATIONAL JOINT REGISTRY LEVY,Anaesthetics & Surgery,BIOMET EUROPE,0000880425,40.01
Department of Health,East Sussex Healthcare NHS Trust,03/05/2011,PROSTHESES-KNEES,Anaesthetics & Surgery,BIOMET EUROPE,0000880480,588.00
Department of Health,East Sussex Healthcare NHS Trust,03/05/2011,PROSTHESES-KNEES,Anaesthetics & Surgery,BIOMET EUROPE,0000880546,2898.00
Department of Health,East Sussex Healthcare NHS Trust,03/05/2011,NATIONAL JOINT REGISTRY LEVY,Anaesthetics & Surgery,BIOMET EUROPE,0000880546,40.01
Department of Health,East Sussex Healthcare NHS Trust,03/05/2011,PROSTHESES-KNEES,Anaesthetics & Surgery,BIOMET EUROPE,0000880549,3228.00
Department of Health,East Sussex Healthcare NHS Trust,03/05/2011,NATIONAL JOINT REGISTRY LEVY,Anaesthetics & Surgery,BIOMET EUROPE,0000880549,40.01
Department of Health,East Sussex Healthcare NHS Trust,03/05/2011,PROSTHESES-HIP,Anaesthetics & Surgery,JOINT REPLACEMENT INSTRUMENTATION  LTD,0000880613,702.00
Department of Health,East Sussex Healthcare NHS Trust,03/05/2011,PROVISIONS,Facilities,BRAKE BROS (FROZEN FOODS) LTD,0000912867,563.10
Department of Health,East Sussex Healthcare NHS Trust,03/05/2011,PROVISIONS,Facilities,BRAKE BROS (FROZEN FOODS) LTD,0000912879,728.99
Department of Health,East Sussex Healthcare NHS Trust,03/05/2011,PROVISIONS,Facilities,BRAKE BROS (FROZEN FOODS) LTD,0000912880,668.16
Department of Health,East Sussex Healthcare NHS Trust,03/05/2011,PROVISIONS,Facilities,BRAKE BROS (FROZEN FOODS) LTD,0000912881,697.59
Department of Health,East Sussex Healthcare NHS Trust,03/05/2011,PROVISIONS,Facilities,BRAKE BROS (FROZEN FOODS) LTD,0000912895,637.46
Department of Health,East Sussex Healthcare NHS Trust,03/05/2011,PROVISIONS,Facilities,BRAKE BROS (FROZEN FOODS) LTD,0000912897,689.07
Department of Health,East Sussex Healthcare NHS Trust,03/05/2011,STOCK-ASCRIBE CONQUEST,Pharmacy Stock,MAWDSLEYS,0001177015,1341.36
Department of Health,East Sussex Healthcare NHS Trust,03/05/2011,STOCK-ASCRIBE CONQUEST,Pharmacy Stock,AMGEN LTD,0001177025,2114.06
Department of Health,East Sussex Healthcare NHS Trust,03/05/2011,STOCK-ASCRIBE CONQUEST,Pharmacy Stock,AAH PHARMACEUTICALS LTD,0001177739,2065.05
Department of Health,East Sussex Healthcare NHS Trust,03/05/2011,STOCK-ASCRIBE CONQUEST,Pharmacy Stock,ALLIANCE HEALTHCARE (DISTRIBUTION) LTD,0001177757,830.09
Department of Health,East Sussex Healthcare NHS Trust,03/05/2011,STOCK-ASCRIBE CONQUEST,Pharmacy Stock,ALLIANCE HEALTHCARE (DISTRIBUTION) LTD,0001177758,605.34
Department of Health,East Sussex Healthcare NHS Trust,03/05/2011,STOCK-ASCRIBE CONQUEST,Pharmacy Stock,ALLIANCE HEALTHCARE (DISTRIBUTION) LTD,0001177765,1384.70
Department of Health,East Sussex Healthcare NHS Trust,03/05/2011,STOCK-ASCRIBE CONQUEST,Pharmacy Stock,ALLIANCE HEALTHCARE (DISTRIBUTION) LTD,0001177768,698.58
Department of Health,East Sussex Healthcare NHS Trust,03/05/2011,STOCK-ASCRIBE CONQUEST,Pharmacy Stock,ALLIANCE HEALTHCARE (DISTRIBUTION) LTD,0001177771,2489.09
Department of Health,East Sussex Healthcare NHS Trust,03/05/2011,STOCK-ASCRIBE CONQUEST,Pharmacy Stock,ALLIANCE HEALTHCARE (DISTRIBUTION) LTD,0001177775,2711.04
Department of Health,East Sussex Healthcare NHS Trust,03/05/2011,STOCK-ASCRIBE CONQUEST,Pharmacy Stock,ALLIANCE HEALTHCARE (DISTRIBUTION) LTD,0001177808,1029.60
Department of Health,East Sussex Healthcare NHS Trust,03/05/2011,STOCK-ASCRIBE CONQUEST,Pharmacy Stock,ALLIANCE HEALTHCARE (DISTRIBUTION) LTD,0001177832,-2824.92
Department of Health,East Sussex Healthcare NHS Trust,03/05/2011,STOCK-ASCRIBE CONQUEST,Pharmacy Stock,AAH PHARMACEUTICALS LTD,0001177838,546.00
Department of Health,East Sussex Healthcare NHS Trust,03/05/2011,STOCK-ASCRIBE CONQUEST,Pharmacy Stock,AAH PHARMACEUTICALS LTD,0001177843,1447.92
Department of Health,East Sussex Healthcare NHS Trust,03/05/2011,STOCK-ASCRIBE CONQUEST,Pharmacy Stock,AAH PHARMACEUTICALS LTD,0001177850,1506.96
Department of Health,East Sussex Healthcare NHS Trust,03/05/2011,STOCK-ASCRIBE CONQUEST,Pharmacy Stock,AAH PHARMACEUTICALS LTD,0001177856,567.08
Department of Health,East Sussex Healthcare NHS Trust,03/05/2011,STOCK-ASCRIBE CONQUEST,Pharmacy Stock,AAH PHARMACEUTICALS LTD,0001177857,579.60
Department of Health,East Sussex Healthcare NHS Trust,03/05/2011,STOCK-ASCRIBE CONQUEST,Pharmacy Stock,AAH PHARMACEUTICALS LTD,0001177863,684.00
Department of Health,East Sussex Healthcare NHS Trust,03/05/2011,STOCK-ASCRIBE CONQUEST,Pharmacy Stock,AAH PHARMACEUTICALS LTD,0001177867,513.48
Department of Health,East Sussex Healthcare NHS Trust,03/05/2011,STOCK-ASCRIBE CONQUEST,Pharmacy Stock,AAH PHARMACEUTICALS LTD,0001177869,3438.33
Department of Health,East Sussex Healthcare NHS Trust,03/05/2011,STOCK-ASCRIBE CONQUEST,Pharmacy Stock,AAH PHARMACEUTICALS LTD,0001177874,668.02
Department of Health,East Sussex Healthcare NHS Trust,03/05/2011,STOCK-ASCRIBE CONQUEST,Pharmacy Stock,AAH PHARMACEUTICALS LTD,0001177883,13400.64
Department of Health,East Sussex Healthcare NHS Trust,03/05/2011,STOCK-ASCRIBE CONQUEST,Pharmacy Stock,AAH PHARMACEUTICALS LTD,0001177884,561.12
Department of Health,East Sussex Healthcare NHS Trust,03/05/2011,STOCK-ASCRIBE CONQUEST,Pharmacy Stock,AAH PHARMACEUTICALS LTD,0001177889,816.53
Department of Health,East Sussex Healthcare NHS Trust,03/05/2011,STOCK-ASCRIBE CONQUEST,Pharmacy Stock,AAH PHARMACEUTICALS LTD,0001177894,531.72
Department of Health,East Sussex Healthcare NHS Trust,03/05/2011,STOCK-ASCRIBE CONQUEST,Pharmacy Stock,AAH PHARMACEUTICALS LTD,0001177898,704.46
Department of Health,East Sussex Healthcare NHS Trust,03/05/2011,STOCK-ASCRIBE CONQUEST,Pharmacy Stock,AAH PHARMACEUTICALS LTD,0001177899,2230.83
Department of Health,East Sussex Healthcare NHS Trust,03/05/2011,STOCK-ASCRIBE CONQUEST,Pharmacy Stock,AAH PHARMACEUTICALS LTD,0001177905,898.20
Department of Health,East Sussex Healthcare NHS Trust,03/05/2011,STOCK-ASCRIBE CONQUEST,Pharmacy Stock,AAH PHARMACEUTICALS LTD,0001177907,3201.63
Department of Health,East Sussex Healthcare NHS Trust,03/05/2011,STOCK-ASCRIBE CONQUEST,Pharmacy Stock,AAH PHARMACEUTICALS LTD,0001177908,994.22
Department of Health,East Sussex Healthcare NHS Trust,03/05/2011,STOCK-ASCRIBE CONQUEST,Pharmacy Stock,AAH PHARMACEUTICALS LTD,0001177909,1843.36
Department of Health,East Sussex Healthcare NHS Trust,03/05/2011,STOCK-ASCRIBE CONQUEST,Pharmacy Stock,AAH PHARMACEUTICALS LTD,0001177910,1501.68
Department of Health,East Sussex Healthcare NHS Trust,03/05/2011,STOCK-ASCRIBE CONQUEST,Pharmacy Stock,AAH PHARMACEUTICALS LTD,0001177911,3188.43
Department of Health,East Sussex Healthcare NHS Trust,03/05/2011,STOCK-ASCRIBE CONQUEST,Pharmacy Stock,AAH PHARMACEUTICALS LTD,0001177912,1369.02
Department of Health,East Sussex Healthcare NHS Trust,03/05/2011,STOCK-ASCRIBE CONQUEST,Pharmacy Stock,AAH PHARMACEUTICALS LTD,0001177913,1473.73
Department of Health,East Sussex Healthcare NHS Trust,03/05/2011,STOCK-ASCRIBE CONQUEST,Pharmacy Stock,AAH PHARMACEUTICALS LTD,0001177914,3790.36
Department of Health,East Sussex Healthcare NHS Trust,03/05/2011,STOCK-ASCRIBE CONQUEST,Pharmacy Stock,AAH PHARMACEUTICALS LTD,0001177915,2276.16
Department of Health,East Sussex Healthcare NHS Trust,03/05/2011,STOCK-ASCRIBE CONQUEST,Pharmacy Stock,AAH PHARMACEUTICALS LTD,0001177916,506.88
Department of Health,East Sussex Healthcare NHS Trust,03/05/2011,STOCK-ASCRIBE CONQUEST,Pharmacy Stock,AAH PHARMACEUTICALS LTD,0001177931,720.30
Department of Health,East Sussex Healthcare NHS Trust,03/05/2011,STOCK-ASCRIBE CONQUEST,Pharmacy Stock,AAH PHARMACEUTICALS LTD,0001177961,1504.80
Department of Health,East Sussex Healthcare NHS Trust,03/05/2011,STOCK-ASCRIBE CONQUEST,Pharmacy Stock,AAH PHARMACEUTICALS LTD,0001177962,982.80
Department of Health,East Sussex Healthcare NHS Trust,03/05/2011,STOCK-ASCRIBE CONQUEST,Pharmacy Stock,HEALTHCARE AT HOME LTD,0001178015,679.57
Department of Health,East Sussex Healthcare NHS Trust,03/05/2011,STOCK-ASCRIBE CONQUEST,Pharmacy Stock,HEALTHCARE AT HOME LTD,0001178016,679.57
Department of Health,East Sussex Healthcare NHS Trust,03/05/2011,STOCK-ASCRIBE CONQUEST,Pharmacy Stock,AAH PHARMACEUTICALS LTD,0001178024,-1621.46
Department of Health,East Sussex Healthcare NHS Trust,03/05/2011,STOCK-ASCRIBE CONQUEST,Pharmacy Stock,HEALTHCARE AT HOME LTD,0001178031,710.40
Department of Health,East Sussex Healthcare NHS Trust,03/05/2011,STOCK-ASCRIBE CONQUEST,Pharmacy Stock,HEALTHCARE AT HOME LTD,0001178032,1408.56
Department of Health,East Sussex Healthcare NHS Trust,03/05/2011,STOCK-ASCRIBE CONQUEST,Pharmacy Stock,HEALTHCARE AT HOME LTD,0001178033,710.40
Department of Health,East Sussex Healthcare NHS Trust,03/05/2011,STOCK-ASCRIBE CONQUEST,Pharmacy Stock,HEALTHCARE AT HOME LTD,0001178034,679.57
Department of Health,East Sussex Healthcare NHS Trust,03/05/2011,STOCK-ASCRIBE CONQUEST,Pharmacy Stock,HEALTHCARE AT HOME LTD,0001178035,648.74
Department of Health,East Sussex Healthcare NHS Trust,03/05/2011,STOCK-ASCRIBE CONQUEST,Pharmacy Stock,HEALTHCARE AT HOME LTD,0001178036,679.57
Department of Health,East Sussex Healthcare NHS Trust,03/05/2011,STOCK-ASCRIBE CONQUEST,Pharmacy Stock,HEALTHCARE AT HOME LTD,0001178060,715.00
Department of Health,East Sussex Healthcare NHS Trust,03/05/2011,STOCK-ASCRIBE CONQUEST,Pharmacy Stock,HEALTHCARE AT HOME LTD,0001178061,704.28
Department of Health,East Sussex Healthcare NHS Trust,03/05/2011,STOCK-ASCRIBE CONQUEST,Pharmacy Stock,HEALTHCARE AT HOME LTD,0001178064,715.00
Department of Health,East Sussex Healthcare NHS Trust,03/05/2011,STOCK-ASCRIBE CONQUEST,Pharmacy Stock,HEALTHCARE AT HOME LTD,0001178065,1408.56
Department of Health,East Sussex Healthcare NHS Trust,03/05/2011,STOCK-ASCRIBE EDGH,Pharmacy Stock,MAWDSLEYS,0001382368,1016.69
Department of Health,East Sussex Healthcare NHS Trust,03/05/2011,STOCK-ASCRIBE EDGH,Pharmacy Stock,ALLIANCE HEALTHCARE (DISTRIBUTION) LTD,0001382885,3519.12
Department of Health,East Sussex Healthcare NHS Trust,03/05/2011,STOCK-ASCRIBE EDGH,Pharmacy Stock,ALLIANCE HEALTHCARE (DISTRIBUTION) LTD,0001382886,592.15
Department of Health,East Sussex Healthcare NHS Trust,03/05/2011,STOCK-ASCRIBE EDGH,Pharmacy Stock,ALLIANCE HEALTHCARE (DISTRIBUTION) LTD,0001382890,1883.28
Department of Health,East Sussex Healthcare NHS Trust,03/05/2011,STOCK-ASCRIBE EDGH,Pharmacy Stock,AAH PHARMACEUTICALS LTD,0001383014,1250.35
Department of Health,East Sussex Healthcare NHS Trust,03/05/2011,STOCK-ASCRIBE EDGH,Pharmacy Stock,AAH PHARMACEUTICALS LTD,0001383016,2160.00
Department of Health,East Sussex Healthcare NHS Trust,03/05/2011,STOCK-ASCRIBE EDGH,Pharmacy Stock,AAH PHARMACEUTICALS LTD,0001383037,738.70
Department of Health,East Sussex Healthcare NHS Trust,03/05/2011,STOCK-ASCRIBE EDGH,Pharmacy Stock,AAH PHARMACEUTICALS LTD,0001383038,625.56
Department of Health,East Sussex Healthcare NHS Trust,03/05/2011,STOCK-ASCRIBE EDGH,Pharmacy Stock,AAH PHARMACEUTICALS LTD,0001383040,2026.84
Department of Health,East Sussex Healthcare NHS Trust,03/05/2011,STOCK-ASCRIBE EDGH,Pharmacy Stock,AAH PHARMACEUTICALS LTD,0001383048,3069.12
Department of Health,East Sussex Healthcare NHS Trust,03/05/2011,STOCK-ASCRIBE EDGH,Pharmacy Stock,AAH PHARMACEUTICALS LTD,0001383049,843.46
Department of Health,East Sussex Healthcare NHS Trust,03/05/2011,STOCK-ASCRIBE EDGH,Pharmacy Stock,AAH PHARMACEUTICALS LTD,0001383070,538.56
Department of Health,East Sussex Healthcare NHS Trust,03/05/2011,STOCK-ASCRIBE EDGH,Pharmacy Stock,AAH PHARMACEUTICALS LTD,0001383072,972.14
Department of Health,East Sussex Healthcare NHS Trust,03/05/2011,STOCK-ASCRIBE EDGH,Pharmacy Stock,AAH PHARMACEUTICALS LTD,0001383078,660.00
Department of Health,East Sussex Healthcare NHS Trust,03/05/2011,STOCK-ASCRIBE EDGH,Pharmacy Stock,AAH PHARMACEUTICALS LTD,0001383080,538.56
Department of Health,East Sussex Healthcare NHS Trust,03/05/2011,STOCK-ASCRIBE EDGH,Pharmacy Stock,AAH PHARMACEUTICALS LTD,0001383092,2905.07
Department of Health,East Sussex Healthcare NHS Trust,03/05/2011,STOCK-ASCRIBE EDGH,Pharmacy Stock,AAH PHARMACEUTICALS LTD,0001383096,600.53
Department of Health,East Sussex Healthcare NHS Trust,03/05/2011,STOCK-ASCRIBE EDGH,Pharmacy Stock,ALLIANCE HEALTHCARE (DISTRIBUTION) LTD,0001383132,605.31
Department of Health,East Sussex Healthcare NHS Trust,03/05/2011,STOCK-ASCRIBE EDGH,Pharmacy Stock,HEALTHCARE AT HOME LTD,0001383150,715.00
Department of Health,East Sussex Healthcare NHS Trust,03/05/2011,STOCK-ASCRIBE EDGH,Pharmacy Stock,HEALTHCARE AT HOME LTD,0001383151,715.00
Department of Health,East Sussex Healthcare NHS Trust,03/05/2011,STOCK-ASCRIBE EDGH,Pharmacy Stock,HEALTHCARE AT HOME LTD,0001383180,715.00
Department of Health,East Sussex Healthcare NHS Trust,03/05/2011,STOCK-ASCRIBE EDGH,Pharmacy Stock,HEALTHCARE AT HOME LTD,0001383187,715.00
Department of Health,East Sussex Healthcare NHS Trust,03/05/2011,STOCK-ASCRIBE EDGH,Pharmacy Stock,HEALTHCARE AT HOME LTD,0001383188,715.00
Department of Health,East Sussex Healthcare NHS Trust,03/05/2011,STOCK-ASCRIBE EDGH,Pharmacy Stock,HEALTHCARE AT HOME LTD,0001383189,715.00
Department of Health,East Sussex Healthcare NHS Trust,03/05/2011,STOCK-ASCRIBE CONQUEST,Pharmacy Stock,HEALTHCARE AT HOME LTD,0001383190,715.00
Department of Health,East Sussex Healthcare NHS Trust,03/05/2011,STOCK-ASCRIBE EDGH,Pharmacy Stock,HEALTHCARE AT HOME LTD,0001383191,715.00
Department of Health,East Sussex Healthcare NHS Trust,03/05/2011,STOCK-ASCRIBE EDGH,Pharmacy Stock,HEALTHCARE AT HOME LTD,0001383192,1408.56
Department of Health,East Sussex Healthcare NHS Trust,03/05/2011,STOCK-ASCRIBE EDGH,Pharmacy Stock,HEALTHCARE AT HOME LTD,0001383202,715.00
Department of Health,East Sussex Healthcare NHS Trust,03/05/2011,STOCK-ASCRIBE EDGH,Pharmacy Stock,HEALTHCARE AT HOME LTD,0001383203,715.00
Department of Health,East Sussex Healthcare NHS Trust,03/05/2011,STOCK-ASCRIBE EDGH,Pharmacy Stock,HEALTHCARE AT HOME LTD,0001383204,704.28
Department of Health,East Sussex Healthcare NHS Trust,03/05/2011,STOCK-ASCRIBE EDGH,Pharmacy Stock,HEALTHCARE AT HOME LTD,0001383205,704.28
Department of Health,East Sussex Healthcare NHS Trust,03/05/2011,STOCK-ASCRIBE EDGH,Pharmacy Stock,HEALTHCARE AT HOME LTD,0001383206,715.00
Department of Health,East Sussex Healthcare NHS Trust,03/05/2011,STOCK-ASCRIBE EDGH,Pharmacy Stock,HEALTHCARE AT HOME LTD,0001383207,715.00
Department of Health,East Sussex Healthcare NHS Trust,03/05/2011,STOCK-ASCRIBE EDGH,Pharmacy Stock,HEALTHCARE AT HOME LTD,0001383208,715.00
Department of Health,East Sussex Healthcare NHS Trust,03/05/2011,STOCK-ASCRIBE EDGH,Pharmacy Stock,HEALTHCARE AT HOME LTD,0001383209,715.00
Department of Health,East Sussex Healthcare NHS Trust,03/05/2011,M & S EBME SERVICE CONTRACT,Anaesthetics & Surgery,NEUROTECHNICS LTD,0001410438,2344.00
Department of Health,East Sussex Healthcare NHS Trust,03/05/2011,CAPITAL EXPENDITURE,Capital,EUROVANS LTD,0001410485,4800.00
Department of Health,East Sussex Healthcare NHS Trust,03/05/2011,CAPITAL EXPENDITURE,Capital,EUROVANS LTD,0001410486,4200.00
Department of Health,East Sussex Healthcare NHS Trust,03/05/2011,CONTRACT-VEHICLE LEASING,Facilities,EURO SELF DRIVE LTD,0001410557,650.00
Department of Health,East Sussex Healthcare NHS Trust,03/05/2011,CAPITAL EXPENDITURE,Capital,SUNQUEST INFORMATION SYSTEMS (EUROPE),0001410673,12222.00
Department of Health,East Sussex Healthcare NHS Trust,03/05/2011,LAB MATERIALS - NEQAS,Clilcal Support Division,SHEFFIELD TEACHING HOSP NHS FOUNDATION T,0001410675,768.00
Department of Health,East Sussex Healthcare NHS Trust,03/05/2011,LAB MATERIALS - NEQAS,Clilcal Support Division,SHEFFIELD TEACHING HOSP NHS FOUNDATION T,0001410677,1231.00
Department of Health,East Sussex Healthcare NHS Trust,03/05/2011,TRAINING COURSE FEES-OTHER,Management & Corporate Services,COURSE FEES,0001410678,750.00
Department of Health,East Sussex Healthcare NHS Trust,03/05/2011,SEWERAGE - RATES & METERED,Facilities,SOUTHERN WATER SERVICES LTD,0001410679,6409.73
Department of Health,East Sussex Healthcare NHS Trust,03/05/2011,TRAINING COURSE FEES-OTHER,Management & Corporate Services,ROYAL COLLEGE OF SURGEONS OF ENGLAND,0001410682,690.00
Department of Health,East Sussex Healthcare NHS Trust,03/05/2011,CAPITAL EXPENDITURE,Capital,FIVE EIGHT PARTNERS LLP,0001410683,8000.00
Department of Health,East Sussex Healthcare NHS Trust,03/05/2011,ELECTRODES,Anaesthetics & Surgery,OLYMPUS KEYMED,0001410687,2165.98
Department of Health,East Sussex Healthcare NHS Trust,03/05/2011,GAS (FIRM),Facilities,TOTAL GAS & POWER LIMITED,0001410748,7601.20
Department of Health,East Sussex Healthcare NHS Trust,03/05/2011,GAS,Facilities,TOTAL GAS & POWER LIMITED,0001410750,99839.26
Department of Health,East Sussex Healthcare NHS Trust,03/05/2011,GAS,Facilities,TOTAL GAS & POWER LIMITED,0001410751,48405.25
Department of Health,East Sussex Healthcare NHS Trust,03/05/2011,GAS,Facilities,TOTAL GAS & POWER LIMITED,0001410752,4675.12
Department of Health,East Sussex Healthcare NHS Trust,03/05/2011,OTHER MISC EXPENDITURE,Management & Corporate Services,BRIGHTON & HOVE CITY TEACHING PCT,0001410754,4092.00
Department of Health,East Sussex Healthcare NHS Trust,03/05/2011,ELECTRICITY,Management & Corporate Services,SOUTHERN ELECTRIC,0001410771,908.20
Department of Health,East Sussex Healthcare NHS Trust,03/05/2011,OTHER MISC EXPENDITURE,Management & Corporate Services,BRIGHTON & HOVE CITY TEACHING PCT,0001410787,-4092.00
Department of Health,East Sussex Healthcare NHS Trust,03/05/2011,TRAINING FEES - NURSE CONT ED,Management & Corporate Services,LONDON SOUTH BANK UNIVERSITY,0001410790,1575.00
Department of Health,East Sussex Healthcare NHS Trust,03/05/2011,ELECTRICITY,Facilities,SOUTHERN ELECTRIC,0001410792,1436.71
Department of Health,East Sussex Healthcare NHS Trust,03/05/2011,HOSPITALITY,Management & Corporate Services,MISCELLANEOUS ONE-OFF PAYMENTS,0001410793,740.80
Department of Health,East Sussex Healthcare NHS Trust,03/05/2011,HIRE OF ACCOMMODATION,Management & Corporate Services,MAIDSTONE & TUNBRIDGE WELLS NHS TRUST,0001410794,500.00
Department of Health,East Sussex Healthcare NHS Trust,03/05/2011,COUNCIL TAX PAYMENTS,Facilities,HASTINGS BOROUGH COUNCIL,0001410797,3655.10
Department of Health,East Sussex Healthcare NHS Trust,03/05/2011,COUNCIL TAX PAYMENTS,Facilities,EASTBOURNE BOROUGH COUNCIL,0001410798,8861.08
Department of Health,East Sussex Healthcare NHS Trust,03/05/2011,PRIVATE AMBULANCE TRANSPORT,Facilities,M&L AMBULANCE SERVICE,0001516041,5983.86
Department of Health,East Sussex Healthcare NHS Trust,03/05/2011,DIESEL,Clilcal Support Division,ARVAL PHH LTD,0001516298,95.74
Department of Health,East Sussex Healthcare NHS Trust,03/05/2011,TRAVEL & SUBSISTENCE,Facilities,ARVAL PHH LTD,0001516298,49.00
Department of Health,East Sussex Healthcare NHS Trust,03/05/2011,PETROL,Facilities,ARVAL PHH LTD,0001516298,44.02
Department of Health,East Sussex Healthcare NHS Trust,03/05/2011,DIESEL,Facilities,ARVAL PHH LTD,0001516298,559.87
Department of Health,East Sussex Healthcare NHS Trust,03/05/2011,DIESEL,Facilities,ARVAL PHH LTD,0001516298,544.07
Department of Health,East Sussex Healthcare NHS Trust,03/05/2011,PETROL,Facilities,ARVAL PHH LTD,0001516298,153.90
Department of Health,East Sussex Healthcare NHS Trust,03/05/2011,DIESEL,Facilities,ARVAL PHH LTD,0001516298,60.00
Department of Health,East Sussex Healthcare NHS Trust,03/05/2011,COURIER SERVICES,Facilities,INTERLINK EXPRESS PARCELS LIMITED,0001516331,502.97
Department of Health,East Sussex Healthcare NHS Trust,03/05/2011,CONSULTANCY FEES,Management & Corporate Services,SOLO CONSULTANCY LTD,0001516332,8768.15
Department of Health,East Sussex Healthcare NHS Trust,03/05/2011,RENT,Facilities,THE HASTINGS CENTRE,0001516392,2500.00
Department of Health,East Sussex Healthcare NHS Trust,03/05/2011,COURIER SERVICES,Facilities,INTERLINK EXPRESS PARCELS LIMITED,0001516401,759.05
Department of Health,East Sussex Healthcare NHS Trust,03/05/2011,ADMIN & CLERICAL BAND 8A,Management & Corporate Services,HILARY J LOFT,0001516406,831.72
Department of Health,East Sussex Healthcare NHS Trust,03/05/2011,TRAVEL & SUBSISTENCE,Management & Corporate Services,HILARY J LOFT,0001516406,83.24
Department of Health,East Sussex Healthcare NHS Trust,03/05/2011,TAXI - OTHER,Facilities,SAMS PRIVATE HIRE,0001516407,593.00
Department of Health,East Sussex Healthcare NHS Trust,03/05/2011,AGENCY ANCILLARY,Facilities,SAMS PRIVATE HIRE,0001516408,560.00
Department of Health,East Sussex Healthcare NHS Trust,03/05/2011,PRIVATE AMBULANCE TRANSPORT,Facilities,WEALDEN MEDICAL SERVICES,0001516420,1627.50
Department of Health,East Sussex Healthcare NHS Trust,03/05/2011,FURNITURE & FITTINGS,Facilities,IDENTITY HOLDINGS LIMITED,0001608971,1252.80
Department of Health,East Sussex Healthcare NHS Trust,03/05/2011,LAB-CONTAINERS/BOTTLES & CAPS,Facilities,WAINS (OF TUNBRIDGE WELLS) LTD,0001609053,1379.47
Department of Health,East Sussex Healthcare NHS Trust,11/05/2011,PROSTHESES-HIP,Anaesthetics & Surgery,NHS BLOOD AND TRANSPLANT (NHSBT),0000130722,1968.82
Department of Health,East Sussex Healthcare NHS Trust,11/05/2011,NHS SUPPLY CHAIN CREDITORS,Cross Site,NHS SUPPLY CHAIN,0000130737,145274.40
Department of Health,East Sussex Healthcare NHS Trust,11/05/2011,NHS SUPPLY CHAIN CREDITORS,Cross Site,NHS SUPPLY CHAIN,0000130789,132320.46
Department of Health,East Sussex Healthcare NHS Trust,11/05/2011,BLOOD PRODUCTS - NBS ST CONTRA,Clilcal Support Division,NHS BLOOD AND TRANSPLANT (NHSBT),0000130811,77652.88
Department of Health,East Sussex Healthcare NHS Trust,11/05/2011,NHS SUPPLY CHAIN CREDITORS,Cross Site,NHS SUPPLY CHAIN,0000130843,134162.97
Department of Health,East Sussex Healthcare NHS Trust,11/05/2011,YEAR END NRVS JV GENERAL CRS,NHS Creditors,ROYAL SURREY COUNTY HOSP NHS FT,0000130984,2788.35
Department of Health,East Sussex Healthcare NHS Trust,11/05/2011,YEAR END NRVS JV GENERAL CRS,NHS Creditors,ROYAL SURREY COUNTY HOSP NHS FT,0000130985,1465.95
Department of Health,East Sussex Healthcare NHS Trust,11/05/2011,PROSTHESES-HIP,Anaesthetics & Surgery,NHS BLOOD AND TRANSPLANT (NHSBT),0000131020,924.14
Department of Health,East Sussex Healthcare NHS Trust,11/05/2011,YEAR END NRVS JV GENERAL CRS,NHS Creditors,NHS BUSINESS SERVICES AUTHORITY,0000131032,247367.92
Department of Health,East Sussex Healthcare NHS Trust,11/05/2011,YEAR END NRVS JV GENERAL CRS,NHS Creditors,MAIDSTONE & TUNBRIDGE WELLS NHS TRUST,0000131039,1858.00
Department of Health,East Sussex Healthcare NHS Trust,11/05/2011,YEAR END NRVS JV CAPITAL CRS,Capital,SUSSEX HIS,0000131073,1200.00
Department of Health,East Sussex Healthcare NHS Trust,11/05/2011,OCCUPATIONAL THERAPIST BAND 5,Clilcal Support Division,EAST SUSSEX DOWNS & WEALD PCT,0000131074,118608.70
Department of Health,East Sussex Healthcare NHS Trust,11/05/2011,YEAR END NRVS JV GENERAL CRS,NHS Creditors,MAIDSTONE & TUNBRIDGE WELLS NHS TRUST,0000131076,2856.00
Department of Health,East Sussex Healthcare NHS Trust,11/05/2011,CAPITAL EXPENDITURE,Capital,SUSSEX HIS,0000131094,2200.00
Department of Health,East Sussex Healthcare NHS Trust,11/05/2011,CAPITAL EXPENDITURE,Capital,SUSSEX HIS,0000131095,8400.00
Department of Health,East Sussex Healthcare NHS Trust,11/05/2011,CAPITAL EXPENDITURE,Capital,SUSSEX HIS,0000131096,16500.00
Department of Health,East Sussex Healthcare NHS Trust,11/05/2011,CAPITAL EXPENDITURE,Capital,SUSSEX HIS,0000131097,3118.50
Department of Health,East Sussex Healthcare NHS Trust,11/05/2011,YEAR END NRVS JV GENERAL CRS,NHS Creditors,SUSSEX HIS,0000131098,1089.00
Department of Health,East Sussex Healthcare NHS Trust,11/05/2011,YEAR END NRVS JV GENERAL CRS,NHS Creditors,KING'S COLLEGE HOSP NHS FOUNDATION TRUST,0000131117,806.00
Department of Health,East Sussex Healthcare NHS Trust,11/05/2011,YEAR END NRVS JV GENERAL CRS,NHS Creditors,GREAT ORMOND STREET HOSPITAL FOR CHILDRE,0000131159,1862.90
Department of Health,East Sussex Healthcare NHS Trust,11/05/2011,TEXTBOOKS-PURCHASE,Management & Corporate Services,PORTSMOUTH HOSPITALS NHS TRUST,0000131160,1217.46
Department of Health,East Sussex Healthcare NHS Trust,11/05/2011,COMPUTER SOFTWARE,Management & Corporate Services,PORTSMOUTH HOSPITALS NHS TRUST,0000131160,500.00
Department of Health,East Sussex Healthcare NHS Trust,11/05/2011,YEAR END NRVS JV GENERAL CRS,NHS Creditors,SUSSEX HIS,0000131162,34069.05
Department of Health,East Sussex Healthcare NHS Trust,11/05/2011,STOCK-ASCRIBE CONQUEST,Pharmacy Stock,MOORFIELDS PHARMACEUTICALS,0000131179,2148.00
Department of Health,East Sussex Healthcare NHS Trust,11/05/2011,OTHER MISC EXPENDITURE,Management & Corporate Services,SUSSEX HIS,0000131191,2281.01
Department of Health,East Sussex Healthcare NHS Trust,11/05/2011,YEAR END NRVS JV GENERAL CRS,NHS Creditors,BIO PRODUCTS LABORATORY,0000131195,14018.00
Department of Health,East Sussex Healthcare NHS Trust,11/05/2011,BLOOD PRODUCTS - NBS OTHER,Clilcal Support Division,NHS BLOOD AND TRANSPLANT (NHSBT),0000131197,3361.59
Department of Health,East Sussex Healthcare NHS Trust,11/05/2011,BLOOD PRODUCTS - NBS OTHER,Clilcal Support Division,NHS BLOOD AND TRANSPLANT (NHSBT),0000131198,2629.74
Department of Health,East Sussex Healthcare NHS Trust,11/05/2011,BLOOD PRODUCTS - NBS ST CONTRA,Clilcal Support Division,NHS BLOOD AND TRANSPLANT (NHSBT),0000131200,67856.99
Department of Health,East Sussex Healthcare NHS Trust,11/05/2011,YEAR END NRVS JV GENERAL CRS,NHS Creditors,EAST SUSSEX DOWNS & WEALD PCT,0000131201,39537.00
Department of Health,East Sussex Healthcare NHS Trust,11/05/2011,YEAR END NRVS JV GENERAL CRS,NHS Creditors,NHS BLOOD AND TRANSPLANT (NHSBT),0000131207,526.97
Department of Health,East Sussex Healthcare NHS Trust,11/05/2011,YEAR END NRVS JV GENERAL CRS,NHS Creditors,MOORFIELDS PHARMACEUTICALS,0000131212,780.00
Department of Health,East Sussex Healthcare NHS Trust,11/05/2011,YEAR END NRVS JV GENERAL CRS,NHS Creditors,FRIMLEY PARK HOSPITAL NHS FOUND. TRUST,0000131259,666.63
Department of Health,East Sussex Healthcare NHS Trust,11/05/2011,YEAR END NRVS JV GENERAL CRS,NHS Creditors,UNIVERSITY COLLEGE LONDON NHS FOUNDATION,0000131265,840.18
Department of Health,East Sussex Healthcare NHS Trust,11/05/2011,YEAR END NRVS JV GENERAL CRS,NHS Creditors,EAST KENT HOSPITALS UNIVERSITY NHS FT,0000131297,883.45
Department of Health,East Sussex Healthcare NHS Trust,11/05/2011,YEAR END NRVS JV GENERAL CRS,NHS Creditors,KING'S COLLEGE HOSP NHS FOUNDATION TRUST,0000131301,2615.00
Department of Health,East Sussex Healthcare NHS Trust,11/05/2011,YEAR END NRVS JV GENERAL CRS,NHS Creditors,KING'S COLLEGE HOSP NHS FOUNDATION TRUST,0000131303,561.00
Department of Health,East Sussex Healthcare NHS Trust,11/05/2011,YEAR END NRVS JV GENERAL CRS,NHS Creditors,EAST SUSSEX DOWNS & WEALD PCT,0000131305,-3823.58
Department of Health,East Sussex Healthcare NHS Trust,11/05/2011,MAINT-TOSHIBA,Clilcal Support Division,NHS SUPPLY CHAIN,0000131324,37775.82
Department of Health,East Sussex Healthcare NHS Trust,11/05/2011,CONQ RAD X-RAY IGE MED,Clilcal Support Division,NHS SUPPLY CHAIN,0000131326,95736.16
Department of Health,East Sussex Healthcare NHS Trust,11/05/2011,SR GUYS & ST THOMAS FOUNDATION,Clilcal Support Division,GUY'S & ST THOMAS' NHS FOUNDATION TRUST,0000131349,979.00
Department of Health,East Sussex Healthcare NHS Trust,11/05/2011,SR GUYS & ST THOMAS FOUNDATION,Clilcal Support Division,GUY'S & ST THOMAS' NHS FOUNDATION TRUST,0000131349,4196.00
Department of Health,East Sussex Healthcare NHS Trust,11/05/2011,YEAR END NRVS JV GENERAL CRS,NHS Creditors,MAIDSTONE & TUNBRIDGE WELLS NHS TRUST,0000131378,-2275.00
Department of Health,East Sussex Healthcare NHS Trust,11/05/2011,AGENCY NURSE - QUALIFIED,Anaesthetics & Surgery,MAYDAY HEALTHCARE PLC,0000267850,568.22
Department of Health,East Sussex Healthcare NHS Trust,11/05/2011,AGENCY TECHNICIAN,Medicine & A&E,PULSE HEALTHCARE SERVICES LTD,0000268551,1696.98
Department of Health,East Sussex Healthcare NHS Trust,11/05/2011,AGENCY NURSE - QUALIFIED,Anaesthetics & Surgery,MAYDAY HEALTHCARE PLC,0000269214,1086.48
Department of Health,East Sussex Healthcare NHS Trust,11/05/2011,AGENCY MLSO,Clilcal Support Division,LABMED,0000269244,1685.76
Department of Health,East Sussex Healthcare NHS Trust,11/05/2011,AGENCY ANCILLARY,Facilities,INTERWORK RECRUITMENT CONSULTANTS LTD,0000269671,593.36
Department of Health,East Sussex Healthcare NHS Trust,11/05/2011,AGENCY ANCILLARY,Facilities,INTERWORK RECRUITMENT CONSULTANTS LTD,0000269841,3836.04
Department of Health,East Sussex Healthcare NHS Trust,11/05/2011,AGENCY TECHNICIAN,Medicine & A&E,YOUR WORLD RECRUITMENT LTD,0000269935,1875.46
Department of Health,East Sussex Healthcare NHS Trust,11/05/2011,AGENCY TECHNICIAN,Medicine & A&E,YOUR WORLD RECRUITMENT LTD,0000270031,1218.79
Department of Health,East Sussex Healthcare NHS Trust,11/05/2011,AGENCY SPEECH THERAPIST,Clilcal Support Division,YOUR WORLD RECRUITMENT LTD,0000270032,1263.24
Department of Health,East Sussex Healthcare NHS Trust,11/05/2011,AGENCY TECHNICIAN,Medicine & A&E,YOUR WORLD RECRUITMENT LTD,0000270033,2096.83
Department of Health,East Sussex Healthcare NHS Trust,11/05/2011,AGENCY TECHNICIAN,Medicine & A&E,YOUR WORLD RECRUITMENT LTD,0000270034,2210.83
Department of Health,East Sussex Healthcare NHS Trust,11/05/2011,AGENCY TECHNICIAN,Medicine & A&E,YOUR WORLD RECRUITMENT LTD,0000270035,1514.70
Department of Health,East Sussex Healthcare NHS Trust,11/05/2011,AGENCY SPEECH THERAPIST,Clilcal Support Division,YOUR WORLD RECRUITMENT LTD,0000270036,947.44
Department of Health,East Sussex Healthcare NHS Trust,11/05/2011,AGENCY MLSO,Clilcal Support Division,LABMED,0000270050,1424.26
Department of Health,East Sussex Healthcare NHS Trust,11/05/2011,AGENCY MLSO,Clilcal Support Division,LABMED,0000270051,925.84
Department of Health,East Sussex Healthcare NHS Trust,11/05/2011,AGENCY MLSO,Clilcal Support Division,LABMED,0000270052,1290.24
Department of Health,East Sussex Healthcare NHS Trust,11/05/2011,PROVISIONS,Facilities,MRS GILL'S KITCHEN LTD,0000270079,666.00
Department of Health,East Sussex Healthcare NHS Trust,11/05/2011,PROVISIONS,Facilities,DAIRY CREST LTD,0000270087,1847.99
Department of Health,East Sussex Healthcare NHS Trust,11/05/2011,HARDWARE & CROCKERY,Facilities,BUNZL CATERING SUPPLIES,0000270104,432.40
Department of Health,East Sussex Healthcare NHS Trust,11/05/2011,PROVISIONS,Facilities,ANCHOR CATERING LTD,0000270129,1012.10
Department of Health,East Sussex Healthcare NHS Trust,11/05/2011,AGENCY SHO - LOCUM,Medicine & A&E,MEDIPLACEMENTS,0000270203,2297.57
Department of Health,East Sussex Healthcare NHS Trust,11/05/2011,PROVISIONS,Facilities,DAIRY CREST LTD,0000270258,1685.99
Department of Health,East Sussex Healthcare NHS Trust,11/05/2011,HARDWARE & CROCKERY,Facilities,TRI-STAR PACKAGING SUPPLIES LTD,0000270261,1833.40
Department of Health,East Sussex Healthcare NHS Trust,11/05/2011,AGENCY SPECIALIST REG,Medicine & A&E,THE ID GROUP LTD (MEDICAL),0000270297,3090.02
Department of Health,East Sussex Healthcare NHS Trust,11/05/2011,AGENCY CONSULTANT,Medicine & A&E,MEDSOL HEALTHCARE SERVICES LTD,0000270366,765.00
Department of Health,East Sussex Healthcare NHS Trust,11/05/2011,AGENCY MLSO,Clilcal Support Division,ATLANTIS MEDICAL LTD,0000270425,1212.75
Department of Health,East Sussex Healthcare NHS Trust,11/05/2011,AGENCY SPECIALIST REG,Medicine & A&E,TLC - THE LOCUM CONSULTANCY,0000270428,3528.00
Department of Health,East Sussex Healthcare NHS Trust,11/05/2011,AGENCY - GENERAL GRADES,Facilities,INTERWORK RECRUITMENT CONSULTANTS LTD,0000270453,962.82
Department of Health,East Sussex Healthcare NHS Trust,11/05/2011,AGENCY MLSO,Clilcal Support Division,PULSE HEALTHCARE SERVICES LTD,0000270470,813.78
Department of Health,East Sussex Healthcare NHS Trust,11/05/2011,AGENCY MLSO,Clilcal Support Division,PULSE HEALTHCARE SERVICES LTD,0000270471,813.78
Department of Health,East Sussex Healthcare NHS Trust,11/05/2011,AGENCY ANCILLARY,Facilities,INTERWORK RECRUITMENT CONSULTANTS LTD,0000270500,929.07
Department of Health,East Sussex Healthcare NHS Trust,11/05/2011,AGENCY - GENERAL GRADES,Facilities,INTERWORK RECRUITMENT CONSULTANTS LTD,0000270617,962.82
Department of Health,East Sussex Healthcare NHS Trust,11/05/2011,AGENCY SHO - LOCUM,Medicine & A&E,MEDACS HEALTHCARE SERVICES LTD,0000270625,2489.86
Department of Health,East Sussex Healthcare NHS Trust,11/05/2011,AGENCY SPECIALIST REG,Medicine & A&E,MEDACS HEALTHCARE SERVICES LTD,0000270626,3446.86
Department of Health,East Sussex Healthcare NHS Trust,11/05/2011,AGENCY - GENERAL GRADES,Facilities,INTERWORK RECRUITMENT CONSULTANTS LTD,0000270652,716.40
Department of Health,East Sussex Healthcare NHS Trust,11/05/2011,AGENCY ANCILLARY,Management & Corporate Services,INTERWORK RECRUITMENT CONSULTANTS LTD,0000270658,996.11
Department of Health,East Sussex Healthcare NHS Trust,11/05/2011,AGENCY ANCILLARY,Facilities,INTERWORK RECRUITMENT CONSULTANTS LTD,0000270661,819.54
Department of Health,East Sussex Healthcare NHS Trust,11/05/2011,AGENCY MTO,Anaesthetics & Surgery,ORION LOCUMS LTD,0000270662,1305.60
Department of Health,East Sussex Healthcare NHS Trust,11/05/2011,SERVICES PROVIDED TO NON NHS,Management & Corporate Services,ORION LOCUMS LTD,0000270717,1477.97
Department of Health,East Sussex Healthcare NHS Trust,11/05/2011,AGENCY MTO,Anaesthetics & Surgery,ORION LOCUMS LTD,0000270721,931.20
Department of Health,East Sussex Healthcare NHS Trust,11/05/2011,AGENCY MTO,Anaesthetics & Surgery,ORION LOCUMS LTD,0000270722,972.58
Department of Health,East Sussex Healthcare NHS Trust,11/05/2011,AGENCY MTO,Anaesthetics & Surgery,ORION LOCUMS LTD,0000270723,1213.85
Department of Health,East Sussex Healthcare NHS Trust,11/05/2011,AGENCY NURSE - QUALIFIED,Anaesthetics & Surgery,ORION LOCUMS LTD,0000270724,1988.22
Department of Health,East Sussex Healthcare NHS Trust,11/05/2011,AGENCY MTO,Anaesthetics & Surgery,ORION LOCUMS LTD,0000270725,748.80
Department of Health,East Sussex Healthcare NHS Trust,11/05/2011,AGENCY ANCILLARY,Anaesthetics & Surgery,ORION LOCUMS LTD,0000270726,1512.97
Department of Health,East Sussex Healthcare NHS Trust,11/05/2011,AGENCY NURSE - QUALIFIED,Anaesthetics & Surgery,ORION LOCUMS LTD,0000270727,1139.54
Department of Health,East Sussex Healthcare NHS Trust,11/05/2011,SERVICES PROVIDED TO NON NHS,Management & Corporate Services,ORION LOCUMS LTD,0000270729,-1189.69
Department of Health,East Sussex Healthcare NHS Trust,11/05/2011,SERVICES PROVIDED TO NON NHS,Management & Corporate Services,ORION LOCUMS LTD,0000270730,-1511.34
Department of Health,East Sussex Healthcare NHS Trust,11/05/2011,AGENCY MTO,Anaesthetics & Surgery,ORION LOCUMS LTD,0000270731,-1618.50
Department of Health,East Sussex Healthcare NHS Trust,11/05/2011,SERVICES PROVIDED TO NON NHS,Management & Corporate Services,TLC - THE LOCUM CONSULTANCY,0000270805,2340.00
Department of Health,East Sussex Healthcare NHS Trust,11/05/2011,SERVICES PROVIDED TO NON NHS,Management & Corporate Services,TLC - THE LOCUM CONSULTANCY,0000270827,-2520.00
Department of Health,East Sussex Healthcare NHS Trust,11/05/2011,M & S EQUIP REPAIR MATERIALS,Anaesthetics & Surgery,KARL STORZ  ENDOSCOPY (UK) LTD,0000355497,543.50
Department of Health,East Sussex Healthcare NHS Trust,11/05/2011,ENGINEER CONTRACT - REPAIR,Facilities,BURTONWOOD GENERATOR & SWITCHGEAR SERVS,0000355870,839.00
Department of Health,East Sussex Healthcare NHS Trust,11/05/2011,M & S EQUIP REPAIR MATERIALS,Anaesthetics & Surgery,GUYMARK UK LIMITED,0000355875,745.00
Department of Health,East Sussex Healthcare NHS Trust,11/05/2011,ENGINEERING INSURANCE,Management & Corporate Services,ZURICH MUNICIPAL,0000355886,29921.39
Department of Health,East Sussex Healthcare NHS Trust,11/05/2011,CAPITAL EXPENDITURE,Capital,AXIS ELEVATORS LTD,0000355912,1240.00
Department of Health,East Sussex Healthcare NHS Trust,11/05/2011,PROFESSIONAL FEES,Facilities,NJT CONSULTING & DESIGN LTD,0000355914,5380.00
Department of Health,East Sussex Healthcare NHS Trust,11/05/2011,PROFESSIONAL FEES,Facilities,NJT CONSULTING & DESIGN LTD,0000355914,5380.00
Department of Health,East Sussex Healthcare NHS Trust,11/05/2011,MEDICAL GAS - VIE USE,Facilities,BOC (MANCHESTER)LTD,0000355920,696.87
Department of Health,East Sussex Healthcare NHS Trust,11/05/2011,TELEPHONES-WIRING & EQUIPMENT,Facilities,MAINTEL EUROPE LIMITED,0000355935,620.00
Department of Health,East Sussex Healthcare NHS Trust,11/05/2011,PROFESSIONAL FEES,Facilities,GRAY SWAIN DRAUGHTING,0000355936,4014.00
Department of Health,East Sussex Healthcare NHS Trust,11/05/2011,SC-CONQUEST UNIT WORKS,Facilities,STATIC SYSTEMS GROUP PLC,0000355970,665.46
Department of Health,East Sussex Healthcare NHS Trust,11/05/2011,CONTRACT ENGINEERING MAINT,Facilities,FRONTIER-PITTS LTD,0000356000,558.00
Department of Health,East Sussex Healthcare NHS Trust,11/05/2011,CAPITAL EXPENDITURE,Capital,IMAGE CONTRACT FLOORING LTD,0000356047,19841.40
Department of Health,East Sussex Healthcare NHS Trust,11/05/2011,CAPITAL EXPENDITURE,Capital,ELLIS BUILDING CONTRACTORS,0000356052,2473.39
Department of Health,East Sussex Healthcare NHS Trust,11/05/2011,CAPITAL EXPENDITURE,Capital,BOOKER & BEST LIMITED,0000356079,648.32
Department of Health,East Sussex Healthcare NHS Trust,11/05/2011,CAPITAL EXPENDITURE,Capital,BOOKER & BEST LIMITED,0000356106,4200.00
Department of Health,East Sussex Healthcare NHS Trust,11/05/2011,CAPITAL EXPENDITURE,Capital,BOOKER & BEST LIMITED,0000356108,121968.32
Department of Health,East Sussex Healthcare NHS Trust,11/05/2011,CAPITAL EXPENDITURE,Capital,BOOKER & BEST LIMITED,0000356129,24000.00
Department of Health,East Sussex Healthcare NHS Trust,11/05/2011,SURGICAL INSTRUMENTS,Anaesthetics & Surgery,BOSTON SCIENTIFIC LTD,0000487017,6000.00
Department of Health,East Sussex Healthcare NHS Trust,11/05/2011,FURNITURE & FITTINGS,Management & Corporate Services,J MATTISON,0000487641,4302.54
Department of Health,East Sussex Healthcare NHS Trust,11/05/2011,MISC EQUIPMENT & MATERIALS,Management & Corporate Services,GALT EDUCATIONAL & PRE-SCHOOL,0000488045,839.88
Department of Health,East Sussex Healthcare NHS Trust,11/05/2011,PRE-STERILE COMMERCIAL PACKS,Anaesthetics & Surgery,MOLNLYCKE HEALTHCARE,0000488287,1026.00
Department of Health,East Sussex Healthcare NHS Trust,11/05/2011,PROSTHESES-HIP,Anaesthetics & Surgery,DEPUY INTERNATIONAL LTD (ORTHOPAEDIC),0000488300,11025.72
Department of Health,East Sussex Healthcare NHS Trust,11/05/2011,NATIONAL JOINT REGISTRY LEVY,Anaesthetics & Surgery,DEPUY INTERNATIONAL LTD (ORTHOPAEDIC),0000488300,20.00
Department of Health,East Sussex Healthcare NHS Trust,11/05/2011,PROSTHESES-HIP,Anaesthetics & Surgery,DEPUY INTERNATIONAL LTD (ORTHOPAEDIC),0000488303,12166.33
Department of Health,East Sussex Healthcare NHS Trust,11/05/2011,PHOTOCOPIER HIRE,Management & Corporate Services,RICOH UK LTD,0000488340,456.54
Department of Health,East Sussex Healthcare NHS Trust,11/05/2011,CLEANING MATERIALS,Facilities,FASTNET TAPES LTD,0000488445,532.80
Department of Health,East Sussex Healthcare NHS Trust,11/05/2011,PROSTHESIS - LENS,Anaesthetics & Surgery,ALCON LABORATORIES (UK) LTD,0000488446,1256.40
Department of Health,East Sussex Healthcare NHS Trust,11/05/2011,PROSTHESIS - LENS,Anaesthetics & Surgery,ALCON LABORATORIES (UK) LTD,0000488447,1107.60
Department of Health,East Sussex Healthcare NHS Trust,11/05/2011,M&S GENERAL SUPPLIES-OTHER,Anaesthetics & Surgery,ARTHROCARE UK LIMITED,0000488448,501.00
Department of Health,East Sussex Healthcare NHS Trust,11/05/2011,GENERAL LAB. CONSUMABLES,Clilcal Support Division,INSTRUMENTATION LABORATORIES UK LTD,0000488453,903.50
Department of Health,East Sussex Healthcare NHS Trust,11/05/2011,PROSTHESES-OTHER,Anaesthetics & Surgery,B BRAUN MEDICAL LTD,0000488457,18000.00
Department of Health,East Sussex Healthcare NHS Trust,11/05/2011,CARDIOLOGY STENTS,Medicine & A&E,HEXACATH LTD,0000488463,556.80
Department of Health,East Sussex Healthcare NHS Trust,11/05/2011,CARDIOLOGY STENTS,Medicine & A&E,HEXACATH LTD,0000488464,556.80
Department of Health,East Sussex Healthcare NHS Trust,11/05/2011,CARDIOLOGY CATHETERS,Anaesthetics & Surgery,PULSION MEDICAL UK LTD,0000488470,1791.96
Department of Health,East Sussex Healthcare NHS Trust,11/05/2011,CARDIOLOGY STENTS,Medicine & A&E,MEDTRONIC LTD,0000488477,540.00
Department of Health,East Sussex Healthcare NHS Trust,11/05/2011,CARDIOLOGY CATHETERS,Medicine & A&E,ST JUDE MEDICAL UK LIMITED,0000488479,1998.72
Department of Health,East Sussex Healthcare NHS Trust,11/05/2011,INTERVENTIONAL DISPOSABLES,Medicine & A&E,ABBOTT VASCULAR,0000488490,1080.00
Department of Health,East Sussex Healthcare NHS Trust,11/05/2011,CARDIOLOGY CATHETERS,Medicine & A&E,ABBOTT VASCULAR,0000488490,462.00
Department of Health,East Sussex Healthcare NHS Trust,11/05/2011,CARDIOLOGY STENTS,Medicine & A&E,ABBOTT VASCULAR,0000488491,1350.00
Department of Health,East Sussex Healthcare NHS Trust,11/05/2011,PROSTHESES-HIP,Anaesthetics & Surgery,DEPUY INTERNATIONAL LTD (ORTHOPAEDIC),0000488492,569.40
Department of Health,East Sussex Healthcare NHS Trust,11/05/2011,PROSTHESES-HIP,Anaesthetics & Surgery,DEPUY INTERNATIONAL LTD (ORTHOPAEDIC),0000488493,611.28
Department of Health,East Sussex Healthcare NHS Trust,11/05/2011,M&S GENERAL SUPPLIES-OTHER,Facilities,MOLNLYCKE HEALTHCARE,0000488518,560.43
Department of Health,East Sussex Healthcare NHS Trust,11/05/2011,CARDIOLOGY STENTS,Medicine & A&E,BOSTON SCIENTIFIC LTD,0000488523,1164.00
Department of Health,East Sussex Healthcare NHS Trust,11/05/2011,PROCEDURE PACKS,Anaesthetics & Surgery,SD HEALTHCARE LTD,0000488530,986.40
Department of Health,East Sussex Healthcare NHS Trust,11/05/2011,M&S EQUIPMENT - OTHER,Medicine & A&E,HENLEYS MEDICAL SUPPLIES LTD,0000488537,547.80
Department of Health,East Sussex Healthcare NHS Trust,11/05/2011,CARDIOLOGY CATHETERS,Facilities,BARD LTD,0000488540,506.40
Department of Health,East Sussex Healthcare NHS Trust,11/05/2011,M&S GENERAL SUPPLIES-OTHER,Anaesthetics & Surgery,ARTHROCARE UK LIMITED,0000488546,663.00
Department of Health,East Sussex Healthcare NHS Trust,11/05/2011,CARDIOLOGY STENTS,Clilcal Support Division,ABBOTT VASCULAR,0000488552,720.00
Department of Health,East Sussex Healthcare NHS Trust,11/05/2011,PRE-STERILE COMMERCIAL PACKS,Anaesthetics & Surgery,MOLNLYCKE HEALTHCARE,0000488557,205.20
Department of Health,East Sussex Healthcare NHS Trust,11/05/2011,STAFF UNIFORMS,Anaesthetics & Surgery,MOLNLYCKE HEALTHCARE,0000488557,230.72
Department of Health,East Sussex Healthcare NHS Trust,11/05/2011,DISPOSABLE DRAPES,Anaesthetics & Surgery,MOLNLYCKE HEALTHCARE,0000488557,547.01
Department of Health,East Sussex Healthcare NHS Trust,11/05/2011,PRINTING/PRINTED MATERIALS,Anaesthetics & Surgery,COLLECTOR SET PRINTERS,0000488559,532.62
Department of Health,East Sussex Healthcare NHS Trust,11/05/2011,BILIARY STENTS,Clilcal Support Division,PYRAMED LIMITED,0000488560,840.00
Department of Health,East Sussex Healthcare NHS Trust,11/05/2011,INTERVENTIONAL DISPOSABLES,Medicine & A&E,ST JUDE MEDICAL UK LIMITED,0000488571,2892.00
Department of Health,East Sussex Healthcare NHS Trust,11/05/2011,PROSTHESES-KNEES,Anaesthetics & Surgery,BIOMET EUROPE,0000488572,2010.00
Department of Health,East Sussex Healthcare NHS Trust,11/05/2011,NATIONAL JOINT REGISTRY LEVY,Anaesthetics & Surgery,BIOMET EUROPE,0000488572,20.00
Department of Health,East Sussex Healthcare NHS Trust,11/05/2011,M&S EQUIPMENT - OTHER,Anaesthetics & Surgery,MELYD MEDICAL LTD,0000488574,5168.00
Department of Health,East Sussex Healthcare NHS Trust,11/05/2011,"BOOKS, JOURNALS & SUBCRIPTIONS",Management & Corporate Services,EBSCO,0000488586,25614.74
Department of Health,East Sussex Healthcare NHS Trust,11/05/2011,LOANER KITS - HIRE CHARGE,Anaesthetics & Surgery,SMITH & NEPHEW ORTHOPAEDICS LTD,0000488590,810.00
Department of Health,East Sussex Healthcare NHS Trust,11/05/2011,PROSTHESES-OTHER,Anaesthetics & Surgery,SMITH & NEPHEW ORTHOPAEDICS LTD,0000488590,2357.75
Department of Health,East Sussex Healthcare NHS Trust,11/05/2011,LOANER KITS - HIRE CHARGE,Anaesthetics & Surgery,SMITH & NEPHEW ORTHOPAEDICS LTD,0000488591,1002.00
Department of Health,East Sussex Healthcare NHS Trust,11/05/2011,PROSTHESES-OTHER,Anaesthetics & Surgery,SMITH & NEPHEW ORTHOPAEDICS LTD,0000488591,6323.14
Department of Health,East Sussex Healthcare NHS Trust,11/05/2011,CPAP VENTILATOR,Anaesthetics & Surgery,RESMED (UK) LTD,0000488592,2016.00
Department of Health,East Sussex Healthcare NHS Trust,11/05/2011,M&S GENERAL SUPPLIES-OTHER,Anaesthetics & Surgery,RESMED (UK) LTD,0000488592,462.00
Department of Health,East Sussex Healthcare NHS Trust,11/05/2011,CPAP VENTILATOR,Anaesthetics & Surgery,RESMED (UK) LTD,0000488593,2016.00
Department of Health,East Sussex Healthcare NHS Trust,11/05/2011,M&S GENERAL SUPPLIES-OTHER,Anaesthetics & Surgery,RESMED (UK) LTD,0000488593,462.00
Department of Health,East Sussex Healthcare NHS Trust,11/05/2011,CLEANING MATERIALS,Facilities,GV HEALTH LTD,0000488596,2147.04
Department of Health,East Sussex Healthcare NHS Trust,11/05/2011,MONOVETTE CONSUMABLES,Clilcal Support Division,GREINER BIO-ONE LTD,0000488597,2550.85
Department of Health,East Sussex Healthcare NHS Trust,11/05/2011,LOANER KITS - HIRE CHARGE,Anaesthetics & Surgery,B BRAUN MEDICAL LTD,0000488598,360.00
Department of Health,East Sussex Healthcare NHS Trust,11/05/2011,PROSTHESES-HIP,Anaesthetics & Surgery,B BRAUN MEDICAL LTD,0000488598,6570.00
Department of Health,East Sussex Healthcare NHS Trust,11/05/2011,LOANER KITS - HIRE CHARGE,Anaesthetics & Surgery,MEDTRONIC LTD,0000488600,438.00
Department of Health,East Sussex Healthcare NHS Trust,11/05/2011,PROSTHESES-OTHER,Anaesthetics & Surgery,MEDTRONIC LTD,0000488600,2040.00
Department of Health,East Sussex Healthcare NHS Trust,11/05/2011,CARDIOLOGY STENTS,Medicine & A&E,MEDTRONIC LTD,0000488601,1080.00
Department of Health,East Sussex Healthcare NHS Trust,11/05/2011,CARDIOLOGY CATHETERS,Medicine & A&E,PYRAMED LIMITED,0000488608,1752.00
Department of Health,East Sussex Healthcare NHS Trust,11/05/2011,PROSTHESES-HIP,Anaesthetics & Surgery,DEPUY INTERNATIONAL LTD (ORTHOPAEDIC),0000488611,4635.12
Department of Health,East Sussex Healthcare NHS Trust,11/05/2011,NATIONAL JOINT REGISTRY LEVY,Anaesthetics & Surgery,DEPUY INTERNATIONAL LTD (ORTHOPAEDIC),0000488611,40.01
Department of Health,East Sussex Healthcare NHS Trust,11/05/2011,FURNITURE & FITTINGS,Womens & Childrens,GDHA (LEC DOMESTIC),0000488613,539.93
Department of Health,East Sussex Healthcare NHS Trust,11/05/2011,GENERAL LAB. CONSUMABLES,Clilcal Support Division,INSTRUMENTATION LABORATORIES UK LTD,0000488624,898.75
Department of Health,East Sussex Healthcare NHS Trust,11/05/2011,GENERAL LAB. CONSUMABLES,Clilcal Support Division,OXOID LIMITED,0000488634,360.09
Department of Health,East Sussex Healthcare NHS Trust,11/05/2011,OTHER MEDIA,Clilcal Support Division,OXOID LIMITED,0000488634,408.85
Department of Health,East Sussex Healthcare NHS Trust,11/05/2011,CAPITAL EXPENDITURE,Capital,DRAEGER MEDICAL UK LTD,0000488662,12533.56
Department of Health,East Sussex Healthcare NHS Trust,11/05/2011,CARDIOLOGY CATHETERS,Medicine & A&E,BOSTON SCIENTIFIC LTD,0000488700,594.00
Department of Health,East Sussex Healthcare NHS Trust,11/05/2011,CARDIOLOGY STENTS,Medicine & A&E,BOSTON SCIENTIFIC LTD,0000488701,582.00
Department of Health,East Sussex Healthcare NHS Trust,11/05/2011,INTERVENTIONAL DISPOSABLES,Medicine & A&E,BOSTON SCIENTIFIC LTD,0000488702,240.00
Department of Health,East Sussex Healthcare NHS Trust,11/05/2011,CARDIOLOGY CATHETERS,Medicine & A&E,BOSTON SCIENTIFIC LTD,0000488702,900.00
Department of Health,East Sussex Healthcare NHS Trust,11/05/2011,LAB MATERIALS - IMMULITE,Clilcal Support Division,SIEMENS HEALTHCARE DIAGNOSTICS LTD,0000488725,1047.12
Department of Health,East Sussex Healthcare NHS Trust,11/05/2011,LAB MATERIALS - IMMULITE,Clilcal Support Division,SIEMENS HEALTHCARE DIAGNOSTICS LTD,0000488726,3398.76
Department of Health,East Sussex Healthcare NHS Trust,11/05/2011,LAB MATERIALS - IMMULITE,Clilcal Support Division,SIEMENS HEALTHCARE DIAGNOSTICS LTD,0000488727,866.33
Department of Health,East Sussex Healthcare NHS Trust,11/05/2011,MONOVETTE CONSUMABLES,Clilcal Support Division,GREINER BIO-ONE LTD,0000488729,3636.26
Department of Health,East Sussex Healthcare NHS Trust,11/05/2011,MONOVETTE CONSUMABLES,Clilcal Support Division,GREINER BIO-ONE LTD,0000488730,2755.76
Department of Health,East Sussex Healthcare NHS Trust,11/05/2011,M&S EQUIPMENT - OTHER,Facilities,BENMOR MEDICAL LTD,0000488744,1194.00
Department of Health,East Sussex Healthcare NHS Trust,11/05/2011,PROSTHESES-OTHER,Anaesthetics & Surgery,B BRAUN MEDICAL LTD,0000488748,860.15
Department of Health,East Sussex Healthcare NHS Trust,11/05/2011,M&S GENERAL SUPPLIES-OTHER,Anaesthetics & Surgery,HAEMONETICS LTD,0000488750,653.95
Department of Health,East Sussex Healthcare NHS Trust,11/05/2011,BILIARY STENTS,Clilcal Support Division,PYRAMED LIMITED,0000488761,744.00
Department of Health,East Sussex Healthcare NHS Trust,11/05/2011,PROCEDURE PACKS,Anaesthetics & Surgery,SD HEALTHCARE LTD,0000488762,500.40
Department of Health,East Sussex Healthcare NHS Trust,11/05/2011,SURGICAL INSTRUMENTS,Anaesthetics & Surgery,BIOMET EUROPE,0000488775,1188.00
Department of Health,East Sussex Healthcare NHS Trust,11/05/2011,PROSTHESES-KNEES,Anaesthetics & Surgery,BIOMET EUROPE,0000488776,1863.90
Department of Health,East Sussex Healthcare NHS Trust,11/05/2011,NATIONAL JOINT REGISTRY LEVY,Anaesthetics & Surgery,BIOMET EUROPE,0000488776,20.01
Department of Health,East Sussex Healthcare NHS Trust,11/05/2011,PROSTHESES-KNEES,Anaesthetics & Surgery,BIOMET EUROPE,0000488777,588.00
Department of Health,East Sussex Healthcare NHS Trust,11/05/2011,PROSTHESES-OTHER,Anaesthetics & Surgery,BIOMET EUROPE,0000488778,1157.10
Department of Health,East Sussex Healthcare NHS Trust,11/05/2011,M&S GENERAL SUPPLIES-OTHER,Anaesthetics & Surgery,BIOMET EUROPE,0000488779,273.60
Department of Health,East Sussex Healthcare NHS Trust,11/05/2011,SURGICAL INSTRUMENTS,Anaesthetics & Surgery,BIOMET EUROPE,0000488779,118.80
Department of Health,East Sussex Healthcare NHS Trust,11/05/2011,PROSTHESES-HIP,Anaesthetics & Surgery,BIOMET EUROPE,0000488779,212.40
Department of Health,East Sussex Healthcare NHS Trust,11/05/2011,PROSTHESES-KNEES,Anaesthetics & Surgery,BIOMET EUROPE,0000488779,4020.00
Department of Health,East Sussex Healthcare NHS Trust,11/05/2011,NATIONAL JOINT REGISTRY LEVY,Anaesthetics & Surgery,BIOMET EUROPE,0000488779,60.01
Department of Health,East Sussex Healthcare NHS Trust,11/05/2011,M&S GENERAL SUPPLIES-OTHER,Anaesthetics & Surgery,STRYKER UK,0000488819,357.36
Department of Health,East Sussex Healthcare NHS Trust,11/05/2011,SURGICAL INSTRUMENTS,Anaesthetics & Surgery,STRYKER UK,0000488819,876.30
Department of Health,East Sussex Healthcare NHS Trust,11/05/2011,PROSTHESES-OTHER,Anaesthetics & Surgery,STRYKER UK,0000488819,3963.90
Department of Health,East Sussex Healthcare NHS Trust,11/05/2011,M&S GENERAL SUPPLIES-OTHER,Anaesthetics & Surgery,STRYKER UK,0000488820,2332.80
Department of Health,East Sussex Healthcare NHS Trust,11/05/2011,PROSTHESES-HIP,Anaesthetics & Surgery,STRYKER UK,0000488821,10755.14
Department of Health,East Sussex Healthcare NHS Trust,11/05/2011,PROSTHESES-OTHER,Anaesthetics & Surgery,STRYKER UK,0000488821,217.40
Department of Health,East Sussex Healthcare NHS Trust,11/05/2011,NATIONAL JOINT REGISTRY LEVY,Anaesthetics & Surgery,STRYKER UK,0000488821,60.00
Department of Health,East Sussex Healthcare NHS Trust,11/05/2011,CAPITAL EXPENDITURE,Capital,AMICUS ITS,0000488844,2400.00
Department of Health,East Sussex Healthcare NHS Trust,11/05/2011,GENERAL LAB. CONSUMABLES,Clilcal Support Division,ALERE LTD,0000488948,334.86
Department of Health,East Sussex Healthcare NHS Trust,11/05/2011,GENERAL CHEMICALS,Clilcal Support Division,ALERE LTD,0000488948,321.50
Department of Health,East Sussex Healthcare NHS Trust,11/05/2011,SEROLOGY REAGENTS,Clilcal Support Division,ALERE LTD,0000488948,2888.84
Department of Health,East Sussex Healthcare NHS Trust,11/05/2011,PROSTHESES-HIP,Anaesthetics & Surgery,STRYKER UK,0000488959,596.40
Department of Health,East Sussex Healthcare NHS Trust,11/05/2011,M&S GENERAL SUPPLIES-OTHER,Anaesthetics & Surgery,STRYKER UK,0000488961,777.60
Department of Health,East Sussex Healthcare NHS Trust,11/05/2011,PROSTHESES-HIP,Anaesthetics & Surgery,STRYKER UK,0000488962,594.00
Department of Health,East Sussex Healthcare NHS Trust,11/05/2011,NATIONAL JOINT REGISTRY LEVY,Anaesthetics & Surgery,STRYKER UK,0000488962,20.00
Department of Health,East Sussex Healthcare NHS Trust,11/05/2011,M&S GENERAL SUPPLIES-OTHER,Anaesthetics & Surgery,GAMBRO LUNDIA AB,0000489012,1008.00
Department of Health,East Sussex Healthcare NHS Trust,11/05/2011,CAPITAL EXPENDITURE,Capital,AJ MOBILITY LTD,0000489236,1560.00
Department of Health,East Sussex Healthcare NHS Trust,11/05/2011,SURGICAL INSTRUMENTS,Anaesthetics & Surgery,OLYMPUS KEYMED,0000489240,680.46
Department of Health,East Sussex Healthcare NHS Trust,11/05/2011,COMPUTER SOFTWARE,Management & Corporate Services,WARWICK INTERNATIONAL COMPUTING SYSTEMS,0000489258,2640.00
Department of Health,East Sussex Healthcare NHS Trust,11/05/2011,COMPUTER HARDWARE,Anaesthetics & Surgery,APC - CONTECH,0000489290,549.60
Department of Health,East Sussex Healthcare NHS Trust,11/05/2011,M&S GENERAL SUPPLIES-OTHER,Facilities,BARD LTD,0000489478,564.00
Department of Health,East Sussex Healthcare NHS Trust,11/05/2011,ENG EQUIPMENT LEASE,Facilities,HFGL LTD,0000587694,2682.51
Department of Health,East Sussex Healthcare NHS Trust,11/05/2011,LAB MATS IL CONSUMABLES,Clilcal Support Division,INSTRUMENTATION LABORATORIES UK LTD,0000588623,1102.56
Department of Health,East Sussex Healthcare NHS Trust,11/05/2011,PROSTHESIS - OTHER OPHTHALMIC,Anaesthetics & Surgery,VENI VIDI (OPHTH) LTD,0000589108,513.72
Department of Health,East Sussex Healthcare NHS Trust,11/05/2011,IMMUNONOLOGY REAGENTS,Clilcal Support Division,LAUNCH DIAGNOSTICS LTD,0000589114,569.12
Department of Health,East Sussex Healthcare NHS Trust,11/05/2011,CONTRACT ENGINEERING MAINT,Facilities,GARDNER DENVER LTD,0000589124,734.03
Department of Health,East Sussex Healthcare NHS Trust,11/05/2011,PRE-STERILE COMMERCIAL PACKS,Facilities,RICHARDSON HEALTHCARE,0000589133,983.04
Department of Health,East Sussex Healthcare NHS Trust,11/05/2011,CAPITAL EXPENDITURE,Capital,CARDIAC SERVICES (UK) LTD,0000589134,5400.00
Department of Health,East Sussex Healthcare NHS Trust,11/05/2011,INTERVENTIONAL DISPOSABLES,Medicine & A&E,MEDTRONIC LTD,0000589135,202.80
Department of Health,East Sussex Healthcare NHS Trust,11/05/2011,CARDIOLOGY CATHETERS,Medicine & A&E,MEDTRONIC LTD,0000589135,1374.00
Department of Health,East Sussex Healthcare NHS Trust,11/05/2011,PRE-STERILE COMMERCIAL PACKS,Facilities,ROCIALLE INHEALTH,0000589137,1063.20
Department of Health,East Sussex Healthcare NHS Trust,11/05/2011,M&S EQUIPMENT - OTHER,Anaesthetics & Surgery,FOCUS MEDICAL SERVICES LTD,0000589138,1330.00
Department of Health,East Sussex Healthcare NHS Trust,11/05/2011,PRINTING/PRINTED MATERIALS,Clilcal Support Division,STORAMOVE LTD,0000589139,484.00
Department of Health,East Sussex Healthcare NHS Trust,11/05/2011,ELECTRODES,Medicine & A&E,COVIDIEN,0000589157,576.00
Department of Health,East Sussex Healthcare NHS Trust,11/05/2011,GENERAL LABORATORY EQUIPMENT,Clilcal Support Division,THERMO FISHER SCIENTIFIC,0000589158,554.50
Department of Health,East Sussex Healthcare NHS Trust,11/05/2011,CARDIOLOGY CATHETERS,Medicine & A&E,ST JUDE MEDICAL UK LIMITED,0000589160,999.36
Department of Health,East Sussex Healthcare NHS Trust,11/05/2011,INTERVENTIONAL DISPOSABLES,Medicine & A&E,UK MEDICAL LTD,0000589163,540.00
Department of Health,East Sussex Healthcare NHS Trust,11/05/2011,CAPITAL EXPENDITURE,Capital,SIEMENS HEALTHCARE,0000589165,2550.00
Department of Health,East Sussex Healthcare NHS Trust,11/05/2011,CAPITAL EXPENDITURE,Capital,HOSPITAL & GENERAL SUPPLIER,0000589166,1810.20
Department of Health,East Sussex Healthcare NHS Trust,11/05/2011,LAB MATERIALS - NEQAS,Clilcal Support Division,UK NEQAS FOR CELLULAR PATHOLOGY TECHNIQU,0000589177,550.00
Department of Health,East Sussex Healthcare NHS Trust,11/05/2011,OESOPHAGEAL (UPPER GI) STENTS,Clilcal Support Division,BOSTON SCIENTIFIC LTD,0000589182,840.00
Department of Health,East Sussex Healthcare NHS Trust,11/05/2011,LAB MATERIALS - MAIN ANALYSER,Clilcal Support Division,ORTHO-CLINICAL DIAGNOSTICS,0000589184,653.40
Department of Health,East Sussex Healthcare NHS Trust,11/05/2011,CONT.MAIN-MED & SURG EQUIP,Facilities,B BRAUN MEDICAL LTD,0000589185,584.29
Department of Health,East Sussex Healthcare NHS Trust,11/05/2011,M&S GENERAL SUPPLIES-OTHER,Facilities,UNISURGE INTERNATIONAL LTD,0000589186,225.60
Department of Health,East Sussex Healthcare NHS Trust,11/05/2011,PRE-STERILE COMMERCIAL PACKS,Facilities,UNISURGE INTERNATIONAL LTD,0000589186,646.31
Department of Health,East Sussex Healthcare NHS Trust,11/05/2011,CARDIOLOGY STENTS,Medicine & A&E,BOSTON SCIENTIFIC LTD,0000589197,2754.00
Department of Health,East Sussex Healthcare NHS Trust,11/05/2011,CAPITAL EXPENDITURE,Capital,QIK GROUP,0000589198,3270.00
Department of Health,East Sussex Healthcare NHS Trust,11/05/2011,PRE-STERILE COMMERCIAL PACKS,Facilities,FULL SUPPORT,0000589213,1791.91
Department of Health,East Sussex Healthcare NHS Trust,11/05/2011,LOANER KITS - HIRE CHARGE,Anaesthetics & Surgery,NORTHSTAR ORTHOPAEDICS LIMITED,0000589219,480.00
Department of Health,East Sussex Healthcare NHS Trust,11/05/2011,PROSTHESES-OTHER,Anaesthetics & Surgery,NORTHSTAR ORTHOPAEDICS LIMITED,0000589219,908.40
Department of Health,East Sussex Healthcare NHS Trust,11/05/2011,CARDIOLOGY CATHETERS,Medicine & A&E,ABBOTT VASCULAR,0000589227,210.00
Department of Health,East Sussex Healthcare NHS Trust,11/05/2011,CARDIOLOGY STENTS,Medicine & A&E,ABBOTT VASCULAR,0000589227,900.00
Department of Health,East Sussex Healthcare NHS Trust,11/05/2011,CARDIOLOGY CATHETERS,Medicine & A&E,BARD LTD,0000589235,3384.00
Department of Health,East Sussex Healthcare NHS Trust,11/05/2011,CAPITAL EXPENDITURE,Capital,TRACLINE (UK) LIMITED,0000589236,546.91
Department of Health,East Sussex Healthcare NHS Trust,11/05/2011,LAPARASCOPIC EQUIP-UROLOGICAL,Anaesthetics & Surgery,CORY BROS,0000589238,9120.00
Department of Health,East Sussex Healthcare NHS Trust,11/05/2011,CAPITAL EXPENDITURE,Capital,HILL-ROM LTD,0000589239,6416.75
Department of Health,East Sussex Healthcare NHS Trust,11/05/2011,CARDIOLOGY CATHETERS,Medicine & A&E,MEDTRONIC LTD,0000589242,4800.00
Department of Health,East Sussex Healthcare NHS Trust,11/05/2011,PRE-STERILE COMMERCIAL PACKS,Facilities,FRONTIER MULTIGATE,0000589246,741.49
Department of Health,East Sussex Healthcare NHS Trust,11/05/2011,DRUGS-HAEMAPHILIA PRODUCTS,Clilcal Support Division,CSL BEHRING,0000589248,3200.00
Department of Health,East Sussex Healthcare NHS Trust,11/05/2011,THEATRE LINEN,Facilities,BDF LTD.,0000589252,634.86
Department of Health,East Sussex Healthcare NHS Trust,11/05/2011,CAPITAL EXPENDITURE,Capital,BIGHAND,0000589254,5527.20
Department of Health,East Sussex Healthcare NHS Trust,11/05/2011,CAPITAL EXPENDITURE,Capital,BIGHAND,0000589255,38812.80
Department of Health,East Sussex Healthcare NHS Trust,11/05/2011,CARDIOLOGY STENTS,Medicine & A&E,MEDTRONIC LTD,0000589258,1620.00
Department of Health,East Sussex Healthcare NHS Trust,11/05/2011,CONT.MAIN-MED & SURG EQUIP,Clilcal Support Division,J&J MAINTENANCE SERVICES LTD,0000589261,163.42
Department of Health,East Sussex Healthcare NHS Trust,11/05/2011,MAINT-J&J,Clilcal Support Division,J&J MAINTENANCE SERVICES LTD,0000589261,520.00
Department of Health,East Sussex Healthcare NHS Trust,11/05/2011,LOANER KITS - HIRE CHARGE,Anaesthetics & Surgery,SURGI C LTD,0000589267,420.00
Department of Health,East Sussex Healthcare NHS Trust,11/05/2011,PROSTHESES-OTHER,Anaesthetics & Surgery,SURGI C LTD,0000589267,6406.80
Department of Health,East Sussex Healthcare NHS Trust,11/05/2011,IMPLANTABLE DEFIBRILLATOR,Medicine & A&E,MEDTRONIC LTD,0000589268,19800.00
Department of Health,East Sussex Healthcare NHS Trust,11/05/2011,CARDIOLOGY CATHETERS,Medicine & A&E,MEDTRONIC LTD,0000589270,2400.00
Department of Health,East Sussex Healthcare NHS Trust,11/05/2011,CARDIOLOGY CATHETERS,Medicine & A&E,MEDTRONIC LTD,0000589271,4800.00
Department of Health,East Sussex Healthcare NHS Trust,11/05/2011,M&S EQUIPMENT - OTHER,Anaesthetics & Surgery,DE SOUTTER MEDICAL LTD,0000589274,4857.84
Department of Health,East Sussex Healthcare NHS Trust,11/05/2011,IMPLANTABLE DEFIBRILLATOR,Medicine & A&E,BIOTRONIK UK LTD,0000589276,12420.00
Department of Health,East Sussex Healthcare NHS Trust,11/05/2011,M&S EQUIPMENT - OTHER,Facilities,H C  SLINGSBY PLC,0000589288,3582.00
Department of Health,East Sussex Healthcare NHS Trust,11/05/2011,STAFF UNIFORMS,Clilcal Support Division,GRAHAME GARDNER,0000589300,610.20
Department of Health,East Sussex Healthcare NHS Trust,11/05/2011,PRE-STERILE COMMERCIAL PACKS,Facilities,ROCIALLE INHEALTH,0000589301,1174.10
Department of Health,East Sussex Healthcare NHS Trust,11/05/2011,BEDDING & LINEN - OTHER,Facilities,MIP (UK) LTD,0000589362,45000.00
Department of Health,East Sussex Healthcare NHS Trust,11/05/2011,COLONIC STENTS,Clilcal Support Division,BOSTON SCIENTIFIC LTD,0000589377,1896.00
Department of Health,East Sussex Healthcare NHS Trust,11/05/2011,TELEPHONES-WIRING & EQUIPMENT,Management & Corporate Services,BUSINESS DICTATION LTD,0000589401,712.79
Department of Health,East Sussex Healthcare NHS Trust,11/05/2011,LOANER KITS - HIRE CHARGE,Anaesthetics & Surgery,SURGI C LTD,0000589403,420.00
Department of Health,East Sussex Healthcare NHS Trust,11/05/2011,PROSTHESES-OTHER,Anaesthetics & Surgery,SURGI C LTD,0000589403,1633.20
Department of Health,East Sussex Healthcare NHS Trust,11/05/2011,CALANDER CONSUMABLES,Facilities,SEVERNSIDE FABRICS LTD,0000589409,710.76
Department of Health,East Sussex Healthcare NHS Trust,11/05/2011,LOANER KITS - HIRE CHARGE,Anaesthetics & Surgery,SMITH & NEPHEW ORTHOPAEDICS LTD,0000589414,720.00
Department of Health,East Sussex Healthcare NHS Trust,11/05/2011,PROSTHESES-OTHER,Anaesthetics & Surgery,SMITH & NEPHEW ORTHOPAEDICS LTD,0000589414,2220.17
Department of Health,East Sussex Healthcare NHS Trust,11/05/2011,NATIONAL JOINT REGISTRY LEVY,Anaesthetics & Surgery,SMITH & NEPHEW ORTHOPAEDICS LTD,0000589414,20.00
Department of Health,East Sussex Healthcare NHS Trust,11/05/2011,CARDIOLOGY CATHETERS,Medicine & A&E,BOSTON SCIENTIFIC LTD,0000589418,2400.00
Department of Health,East Sussex Healthcare NHS Trust,11/05/2011,VIDAS REAGENTS,Clilcal Support Division,BIOMERIEUX UK LTD,0000589420,1698.00
Department of Health,East Sussex Healthcare NHS Trust,11/05/2011,VIDAS REAGENTS,Clilcal Support Division,BIOMERIEUX UK LTD,0000589421,1698.00
Department of Health,East Sussex Healthcare NHS Trust,11/05/2011,"BOOKS, JOURNALS & SUBCRIPTIONS",Anaesthetics & Surgery,RESUSCITATION COUNCIL (UK) TRADING LTD,0000589422,900.00
Department of Health,East Sussex Healthcare NHS Trust,11/05/2011,MEDICAL GASES,Anaesthetics & Surgery,AIR LIQUIDE UK,0000589439,979.04
Department of Health,East Sussex Healthcare NHS Trust,11/05/2011,CAPITAL EXPENDITURE,Capital,TRACLINE (UK) LIMITED,0000589445,6360.00
Department of Health,East Sussex Healthcare NHS Trust,11/05/2011,CONT.MAIN-MED & SURG EQUIP,Facilities,SPECTRUM OPHTHALMICS,0000589447,1909.80
Department of Health,East Sussex Healthcare NHS Trust,11/05/2011,PROFESSIONAL FEES,Anaesthetics & Surgery,BIOMNI VOICE LTD,0000589514,1225.09
Department of Health,East Sussex Healthcare NHS Trust,11/05/2011,MAINT-MEDICAL IMAGING CONSULT,Clilcal Support Division,MED IMAGING LTD,0000589545,12200.00
Department of Health,East Sussex Healthcare NHS Trust,11/05/2011,M&S EQUIPMENT - OTHER,Anaesthetics & Surgery,ALBYN MEDICAL LTD,0000589608,1274.40
Department of Health,East Sussex Healthcare NHS Trust,11/05/2011,SEROLOGY REAGENTS,Clilcal Support Division,ALERE LTD,0000589715,2888.88
Department of Health,East Sussex Healthcare NHS Trust,11/05/2011,M&S GENERAL SUPPLIES-OTHER,Facilities,WESTFIELD MEDICAL LTD,0000589821,1319.79
Department of Health,East Sussex Healthcare NHS Trust,11/05/2011,LAB MATS IL CONSUMABLES,Clilcal Support Division,INSTRUMENTATION LABORATORIES UK LTD,0000589828,-718.56
Department of Health,East Sussex Healthcare NHS Trust,11/05/2011,COMPUTER HARDWARE,Management & Corporate Services,PICOSEA LTD,0000589882,2000.00
Department of Health,East Sussex Healthcare NHS Trust,11/05/2011,PRE-STERILE COMMERCIAL PACKS,Facilities,STERIPHARM UK LTD,0000589907,1438.38
Department of Health,East Sussex Healthcare NHS Trust,11/05/2011,DISPOSABLE DRAPES,Facilities,STERIPHARM UK LTD,0000589907,1754.20
Department of Health,East Sussex Healthcare NHS Trust,11/05/2011,M&S GENERAL SUPPLIES-OTHER,Facilities,STERIPHARM UK LTD,0000590041,598.42
Department of Health,East Sussex Healthcare NHS Trust,11/05/2011,PRE-STERILE COMMERCIAL PACKS,Facilities,STERIPHARM UK LTD,0000590041,1313.28
Department of Health,East Sussex Healthcare NHS Trust,11/05/2011,DISPOSABLE DRAPES,Facilities,STERIPHARM UK LTD,0000590041,536.93
Department of Health,East Sussex Healthcare NHS Trust,11/05/2011,CONT.MAIN-MED & SURG EQUIP,Anaesthetics & Surgery,CAPITAL DENTAL EQUIPMENT,0000590161,4095.46
Department of Health,East Sussex Healthcare NHS Trust,11/05/2011,OTHER MISC EXPENDITURE,Management & Corporate Services,JOHNSON & JOHNSON MEDICAL LTD,0000590179,2041.20
Department of Health,East Sussex Healthcare NHS Trust,11/05/2011,LAUNDRY MACHINES,Facilities,LAUNDRY FM,0000616969,607.20
Department of Health,East Sussex Healthcare NHS Trust,11/05/2011,CONT.MAIN-MED & SURG EQUIP,Anaesthetics & Surgery,HAMILTON MEDICAL UK,0000616982,1385.21
Department of Health,East Sussex Healthcare NHS Trust,11/05/2011,CONTRACT ENGINEERING MAINT,Facilities,AXIS ELEVATORS LTD,0000616990,1240.00
Department of Health,East Sussex Healthcare NHS Trust,11/05/2011,M&S EQUIPMENT - OTHER,Anaesthetics & Surgery,PURICORE ENDOSCOPY,0000616993,2000.00
Department of Health,East Sussex Healthcare NHS Trust,11/05/2011,CONT.MAIN-MED & SURG EQUIP,Anaesthetics & Surgery,PURICORE ENDOSCOPY,0000616993,1085.00
Department of Health,East Sussex Healthcare NHS Trust,11/05/2011,CAPITAL EXPENDITURE,Capital,PTS PLUMBING TRADE SUPPLIES,0000617004,5553.34
Department of Health,East Sussex Healthcare NHS Trust,11/05/2011,CAPITAL EXPENDITURE,Capital,NIGHTINGALE ASSOCIATES,0000617127,1031.25
Department of Health,East Sussex Healthcare NHS Trust,11/05/2011,CAPITAL EXPENDITURE,Capital,H WILSON (ALFRISTON) LTD,0000617170,8032.01
Department of Health,East Sussex Healthcare NHS Trust,11/05/2011,CAPITAL EXPENDITURE,Capital,H WILSON (ALFRISTON) LTD,0000617183,14614.90
Department of Health,East Sussex Healthcare NHS Trust,11/05/2011,CONTRACT ENGINEERING MAINT,Facilities,INDUSTRIAL ELECTRICAL CONTRACTORS,0000617218,613.86
Department of Health,East Sussex Healthcare NHS Trust,11/05/2011,ENGINEERING MATERIALS,Facilities,NEWEY & EYRE (EASTBOURNE),0000617220,526.70
Department of Health,East Sussex Healthcare NHS Trust,11/05/2011,PATS APPL - FOOTWARE,Clilcal Support Division,KENWARD ORTHOPAEDICS LTD,0000749103,502.30
Department of Health,East Sussex Healthcare NHS Trust,11/05/2011,PATS APPL - FOOTWARE,Clilcal Support Division,KENWARD ORTHOPAEDICS LTD,0000749104,505.69
Department of Health,East Sussex Healthcare NHS Trust,11/05/2011,PATS APPL - FOOTWARE,Clilcal Support Division,KENWARD ORTHOPAEDICS LTD,0000749106,542.18
Department of Health,East Sussex Healthcare NHS Trust,11/05/2011,PATS APPL - FOOTWARE,Clilcal Support Division,NPD ORTHOTICS,0000749120,538.91
Department of Health,East Sussex Healthcare NHS Trust,11/05/2011,PATS APPL - FOOTWARE,Clilcal Support Division,NPD ORTHOTICS,0000749122,578.28
Department of Health,East Sussex Healthcare NHS Trust,11/05/2011,PATIENTS APPLIANCES - OTHER,Clilcal Support Division,ESSEX ORTHOPAEDICS,0000749132,552.11
Department of Health,East Sussex Healthcare NHS Trust,11/05/2011,PROSTHESES-KNEES,Anaesthetics & Surgery,ZIMMER LTD,0000879775,1940.40
Department of Health,East Sussex Healthcare NHS Trust,11/05/2011,NATIONAL JOINT REGISTRY LEVY,Anaesthetics & Surgery,ZIMMER LTD,0000879775,20.00
Department of Health,East Sussex Healthcare NHS Trust,11/05/2011,SURGICAL INSTRUMENTS,Anaesthetics & Surgery,MEDTRONIC LTD,0000880538,723.60
Department of Health,East Sussex Healthcare NHS Trust,11/05/2011,PROSTHESES-KNEES,Anaesthetics & Surgery,BIOMET EUROPE,0000880555,7413.60
Department of Health,East Sussex Healthcare NHS Trust,11/05/2011,PROSTHESES-OTHER,Anaesthetics & Surgery,BIOMET EUROPE,0000880555,73.20
Department of Health,East Sussex Healthcare NHS Trust,11/05/2011,NATIONAL JOINT REGISTRY LEVY,Anaesthetics & Surgery,BIOMET EUROPE,0000880555,80.02
Department of Health,East Sussex Healthcare NHS Trust,11/05/2011,M&S EQUIPMENT - OTHER,Anaesthetics & Surgery,ARTHROCARE UK LIMITED,0000880556,843.00
Department of Health,East Sussex Healthcare NHS Trust,11/05/2011,PROSTHESES-KNEES,Anaesthetics & Surgery,BIOMET EUROPE,0000880571,627.00
Department of Health,East Sussex Healthcare NHS Trust,11/05/2011,M&S GENERAL SUPPLIES-OTHER,Anaesthetics & Surgery,BIOMET EUROPE,0000880572,574.07
Department of Health,East Sussex Healthcare NHS Trust,11/05/2011,M&S EQUIPMENT - OTHER,Anaesthetics & Surgery,ARTHROCARE UK LIMITED,0000880573,567.00
Department of Health,East Sussex Healthcare NHS Trust,11/05/2011,M&S GENERAL SUPPLIES-OTHER,Anaesthetics & Surgery,LINA MEDICAL UK LTD,0000880576,1560.00
Department of Health,East Sussex Healthcare NHS Trust,11/05/2011,PROSTHESIS - LENS,Anaesthetics & Surgery,ALCON LABORATORIES (UK) LTD,0000880583,1350.00
Department of Health,East Sussex Healthcare NHS Trust,11/05/2011,PROSTHESIS - LENS,Anaesthetics & Surgery,ALCON LABORATORIES (UK) LTD,0000880585,1327.20
Department of Health,East Sussex Healthcare NHS Trust,11/05/2011,M&S GENERAL SUPPLIES-OTHER,Anaesthetics & Surgery,GAMBRO LUNDIA AB,0000880591,1158.00
Department of Health,East Sussex Healthcare NHS Trust,11/05/2011,M&S GENERAL SUPPLIES-OTHER,Anaesthetics & Surgery,LINA MEDICAL UK LTD,0000880595,558.00
Department of Health,East Sussex Healthcare NHS Trust,11/05/2011,BONE BANK,Anaesthetics & Surgery,BIOCOMPOSITES LTD,0000880596,655.20
Department of Health,East Sussex Healthcare NHS Trust,11/05/2011,LASER/LAPARASCOPIC EQUIPMENT,Anaesthetics & Surgery,PROMED LTD,0000880605,1572.00
Department of Health,East Sussex Healthcare NHS Trust,11/05/2011,SURGICAL INSTRUMENTS,Anaesthetics & Surgery,SMITH & NEPHEW ENDOSCOPY,0000880608,595.94
Department of Health,East Sussex Healthcare NHS Trust,11/05/2011,M&S GENERAL SUPPLIES-OTHER,Anaesthetics & Surgery,SMITH & NEPHEW ENDOSCOPY,0000880609,760.68
Department of Health,East Sussex Healthcare NHS Trust,11/05/2011,SURGICAL INSTRUMENTS,Anaesthetics & Surgery,SMITH & NEPHEW ENDOSCOPY,0000880610,595.95
Department of Health,East Sussex Healthcare NHS Trust,11/05/2011,ARTHROSCOPY INSTRUMENTS,Anaesthetics & Surgery,SMITH & NEPHEW ENDOSCOPY,0000880610,581.54
Department of Health,East Sussex Healthcare NHS Trust,11/05/2011,M&S GENERAL SUPPLIES-OTHER,Anaesthetics & Surgery,TELEFLEX MEDICAL,0000880614,1245.60
Department of Health,East Sussex Healthcare NHS Trust,11/05/2011,LASER/LAPARASCOPIC EQUIPMENT,Anaesthetics & Surgery,COVIDIEN,0000880623,724.61
Department of Health,East Sussex Healthcare NHS Trust,11/05/2011,M&S GENERAL SUPPLIES-OTHER,Anaesthetics & Surgery,MOLNLYCKE HEALTHCARE,0000880625,575.30
Department of Health,East Sussex Healthcare NHS Trust,11/05/2011,PRE-STERILE COMMERCIAL PACKS,Anaesthetics & Surgery,MOLNLYCKE HEALTHCARE,0000880625,87.78
Department of Health,East Sussex Healthcare NHS Trust,11/05/2011,DISPOSABLE DRAPES,Anaesthetics & Surgery,MOLNLYCKE HEALTHCARE,0000880625,81.00
Department of Health,East Sussex Healthcare NHS Trust,11/05/2011,PROSTHESES-OTHER,Anaesthetics & Surgery,SYNTHES LTD,0000880628,696.96
Department of Health,East Sussex Healthcare NHS Trust,11/05/2011,M&S GENERAL SUPPLIES-OTHER,Anaesthetics & Surgery,BOSTON SCIENTIFIC LTD,0000880633,93.60
Department of Health,East Sussex Healthcare NHS Trust,11/05/2011,INTERVENTIONAL DISPOSABLES,Anaesthetics & Surgery,BOSTON SCIENTIFIC LTD,0000880633,504.00
Department of Health,East Sussex Healthcare NHS Trust,11/05/2011,RENAL STENTS,Anaesthetics & Surgery,BOSTON SCIENTIFIC LTD,0000880633,312.00
Department of Health,East Sussex Healthcare NHS Trust,11/05/2011,DRESSINGS-OTHER,Anaesthetics & Surgery,ANETIC AID LTD,0000880635,624.00
Department of Health,East Sussex Healthcare NHS Trust,11/05/2011,DRESSINGS-OTHER,Anaesthetics & Surgery,ANETIC AID LTD,0000880636,864.00
Department of Health,East Sussex Healthcare NHS Trust,11/05/2011,SURGICAL INSTRUMENTS,Anaesthetics & Surgery,SYNTHES LTD,0000880643,170.82
Department of Health,East Sussex Healthcare NHS Trust,11/05/2011,PROSTHESES-OTHER,Anaesthetics & Surgery,SYNTHES LTD,0000880643,458.88
Department of Health,East Sussex Healthcare NHS Trust,11/05/2011,SUTURES,Anaesthetics & Surgery,JOHNSON & JOHNSON MEDICAL LTD,0000880648,658.80
Department of Health,East Sussex Healthcare NHS Trust,11/05/2011,M&S GENERAL SUPPLIES-OTHER,Anaesthetics & Surgery,UROPLASTY LTD,0000880654,520.72
Department of Health,East Sussex Healthcare NHS Trust,11/05/2011,PROSTHESES-KNEES,Anaesthetics & Surgery,BIOMET EUROPE,0000880657,3084.00
Department of Health,East Sussex Healthcare NHS Trust,11/05/2011,NATIONAL JOINT REGISTRY LEVY,Anaesthetics & Surgery,BIOMET EUROPE,0000880657,40.01
Department of Health,East Sussex Healthcare NHS Trust,11/05/2011,M&S GENERAL SUPPLIES-OTHER,Anaesthetics & Surgery,BIOMET EUROPE,0000880658,960.00
Department of Health,East Sussex Healthcare NHS Trust,11/05/2011,PROSTHESES-KNEES,Anaesthetics & Surgery,BIOMET EUROPE,0000880659,1524.00
Department of Health,East Sussex Healthcare NHS Trust,11/05/2011,NATIONAL JOINT REGISTRY LEVY,Anaesthetics & Surgery,BIOMET EUROPE,0000880659,20.00
Department of Health,East Sussex Healthcare NHS Trust,11/05/2011,PROSTHESES-KNEES,Anaesthetics & Surgery,BIOMET EUROPE,0000880660,588.00
Department of Health,East Sussex Healthcare NHS Trust,11/05/2011,PROSTHESIS - LENS,Anaesthetics & Surgery,ALCON LABORATORIES (UK) LTD,0000880677,1309.20
Department of Health,East Sussex Healthcare NHS Trust,11/05/2011,STAPLING DEVICES,Anaesthetics & Surgery,JOHNSON & JOHNSON MEDICAL LTD,0000880680,2030.36
Department of Health,East Sussex Healthcare NHS Trust,11/05/2011,LASER/LAPARASCOPIC EQUIPMENT,Anaesthetics & Surgery,JOHNSON & JOHNSON MEDICAL LTD,0000880680,391.56
Department of Health,East Sussex Healthcare NHS Trust,11/05/2011,M&S GENERAL SUPPLIES-OTHER,Anaesthetics & Surgery,JOHNSON & JOHNSON MEDICAL LTD,0000880680,379.70
Department of Health,East Sussex Healthcare NHS Trust,11/05/2011,DRESSINGS-OTHER,Anaesthetics & Surgery,MEDTRONIC LTD,0000880684,91.20
Department of Health,East Sussex Healthcare NHS Trust,11/05/2011,M&S GENERAL SUPPLIES-OTHER,Anaesthetics & Surgery,MEDTRONIC LTD,0000880684,36.00
Department of Health,East Sussex Healthcare NHS Trust,11/05/2011,SURGICAL INSTRUMENTS,Anaesthetics & Surgery,MEDTRONIC LTD,0000880684,1267.20
Department of Health,East Sussex Healthcare NHS Trust,11/05/2011,STAPLING DEVICES,Anaesthetics & Surgery,COVIDIEN,0000880685,1022.52
Department of Health,East Sussex Healthcare NHS Trust,11/05/2011,PROSTHESES-KNEES,Anaesthetics & Surgery,BIOMET EUROPE,0000880724,2766.60
Department of Health,East Sussex Healthcare NHS Trust,11/05/2011,NATIONAL JOINT REGISTRY LEVY,Anaesthetics & Surgery,BIOMET EUROPE,0000880724,20.00
Department of Health,East Sussex Healthcare NHS Trust,11/05/2011,PROSTHESES-KNEES,Anaesthetics & Surgery,BIOMET EUROPE,0000880725,588.00
Department of Health,East Sussex Healthcare NHS Trust,11/05/2011,PROSTHESES-KNEES,Anaesthetics & Surgery,BIOMET EUROPE,0000880726,588.00
Department of Health,East Sussex Healthcare NHS Trust,11/05/2011,PROSTHESES-KNEES,Anaesthetics & Surgery,BIOMET EUROPE,0000880727,557.88
Department of Health,East Sussex Healthcare NHS Trust,11/05/2011,PROSTHESES-OTHER,Anaesthetics & Surgery,BIOMET EUROPE,0000880728,948.00
Department of Health,East Sussex Healthcare NHS Trust,11/05/2011,ARTHROSCOPY INSTRUMENTS,Anaesthetics & Surgery,SMITH & NEPHEW ENDOSCOPY,0000880733,1177.49
Department of Health,East Sussex Healthcare NHS Trust,11/05/2011,LAPARASCOPIC EQUIP-UROLOGICAL,Anaesthetics & Surgery,APPLIED MEDICAL UK LTD,0000880746,741.60
Department of Health,East Sussex Healthcare NHS Trust,11/05/2011,PROSTHESIS - LENS,Anaesthetics & Surgery,ALCON LABORATORIES (UK) LTD,0000880749,624.00
Department of Health,East Sussex Healthcare NHS Trust,11/05/2011,PROSTHESIS - LENS,Anaesthetics & Surgery,ALCON LABORATORIES (UK) LTD,0000880750,2032.80
Department of Health,East Sussex Healthcare NHS Trust,11/05/2011,CARDIOLOGY CATHETERS,Anaesthetics & Surgery,TELEFLEX MEDICAL,0000880799,642.60
Department of Health,East Sussex Healthcare NHS Trust,11/05/2011,SURGICAL INSTRUMENTS,Anaesthetics & Surgery,ARTHREX LTD,0000880861,1194.00
Department of Health,East Sussex Healthcare NHS Trust,11/05/2011,PROSTHESES-OTHER,Anaesthetics & Surgery,STRYKER UK,0000880878,3014.94
Department of Health,East Sussex Healthcare NHS Trust,11/05/2011,PROSTHESES-HIP,Anaesthetics & Surgery,STRYKER UK,0000880880,1556.36
Department of Health,East Sussex Healthcare NHS Trust,11/05/2011,M&S GENERAL SUPPLIES-OTHER,Anaesthetics & Surgery,STRYKER UK,0000880881,348.60
Department of Health,East Sussex Healthcare NHS Trust,11/05/2011,SURGICAL INSTRUMENTS,Anaesthetics & Surgery,STRYKER UK,0000880881,556.68
Department of Health,East Sussex Healthcare NHS Trust,11/05/2011,PROVISIONS,Facilities,3663,0000912848,569.00
Department of Health,East Sussex Healthcare NHS Trust,11/05/2011,PROVISIONS,Facilities,3663,0000912860,656.85
Department of Health,East Sussex Healthcare NHS Trust,11/05/2011,STOCK-ASCRIBE CONQUEST,Pharmacy Stock,ABBOTT LABORATORIES LTD,0001176977,845.14
Department of Health,East Sussex Healthcare NHS Trust,11/05/2011,STOCK-ASCRIBE CONQUEST,Pharmacy Stock,MOVIANTO UK LIMITED,0001177018,886.56
Department of Health,East Sussex Healthcare NHS Trust,11/05/2011,STOCK-ASCRIBE CONQUEST,Pharmacy Stock,CLINIMED LTD,0001177044,513.65
Department of Health,East Sussex Healthcare NHS Trust,11/05/2011,STOCK-ASCRIBE CONQUEST,Pharmacy Stock,AMGEN LTD,0001177140,1647.31
Department of Health,East Sussex Healthcare NHS Trust,11/05/2011,STOCK-ASCRIBE CONQUEST,Pharmacy Stock,BAYER PLC,0001177149,2682.42
Department of Health,East Sussex Healthcare NHS Trust,11/05/2011,STOCK-ASCRIBE CONQUEST,Pharmacy Stock,BAYER PLC,0001177150,2682.42
Department of Health,East Sussex Healthcare NHS Trust,11/05/2011,STOCK-ASCRIBE CONQUEST,Pharmacy Stock,GE HEALTHCARE LTD,0001177151,2794.46
Department of Health,East Sussex Healthcare NHS Trust,11/05/2011,STOCK-ASCRIBE CONQUEST,Pharmacy Stock,GE HEALTHCARE LTD,0001177152,2534.64
Department of Health,East Sussex Healthcare NHS Trust,11/05/2011,STOCK-ASCRIBE CONQUEST,Pharmacy Stock,PIERRE FABRE ONCOLOGY,0001177159,2903.04
Department of Health,East Sussex Healthcare NHS Trust,11/05/2011,STOCK-ASCRIBE CONQUEST,Pharmacy Stock,NOVARTIS PHARMACEUTICALS UK LTD,0001177160,1641.24
Department of Health,East Sussex Healthcare NHS Trust,11/05/2011,STOCK-ASCRIBE CONQUEST,Pharmacy Stock,ROCHE PRODUCTS LTD,0001177161,6695.81
Department of Health,East Sussex Healthcare NHS Trust,11/05/2011,STOCK-ASCRIBE CONQUEST,Pharmacy Stock,ROCHE PRODUCTS LTD,0001177162,9777.60
Department of Health,East Sussex Healthcare NHS Trust,11/05/2011,STOCK-ASCRIBE CONQUEST,Pharmacy Stock,ROCHE PRODUCTS LTD,0001177163,1400.47
Department of Health,East Sussex Healthcare NHS Trust,11/05/2011,STOCK-ASCRIBE CONQUEST,Pharmacy Stock,FRESENIUS LTD,0001177166,684.72
Department of Health,East Sussex Healthcare NHS Trust,11/05/2011,STOCK-ASCRIBE CONQUEST,Pharmacy Stock,JANSSEN-CILAG LTD,0001177169,530.40
Department of Health,East Sussex Healthcare NHS Trust,11/05/2011,STOCK-ASCRIBE CONQUEST,Pharmacy Stock,HEALTHCARE PRODUCT SERVICES LIMITED,0001177172,5241.60
Department of Health,East Sussex Healthcare NHS Trust,11/05/2011,STOCK-ASCRIBE CONQUEST,Pharmacy Stock,GAMBRO LUNDIA AB,0001177181,1140.00
Department of Health,East Sussex Healthcare NHS Trust,11/05/2011,STOCK-ASCRIBE CONQUEST,Pharmacy Stock,ROSEMONT PHARMACEUTICALS LTD,0001177182,618.00
Department of Health,East Sussex Healthcare NHS Trust,11/05/2011,STOCK-ASCRIBE CONQUEST,Pharmacy Stock,UNIDRUG DISTRIBUTION GROUP LTD,0001177185,527.40
Department of Health,East Sussex Healthcare NHS Trust,11/05/2011,STOCK-ASCRIBE CONQUEST,Pharmacy Stock,ABBOTT LABORATORIES LTD,0001177205,3355.20
Department of Health,East Sussex Healthcare NHS Trust,11/05/2011,STOCK-ASCRIBE CONQUEST,Pharmacy Stock,BAXTER HEALTHCARE (BERKSHIRE)LTD,0001177206,1000.00
Department of Health,East Sussex Healthcare NHS Trust,11/05/2011,STOCK-ASCRIBE CONQUEST,Pharmacy Stock,BAXTER HEALTHCARE (BERKSHIRE)LTD,0001177209,1436.44
Department of Health,East Sussex Healthcare NHS Trust,11/05/2011,STOCK-ASCRIBE CONQUEST,Pharmacy Stock,CENTRAL HOMECARE LTD,0001177229,715.00
Department of Health,East Sussex Healthcare NHS Trust,11/05/2011,STOCK-ASCRIBE CONQUEST,Pharmacy Stock,CENTRAL HOMECARE LTD,0001177230,1430.00
Department of Health,East Sussex Healthcare NHS Trust,11/05/2011,STOCK-ASCRIBE CONQUEST,Pharmacy Stock,CENTRAL HOMECARE LTD,0001177231,1430.00
Department of Health,East Sussex Healthcare NHS Trust,11/05/2011,STOCK-ASCRIBE CONQUEST,Pharmacy Stock,CENTRAL HOMECARE LTD,0001177232,704.28
Department of Health,East Sussex Healthcare NHS Trust,11/05/2011,STOCK-ASCRIBE CONQUEST,Pharmacy Stock,CENTRAL HOMECARE LTD,0001177233,704.28
Department of Health,East Sussex Healthcare NHS Trust,11/05/2011,STOCK-ASCRIBE CONQUEST,Pharmacy Stock,CENTRAL HOMECARE LTD,0001177235,704.28
Department of Health,East Sussex Healthcare NHS Trust,11/05/2011,STOCK-ASCRIBE CONQUEST,Pharmacy Stock,CENTRAL HOMECARE LTD,0001177236,1408.56
Department of Health,East Sussex Healthcare NHS Trust,11/05/2011,STOCK-ASCRIBE CONQUEST,Pharmacy Stock,CENTRAL HOMECARE LTD,0001177237,704.28
Department of Health,East Sussex Healthcare NHS Trust,11/05/2011,STOCK-ASCRIBE CONQUEST,Pharmacy Stock,CENTRAL HOMECARE LTD,0001177239,704.28
Department of Health,East Sussex Healthcare NHS Trust,11/05/2011,STOCK-ASCRIBE CONQUEST,Pharmacy Stock,CENTRAL HOMECARE LTD,0001177240,1430.00
Department of Health,East Sussex Healthcare NHS Trust,11/05/2011,STOCK-ASCRIBE CONQUEST,Pharmacy Stock,CENTRAL HOMECARE LTD,0001177242,715.00
Department of Health,East Sussex Healthcare NHS Trust,11/05/2011,STOCK-ASCRIBE CONQUEST,Pharmacy Stock,CENTRAL HOMECARE LTD,0001177243,715.00
Department of Health,East Sussex Healthcare NHS Trust,11/05/2011,STOCK-ASCRIBE CONQUEST,Pharmacy Stock,CENTRAL HOMECARE LTD,0001177244,1430.00
Department of Health,East Sussex Healthcare NHS Trust,11/05/2011,STOCK-ASCRIBE CONQUEST,Pharmacy Stock,GE HEALTHCARE LTD,0001177251,548.39
Department of Health,East Sussex Healthcare NHS Trust,11/05/2011,STOCK-ASCRIBE CONQUEST,Pharmacy Stock,CSL BEHRING,0001177252,2500.00
Department of Health,East Sussex Healthcare NHS Trust,11/05/2011,STOCK-ASCRIBE CONQUEST,Pharmacy Stock,FERRING PHARMACEUTICALS LTD,0001177262,2301.00
Department of Health,East Sussex Healthcare NHS Trust,11/05/2011,STOCK-ASCRIBE CONQUEST,Pharmacy Stock,DIAGMED HEALTHCARE LTD,0001177265,813.12
Department of Health,East Sussex Healthcare NHS Trust,11/05/2011,STOCK-ASCRIBE CONQUEST,Pharmacy Stock,UNIDRUG DISTRIBUTION GROUP LTD,0001177286,501.60
Department of Health,East Sussex Healthcare NHS Trust,11/05/2011,STOCK-ASCRIBE CONQUEST,Pharmacy Stock,UNIDRUG DISTRIBUTION GROUP LTD,0001177288,1574.06
Department of Health,East Sussex Healthcare NHS Trust,11/05/2011,STOCK-ASCRIBE CONQUEST,Pharmacy Stock,NOVARTIS PHARMACEUTICALS UK LTD,0001177290,3774.71
Department of Health,East Sussex Healthcare NHS Trust,11/05/2011,STOCK-ASCRIBE CONQUEST,Pharmacy Stock,SURESCREEN DIAGNOSTICS LTD,0001177292,638.71
Department of Health,East Sussex Healthcare NHS Trust,11/05/2011,STOCK-ASCRIBE CONQUEST,Pharmacy Stock,BATH ASU,0001177293,1302.60
Department of Health,East Sussex Healthcare NHS Trust,11/05/2011,STOCK-ASCRIBE CONQUEST,Pharmacy Stock,BATH ASU,0001177294,1402.80
Department of Health,East Sussex Healthcare NHS Trust,11/05/2011,STOCK-ASCRIBE CONQUEST,Pharmacy Stock,BATH ASU,0001177295,1234.80
Department of Health,East Sussex Healthcare NHS Trust,11/05/2011,STOCK-ASCRIBE CONQUEST,Pharmacy Stock,ALCON LABORATORIES (UK) LTD,0001177298,1569.60
Department of Health,East Sussex Healthcare NHS Trust,11/05/2011,STOCK-ASCRIBE CONQUEST,Pharmacy Stock,ROSEMONT PHARMACEUTICALS LTD,0001177300,772.74
Department of Health,East Sussex Healthcare NHS Trust,11/05/2011,STOCK-ASCRIBE CONQUEST,Pharmacy Stock,FRESENIUS LTD,0001177301,834.48
Department of Health,East Sussex Healthcare NHS Trust,11/05/2011,STOCK-ASCRIBE CONQUEST,Pharmacy Stock,ROCHE DIAGNOSTICS LTD,0001177305,1123.20
Department of Health,East Sussex Healthcare NHS Trust,11/05/2011,STOCK-ASCRIBE CONQUEST,Pharmacy Stock,HOSPIRA ASEPTIC SERVICES LIMITED,0001177307,740.25
Department of Health,East Sussex Healthcare NHS Trust,11/05/2011,STOCK-ASCRIBE CONQUEST,Pharmacy Stock,HOSPIRA ASEPTIC SERVICES LIMITED,0001177308,951.75
Department of Health,East Sussex Healthcare NHS Trust,11/05/2011,STOCK-ASCRIBE CONQUEST,Pharmacy Stock,HOSPIRA ASEPTIC SERVICES LIMITED,0001177309,951.75
Department of Health,East Sussex Healthcare NHS Trust,11/05/2011,STOCK-ASCRIBE CONQUEST,Pharmacy Stock,JANSSEN-CILAG LTD,0001177319,530.40
Department of Health,East Sussex Healthcare NHS Trust,11/05/2011,STOCK-ASCRIBE CONQUEST,Pharmacy Stock,HEALTHCARE PRODUCT SERVICES,0001177400,947.88
Department of Health,East Sussex Healthcare NHS Trust,11/05/2011,STOCK-ASCRIBE CONQUEST,Pharmacy Stock,HEALTHCARE PRODUCT SERVICES LIMITED,0001177402,4043.76
Department of Health,East Sussex Healthcare NHS Trust,11/05/2011,STOCK-ASCRIBE CONQUEST,Pharmacy Stock,SIEMENS HEALTHCARE DIAGNOSTICS LTD,0001177404,1602.00
Department of Health,East Sussex Healthcare NHS Trust,11/05/2011,STOCK-ASCRIBE CONQUEST,Pharmacy Stock,GE HEALTHCARE LTD,0001177408,566.40
Department of Health,East Sussex Healthcare NHS Trust,11/05/2011,STOCK-ASCRIBE CONQUEST,Pharmacy Stock,CLINIMED LTD,0001177448,684.86
Department of Health,East Sussex Healthcare NHS Trust,11/05/2011,STOCK-ASCRIBE CONQUEST,Pharmacy Stock,IPSEN LTD,0001177455,3676.92
Department of Health,East Sussex Healthcare NHS Trust,11/05/2011,STOCK-ASCRIBE CONQUEST,Pharmacy Stock,ABBOTT LABORATORIES LTD,0001177456,1222.13
Department of Health,East Sussex Healthcare NHS Trust,11/05/2011,STOCK-ASCRIBE CONQUEST,Pharmacy Stock,GAMBRO LUNDIA AB,0001177460,1140.00
Department of Health,East Sussex Healthcare NHS Trust,11/05/2011,STOCK-ASCRIBE CONQUEST,Pharmacy Stock,GE HEALTHCARE LTD,0001177731,730.02
Department of Health,East Sussex Healthcare NHS Trust,11/05/2011,STOCK-ASCRIBE CONQUEST,Pharmacy Stock,PHARMA NORD (UK) LTD,0001177738,933.54
Department of Health,East Sussex Healthcare NHS Trust,11/05/2011,STOCK-ASCRIBE CONQUEST,Pharmacy Stock,NOVARTIS PHARMACEUTICALS UK LTD,0001177744,1635.06
Department of Health,East Sussex Healthcare NHS Trust,11/05/2011,STOCK-ASCRIBE CONQUEST,Pharmacy Stock,NOVARTIS PHARMACEUTICALS UK LTD,0001177745,1942.80
Department of Health,East Sussex Healthcare NHS Trust,11/05/2011,STOCK-ASCRIBE CONQUEST,Pharmacy Stock,KENT PHARMACEUTICALS LTD,0001178117,1066.56
Department of Health,East Sussex Healthcare NHS Trust,11/05/2011,STOCK-ASCRIBE CONQUEST,Pharmacy Stock,KENT PHARMACEUTICALS LTD,0001178118,632.88
Department of Health,East Sussex Healthcare NHS Trust,11/05/2011,STOCK-ASCRIBE CONQUEST,Pharmacy Stock,GE HEALTHCARE LTD,0001178130,679.68
Department of Health,East Sussex Healthcare NHS Trust,11/05/2011,STOCK-ASCRIBE EDGH,Pharmacy Stock,ELI LILLY & CO LTD,0001382332,5312.16
Department of Health,East Sussex Healthcare NHS Trust,11/05/2011,STOCK-ASCRIBE EDGH,Pharmacy Stock,GENUS PHARMACEUTICALS LTD,0001382360,594.77
Department of Health,East Sussex Healthcare NHS Trust,11/05/2011,STOCK-ASCRIBE EDGH,Pharmacy Stock,FRESENIUS LTD,0001382365,870.05
Department of Health,East Sussex Healthcare NHS Trust,11/05/2011,STOCK-ASCRIBE EDGH,Pharmacy Stock,CENTRAL HOMECARE LTD,0001382457,1556.56
Department of Health,East Sussex Healthcare NHS Trust,11/05/2011,STOCK-ASCRIBE EDGH,Pharmacy Stock,CENTRAL HOMECARE LTD,0001382458,770.04
Department of Health,East Sussex Healthcare NHS Trust,11/05/2011,STOCK-ASCRIBE EDGH,Pharmacy Stock,CENTRAL HOMECARE LTD,0001382461,1474.32
Department of Health,East Sussex Healthcare NHS Trust,11/05/2011,STOCK-ASCRIBE EDGH,Pharmacy Stock,GAMBRO LUNDIA AB,0001382528,1292.16
Department of Health,East Sussex Healthcare NHS Trust,11/05/2011,STOCK-ASCRIBE EDGH,Pharmacy Stock,PHARMA NORD (UK) LTD,0001382530,562.98
Department of Health,East Sussex Healthcare NHS Trust,11/05/2011,STOCK-ASCRIBE EDGH,Pharmacy Stock,ROCHE PRODUCTS LTD,0001382542,31433.40
Department of Health,East Sussex Healthcare NHS Trust,11/05/2011,STOCK-ASCRIBE EDGH,Pharmacy Stock,BAXTER HEALTHCARE (BERKSHIRE)LTD,0001382543,7216.92
Department of Health,East Sussex Healthcare NHS Trust,11/05/2011,STOCK-ASCRIBE EDGH,Pharmacy Stock,NOVARTIS PHARMACEUTICALS UK LTD,0001382592,44530.20
Department of Health,East Sussex Healthcare NHS Trust,11/05/2011,STOCK-ASCRIBE EDGH,Pharmacy Stock,BAYER PLC,0001382595,2682.42
Department of Health,East Sussex Healthcare NHS Trust,11/05/2011,STOCK-ASCRIBE EDGH,Pharmacy Stock,HEALTHCARE PRODUCT SERVICES LIMITED,0001382603,3919.32
Department of Health,East Sussex Healthcare NHS Trust,11/05/2011,STOCK-ASCRIBE EDGH,Pharmacy Stock,GAMBRO LUNDIA AB,0001382620,976.80
Department of Health,East Sussex Healthcare NHS Trust,11/05/2011,STOCK-ASCRIBE EDGH,Pharmacy Stock,GE HEALTHCARE LTD,0001382671,1190.23
Department of Health,East Sussex Healthcare NHS Trust,11/05/2011,STOCK-ASCRIBE EDGH,Pharmacy Stock,AAH PHARMACEUTICALS LTD,0001383166,1515.14
Department of Health,East Sussex Healthcare NHS Trust,11/05/2011,STOCK-ASCRIBE EDGH,Pharmacy Stock,AAH PHARMACEUTICALS LTD,0001383172,596.85
Department of Health,East Sussex Healthcare NHS Trust,11/05/2011,STOCK-ASCRIBE EDGH,Pharmacy Stock,AAH PHARMACEUTICALS LTD,0001383178,2125.62
Department of Health,East Sussex Healthcare NHS Trust,11/05/2011,STOCK-ASCRIBE EDGH,Pharmacy Stock,HEALTHCARE AT HOME LTD,0001383216,715.00
Department of Health,East Sussex Healthcare NHS Trust,11/05/2011,CONT MAINT LAB EQUIPMENT,Clilcal Support Division,COLSAN INSTRUMENT SERVICES,0001410290,756.35
Department of Health,East Sussex Healthcare NHS Trust,11/05/2011,M&S EQUIPMENT - OTHER,Facilities,COVIDIEN,0001410305,-540.00
Department of Health,East Sussex Healthcare NHS Trust,11/05/2011,M & S EQUIP REPAIR MATERIALS,Anaesthetics & Surgery,GAMBRO LUNDIA AB,0001410435,5040.00
Department of Health,East Sussex Healthcare NHS Trust,11/05/2011,HAEMOTONICS,Anaesthetics & Surgery,HAEMONETICS LTD,0001410436,5359.08
Department of Health,East Sussex Healthcare NHS Trust,11/05/2011,HAEMOTONICS,Anaesthetics & Surgery,HAEMONETICS LTD,0001410437,5359.08
Department of Health,East Sussex Healthcare NHS Trust,11/05/2011,MAINT-SYSMEX,Clilcal Support Division,SYSMEX UK LTD,0001410439,40115.94
Department of Health,East Sussex Healthcare NHS Trust,11/05/2011,LAB EQUIP MAINTENANCE BUDGET,Clilcal Support Division,3M HEALTHCARE LTD,0001410441,1715.00
Department of Health,East Sussex Healthcare NHS Trust,11/05/2011,LAB EQUIP MAINTENANCE BUDGET,Clilcal Support Division,BIOMERIEUX UK LTD,0001410442,8865.12
Department of Health,East Sussex Healthcare NHS Trust,11/05/2011,PP INC LUNG FUNCTION TESTS,Medicine & A&E,NSPIRE HEALTH LTD,0001410446,2821.20
Department of Health,East Sussex Healthcare NHS Trust,11/05/2011,M&S EQUIPMENT - OTHER,Clilcal Support Division,HITACHI MEDICAL SYSTEMS UK LTD,0001410447,2523.00
Department of Health,East Sussex Healthcare NHS Trust,11/05/2011,CONT.MAIN-MED & SURG EQUIP,Clilcal Support Division,ROCHE DIAGNOSTICS LTD,0001410482,12718.00
Department of Health,East Sussex Healthcare NHS Trust,11/05/2011,CONT.MAIN-MED & SURG EQUIP,Clilcal Support Division,ROCHE DIAGNOSTICS LTD,0001410483,12718.00
Department of Health,East Sussex Healthcare NHS Trust,11/05/2011,MULTITONE SWITCHBOARD,Facilities,MULTITONE ELECTRONICS P L C,0001410501,21671.23
Department of Health,East Sussex Healthcare NHS Trust,11/05/2011,OTHER STATIONERY,Management & Corporate Services,SYNERTEC LTD,0001410507,2112.95
Department of Health,East Sussex Healthcare NHS Trust,11/05/2011,OTHER STATIONERY,Management & Corporate Services,SYNERTEC LTD,0001410508,564.53
Department of Health,East Sussex Healthcare NHS Trust,11/05/2011,M & S EQUIP REPAIR MATERIALS,Anaesthetics & Surgery,CARL ZEISS LTD,0001410549,1043.10
Department of Health,East Sussex Healthcare NHS Trust,11/05/2011,M & S EQUIP REPAIR MATERIALS,Anaesthetics & Surgery,CARL ZEISS LTD,0001410551,519.55
Department of Health,East Sussex Healthcare NHS Trust,11/05/2011,HOSPITALITY,Management & Corporate Services,STROODELS THE CATERERS,0001410642,550.00
Department of Health,East Sussex Healthcare NHS Trust,11/05/2011,PHOTOCOPIER PAPER,Management & Corporate Services,TIDMAS TOWNSEND LTD,0001410819,538.15
Department of Health,East Sussex Healthcare NHS Trust,11/05/2011,TRAINING FEES - NURSE CONT ED,Management & Corporate Services,COURSE FEES,0001410821,570.00
Department of Health,East Sussex Healthcare NHS Trust,11/05/2011,TRAINING FEES - NURSE CONT ED,Management & Corporate Services,CITY UNIVERSITY,0001410826,1500.00
Department of Health,East Sussex Healthcare NHS Trust,11/05/2011,CAPITAL EXPENDITURE,Capital,WESTRIDGE CONSTRUCTION LIMITED,0001410828,71709.83
Department of Health,East Sussex Healthcare NHS Trust,11/05/2011,REGISTRATION FEES,Management & Corporate Services,EDENRED,0001410836,215.57
Department of Health,East Sussex Healthcare NHS Trust,11/05/2011,REGISTRATION FEES,Management & Corporate Services,EDENRED,0001410836,215.56
Department of Health,East Sussex Healthcare NHS Trust,11/05/2011,TRAINING - CPD/NVQ/ILA,Management & Corporate Services,JEAN F FLOODGATE,0001410838,1650.00
Department of Health,East Sussex Healthcare NHS Trust,11/05/2011,TRAVEL & SUBSISTENCE,Management & Corporate Services,COURSE FEES,0001410842,183.40
Department of Health,East Sussex Healthcare NHS Trust,11/05/2011,PROFESSIONAL FEES,Management & Corporate Services,COURSE FEES,0001410842,500.00
Department of Health,East Sussex Healthcare NHS Trust,11/05/2011,COMPUTER SOFTWARE,Facilities,BIP SOLUTIONS LTD,0001410843,800.00
Department of Health,East Sussex Healthcare NHS Trust,11/05/2011,PROFESSIONAL FEES,Management & Corporate Services,LAKE COMMUNICATIONS LTD,0001410853,1425.00
Department of Health,East Sussex Healthcare NHS Trust,11/05/2011,CONT.MAIN-MED & SURG EQUIP,Facilities,OLYMPUS KEYMED,0001410854,1189.50
Department of Health,East Sussex Healthcare NHS Trust,11/05/2011,CONT.MAIN-MED & SURG EQUIP,Facilities,OLYMPUS KEYMED,0001410855,1598.73
Department of Health,East Sussex Healthcare NHS Trust,11/05/2011,CONT.MAIN-MED & SURG EQUIP,Facilities,OLYMPUS KEYMED,0001410856,1790.41
Department of Health,East Sussex Healthcare NHS Trust,11/05/2011,OTHER MISC EXPENDITURE,Management & Corporate Services,JOHNSON & JOHNSON MEDICAL LTD,0001410858,-2041.20
Department of Health,East Sussex Healthcare NHS Trust,11/05/2011,PROFESSIONAL FEES,Medicine & A&E,CATCHPOLE PROJECT MANAGEMENT SERVS LTD,0001516196,1775.00
Department of Health,East Sussex Healthcare NHS Trust,11/05/2011,CONTRACT - MANAGEMENT FEE,Facilities,ORBIT SOUTH,0001516297,48144.60
Department of Health,East Sussex Healthcare NHS Trust,11/05/2011,CONTRACT SERVICE - OTHER,Facilities,ORBIT SOUTH,0001516297,28977.23
Department of Health,East Sussex Healthcare NHS Trust,11/05/2011,ORBIT MAINTENANCE,Facilities,ORBIT SOUTH,0001516297,19866.00
Department of Health,East Sussex Healthcare NHS Trust,11/05/2011,PROFESSIONAL FEES,Management & Corporate Services,ERNST & YOUNG LLP,0001516400,47190.00
Department of Health,East Sussex Healthcare NHS Trust,11/05/2011,TAXI - OTHER,Facilities,SUSSEX DRIVER COLLECTION AGENCY,0001516467,2880.40
Department of Health,East Sussex Healthcare NHS Trust,11/05/2011,PRIVATE AMBULANCE TRANSPORT,Facilities,DEDICATED CARE LTD,0001516482,985.00
Department of Health,East Sussex Healthcare NHS Trust,11/05/2011,AGENCY ANCILLARY,Facilities,PAPERWORK COURIERS LTD,0001516491,949.20
Department of Health,East Sussex Healthcare NHS Trust,11/05/2011,DRUGS-OTHER,Facilities,ALCON LABORATORIES (UK) LTD,0001608933,900.00
Department of Health,East Sussex Healthcare NHS Trust,11/05/2011,LAB-CONTAINERS/BOTTLES & CAPS,Facilities,GEORGE HOWARD PACKAGING LTD,0001608934,988.01
Department of Health,East Sussex Healthcare NHS Trust,11/05/2011,DRUGS-OTHER,Facilities,ABBOTT LABORATORIES LTD,0001608937,3424.92
Department of Health,East Sussex Healthcare NHS Trust,11/05/2011,DRUGS-OTHER,Facilities,FERRING PHARMACEUTICALS LTD,0001608939,2294.40
Department of Health,East Sussex Healthcare NHS Trust,11/05/2011,DRUGS-OTHER,Facilities,BATH ASU,0001608940,1021.20
Department of Health,East Sussex Healthcare NHS Trust,11/05/2011,DRUGS-OTHER,Facilities,BATH ASU,0001608941,576.00
Department of Health,East Sussex Healthcare NHS Trust,11/05/2011,LAB-CONTAINERS/BOTTLES & CAPS,Facilities,RAJAPACK,0001608943,696.00
Department of Health,East Sussex Healthcare NHS Trust,11/05/2011,DRUGS-OTHER,Facilities,ABBOTT LABORATORIES LTD,0001608947,6849.84
Department of Health,East Sussex Healthcare NHS Trust,11/05/2011,LAB-CONTAINERS/BOTTLES & CAPS,Facilities,ADELPHI HEALTHCARE PACKAGING,0001608957,2043.34
Department of Health,East Sussex Healthcare NHS Trust,11/05/2011,M&S GENERAL SUPPLIES-OTHER,Facilities,R & L SLAUGHTER LTD,0001608961,696.00
Department of Health,East Sussex Healthcare NHS Trust,11/05/2011,DRUGS-OTHER,Facilities,JANSSEN-CILAG LTD,0001608964,5489.14
Department of Health,East Sussex Healthcare NHS Trust,11/05/2011,DRUGS-OTHER,Facilities,WAYMADE HEALTHCARE PLC,0001608972,777.24
Department of Health,East Sussex Healthcare NHS Trust,11/05/2011,DRUGS-OTHER,Facilities,AAH PHARMACEUTICALS LTD,0001608992,828.37
Department of Health,East Sussex Healthcare NHS Trust,11/05/2011,DRUGS-OTHER,Facilities,AAH PHARMACEUTICALS LTD,0001608998,761.28
Department of Health,East Sussex Healthcare NHS Trust,11/05/2011,LAB-CONTAINERS/BOTTLES & CAPS,Facilities,DAVPACK,0001609000,668.16
Department of Health,East Sussex Healthcare NHS Trust,11/05/2011,DRUGS-OTHER,Facilities,AAH PHARMACEUTICALS LTD,0001609012,736.87
Department of Health,East Sussex Healthcare NHS Trust,11/05/2011,DRUGS-OTHER,Facilities,AAH PHARMACEUTICALS LTD,0001609064,854.99
Department of Health,East Sussex Healthcare NHS Trust,11/05/2011,DRUGS-OTHER,Facilities,AAH PHARMACEUTICALS LTD,0001609067,520.60
Department of Health,East Sussex Healthcare NHS Trust,11/05/2011,DRUGS-OTHER,Facilities,AAH PHARMACEUTICALS LTD,0001609116,2544.00
Department of Health,East Sussex Healthcare NHS Trust,11/05/2011,DRUGS-OTHER,Facilities,AAH PHARMACEUTICALS LTD,0001609127,854.99
Department of Health,East Sussex Healthcare NHS Trust,11/05/2011,DRUGS-OTHER,Facilities,AAH PHARMACEUTICALS LTD,0001609128,628.80
Department of Health,East Sussex Healthcare NHS Trust,11/05/2011,DRUGS-OTHER,Facilities,AAH PHARMACEUTICALS LTD,0001609134,745.20
Department of Health,East Sussex Healthcare NHS Trust,11/05/2011,DRUGS-OTHER,Facilities,AAH PHARMACEUTICALS LTD,0001609135,848.88
Department of Health,East Sussex Healthcare NHS Trust,11/05/2011,DRUGS-OTHER,Facilities,AAH PHARMACEUTICALS LTD,0001609140,623.00
Department of Health,East Sussex Healthcare NHS Trust,11/05/2011,DRUGS-OTHER,Facilities,AAH PHARMACEUTICALS LTD,0001609141,604.80
Department of Health,East Sussex Healthcare NHS Trust,11/05/2011,DRUGS-OTHER,Facilities,AAH PHARMACEUTICALS LTD,0001609145,1485.60
Department of Health,East Sussex Healthcare NHS Trust,12/05/2011,RENT,Management & Corporate Services,KW PEARCE,0001410893,1647.36
Department of Health,East Sussex Healthcare NHS Trust,12/05/2011,POSTAGE - FRANKING MACHINE,Facilities,NEOPOST LTD,0001410894,10000.00
Department of Health,East Sussex Healthcare NHS Trust,12/05/2011,NAT WEST-PURCHASING CARDS,Cross Site,LLOYDS TSB CORPORATE MARKETS,0001410895,31193.47
Department of Health,East Sussex Healthcare NHS Trust,12/05/2011,EASTBOURNE DISTRICT GENERAL,Facilities,EASTBOURNE BOROUGH COUNCIL,0001410896,1841.32
Department of Health,East Sussex Healthcare NHS Trust,12/05/2011,EASTBOURNE DISTRICT GENERAL,Facilities,EASTBOURNE BOROUGH COUNCIL,0001410897,55857.00
Department of Health,East Sussex Healthcare NHS Trust,17/05/2011,NHS SUPPLY CHAIN CREDITORS,Cross Site,NHS SUPPLY CHAIN,0000130879,157201.38
Department of Health,East Sussex Healthcare NHS Trust,17/05/2011,NHS SUPPLY CHAIN CREDITORS,Cross Site,NHS SUPPLY CHAIN,0000130911,155231.66
Department of Health,East Sussex Healthcare NHS Trust,17/05/2011,NHS SUPPLY CHAIN CREDITORS,Cross Site,NHS SUPPLY CHAIN,0000130980,141897.46
Department of Health,East Sussex Healthcare NHS Trust,17/05/2011,SLA WITH BSUH,Medicine & A&E,BRIGHTON AND SUSSEX UNIV HOSPS NHS TRUST,0000131011,67982.63
Department of Health,East Sussex Healthcare NHS Trust,17/05/2011,BLOOD PRODUCTS - NBS ST CONTRA,Clilcal Support Division,NHS BLOOD AND TRANSPLANT (NHSBT),0000131199,112402.27
Department of Health,East Sussex Healthcare NHS Trust,17/05/2011,HIRE OF ACCOMMODATION,Management & Corporate Services,MAIDSTONE & TUNBRIDGE WELLS NHS TRUST,0000131360,600.00
Department of Health,East Sussex Healthcare NHS Trust,17/05/2011,AGENCY RADIOGRAPHY STAFF,Clilcal Support Division,RIG MEDICAL RECRUIT LTD,0000264793,-12214.13
Department of Health,East Sussex Healthcare NHS Trust,17/05/2011,AGENCY SPECIALIST REG,Medicine & A&E,CES LOCUMS,0000267779,822.50
Department of Health,East Sussex Healthcare NHS Trust,17/05/2011,AGENCY SPECIALIST REG,Medicine & A&E,CES LOCUMS,0000267781,781.38
Department of Health,East Sussex Healthcare NHS Trust,17/05/2011,AGENCY SPECIALIST REG,Medicine & A&E,CES LOCUMS,0000268211,1686.13
Department of Health,East Sussex Healthcare NHS Trust,17/05/2011,AGENCY SPECIALIST REG,Medicine & A&E,CES LOCUMS,0000268354,2179.63
Department of Health,East Sussex Healthcare NHS Trust,17/05/2011,AGENCY MLSO,Clilcal Support Division,LABMED,0000268691,1522.48
Department of Health,East Sussex Healthcare NHS Trust,17/05/2011,AGENCY MLSO,Clilcal Support Division,ATLANTIS MEDICAL LTD,0000268727,1212.75
Department of Health,East Sussex Healthcare NHS Trust,17/05/2011,AGENCY RADIOGRAPHY STAFF,Clilcal Support Division,RIG MEDICAL RECRUIT LTD,0000268747,1118.30
Department of Health,East Sussex Healthcare NHS Trust,17/05/2011,AGENCY RADIOGRAPHY STAFF,Clilcal Support Division,RIG MEDICAL RECRUIT LTD,0000268857,1554.00
Department of Health,East Sussex Healthcare NHS Trust,17/05/2011,AGENCY TECHNICIAN,Medicine & A&E,YOUR WORLD RECRUITMENT LTD,0000268974,2160.19
Department of Health,East Sussex Healthcare NHS Trust,17/05/2011,AGENCY TECHNICIAN,Medicine & A&E,YOUR WORLD RECRUITMENT LTD,0000268975,2154.14
Department of Health,East Sussex Healthcare NHS Trust,17/05/2011,AGENCY MLSO,Clilcal Support Division,LABMED,0000269001,1067.52
Department of Health,East Sussex Healthcare NHS Trust,17/05/2011,AGENCY MLSO,Clilcal Support Division,ATLANTIS MEDICAL LTD,0000269107,1148.07
Department of Health,East Sussex Healthcare NHS Trust,17/05/2011,AGENCY STAFF GRADE,Anaesthetics & Surgery,MEDACS HEALTHCARE SERVICES LTD,0000269117,3193.94
Department of Health,East Sussex Healthcare NHS Trust,17/05/2011,AGENCY RADIOGRAPHY STAFF,Clilcal Support Division,RIG MEDICAL RECRUIT LTD,0000269124,1554.00
Department of Health,East Sussex Healthcare NHS Trust,17/05/2011,AGENCY MLSO,Clilcal Support Division,LABMED,0000269205,1493.76
Department of Health,East Sussex Healthcare NHS Trust,17/05/2011,AGENCY MLSO,Clilcal Support Division,ATLANTIS MEDICAL LTD,0000269298,1212.75
Department of Health,East Sussex Healthcare NHS Trust,17/05/2011,AGENCY RADIOGRAPHY STAFF,Clilcal Support Division,RIG MEDICAL RECRUIT LTD,0000269306,1178.94
Department of Health,East Sussex Healthcare NHS Trust,17/05/2011,AGENCY MLSO,Clilcal Support Division,LABMED,0000269410,1693.44
Department of Health,East Sussex Healthcare NHS Trust,17/05/2011,AGENCY MLSO,Clilcal Support Division,LABMED,0000269411,1543.06
Department of Health,East Sussex Healthcare NHS Trust,17/05/2011,AGENCY NURSE - QUALIFIED,Anaesthetics & Surgery,MAYDAY HEALTHCARE PLC,0000269570,556.72
Department of Health,East Sussex Healthcare NHS Trust,17/05/2011,AGENCY ANCILLARY,Management & Corporate Services,INTERWORK RECRUITMENT CONSULTANTS LTD,0000269680,1632.05
Department of Health,East Sussex Healthcare NHS Trust,17/05/2011,AGENCY RADIOGRAPHY STAFF,Clilcal Support Division,MAXXIMA LTD 2,0000270202,907.13
Department of Health,East Sussex Healthcare NHS Trust,17/05/2011,AGENCY STAFF GRADE,Medicine & A&E,CAPITAL MEDICAL LOCUMS LTD,0000270205,591.76
Department of Health,East Sussex Healthcare NHS Trust,17/05/2011,AGENCY MLSO,Clilcal Support Division,LABMED,0000270208,1998.72
Department of Health,East Sussex Healthcare NHS Trust,17/05/2011,AGENCY MLSO,Clilcal Support Division,LABMED,0000270209,1424.26
Department of Health,East Sussex Healthcare NHS Trust,17/05/2011,AGENCY MLSO,Clilcal Support Division,LABMED,0000270210,1522.48
Department of Health,East Sussex Healthcare NHS Trust,17/05/2011,PROVISIONS,Facilities,ANCHOR CATERING LTD,0000270214,538.97
Department of Health,East Sussex Healthcare NHS Trust,17/05/2011,PROVISIONS,Facilities,ANCHOR CATERING LTD,0000270215,1209.30
Department of Health,East Sussex Healthcare NHS Trust,17/05/2011,PROVISIONS,Facilities,MRS GILL'S KITCHEN LTD,0000270222,693.75
Department of Health,East Sussex Healthcare NHS Trust,17/05/2011,PROVISIONS,Facilities,DANISH BACON COMPANY PLC,0000270235,612.21
Department of Health,East Sussex Healthcare NHS Trust,17/05/2011,PROVISIONS,Facilities,ANCHOR CATERING LTD,0000270238,983.10
Department of Health,East Sussex Healthcare NHS Trust,17/05/2011,AGENCY ANCILLARY,Management & Corporate Services,INTERWORK RECRUITMENT CONSULTANTS LTD,0000270274,1324.91
Department of Health,East Sussex Healthcare NHS Trust,17/05/2011,AGENCY RADIOGRAPHY STAFF,Clilcal Support Division,JENNIE REEVES RADIOGRAPHERS AGENCY LTD,0000270298,834.30
Department of Health,East Sussex Healthcare NHS Trust,17/05/2011,AGENCY RADIOGRAPHY STAFF,Clilcal Support Division,RIG MEDICAL RECRUIT LTD,0000270299,1178.94
Department of Health,East Sussex Healthcare NHS Trust,17/05/2011,AGENCY RADIOGRAPHY STAFF,Clilcal Support Division,RIG MEDICAL RECRUIT LTD,0000270300,1118.30
Department of Health,East Sussex Healthcare NHS Trust,17/05/2011,AGENCY RADIOGRAPHY STAFF,Clilcal Support Division,RIG MEDICAL RECRUIT LTD,0000270301,1554.00
Department of Health,East Sussex Healthcare NHS Trust,17/05/2011,HARDWARE & CROCKERY,Facilities,TRI-STAR PACKAGING SUPPLIES LTD,0000270313,623.73
Department of Health,East Sussex Healthcare NHS Trust,17/05/2011,HARDWARE & CROCKERY,Facilities,TRI-STAR PACKAGING SUPPLIES LTD,0000270314,1782.24
Department of Health,East Sussex Healthcare NHS Trust,17/05/2011,PROVISIONS,Facilities,ANCHOR CATERING LTD,0000270336,1209.30
Department of Health,East Sussex Healthcare NHS Trust,17/05/2011,PROVISIONS,Facilities,ANCHOR CATERING LTD,0000270337,538.97
Department of Health,East Sussex Healthcare NHS Trust,17/05/2011,PROVISIONS,Facilities,ANCHOR CATERING LTD,0000270342,538.97
Department of Health,East Sussex Healthcare NHS Trust,17/05/2011,PROVISIONS,Facilities,ANCHOR CATERING LTD,0000270343,1209.30
Department of Health,East Sussex Healthcare NHS Trust,17/05/2011,HARDWARE & CROCKERY,Facilities,BUNZL CATERING SUPPLIES,0000270344,587.50
Department of Health,East Sussex Healthcare NHS Trust,17/05/2011,PROVISIONS,Facilities,DANISH BACON COMPANY PLC,0000270345,889.13
Department of Health,East Sussex Healthcare NHS Trust,17/05/2011,AGENCY SPECIALIST REG,Medicine & A&E,THE ID GROUP LTD (MEDICAL),0000270351,2719.16
Department of Health,East Sussex Healthcare NHS Trust,17/05/2011,AGENCY STAFF GRADE,Medicine & A&E,THE ACCIDENT & EMERGENCY AGENCY LTD,0000270352,3082.50
Department of Health,East Sussex Healthcare NHS Trust,17/05/2011,AGENCY STAFF GRADE,Medicine & A&E,THE ACCIDENT & EMERGENCY AGENCY LTD,0000270353,4009.98
Department of Health,East Sussex Healthcare NHS Trust,17/05/2011,AGENCY NURSE - QUALIFIED,Medicine & A&E,MAYDAY HEALTHCARE PLC,0000270434,532.51
Department of Health,East Sussex Healthcare NHS Trust,17/05/2011,AGENCY NURSE - QUALIFIED,Medicine & A&E,MAYDAY HEALTHCARE PLC,0000270436,522.55
Department of Health,East Sussex Healthcare NHS Trust,17/05/2011,AGENCY SHO - LOCUM,Medicine & A&E,PULSE HEALTHCARE SERVICES LTD,0000270442,2688.00
Department of Health,East Sussex Healthcare NHS Trust,17/05/2011,AGENCY CONSULTANT,Medicine & A&E,MEDACS HEALTHCARE SERVICES LTD,0000270443,7835.22
Department of Health,East Sussex Healthcare NHS Trust,17/05/2011,AGENCY CONSULTANT,Medicine & A&E,MEDACS HEALTHCARE SERVICES LTD,0000270445,2256.35
Department of Health,East Sussex Healthcare NHS Trust,17/05/2011,AGENCY SHO - LOCUM,Medicine & A&E,CAPITAL CARE SERVICES (UK) LTD,0000270448,1858.91
Department of Health,East Sussex Healthcare NHS Trust,17/05/2011,AGENCY SHO - LOCUM,Medicine & A&E,CAPITAL CARE SERVICES (UK) LTD,0000270449,2904.55
Department of Health,East Sussex Healthcare NHS Trust,17/05/2011,AGENCY SHO - LOCUM,Medicine & A&E,PULSE HEALTHCARE SERVICES LTD,0000270450,3360.00
Department of Health,East Sussex Healthcare NHS Trust,17/05/2011,AGENCY RADIOGRAPHY STAFF,Clilcal Support Division,RIG MEDICAL RECRUIT LTD,0000270451,1752.00
Department of Health,East Sussex Healthcare NHS Trust,17/05/2011,AGENCY RADIOGRAPHY STAFF,Clilcal Support Division,RIG MEDICAL RECRUIT LTD,0000270452,12214.13
Department of Health,East Sussex Healthcare NHS Trust,17/05/2011,AGENCY SPECIALIST REG,Medicine & A&E,TLC - THE LOCUM CONSULTANCY,0000270466,2520.00
Department of Health,East Sussex Healthcare NHS Trust,17/05/2011,AGENCY SPECIALIST REG,Medicine & A&E,PULSE HEALTHCARE SERVICES LTD,0000270469,3276.00
Department of Health,East Sussex Healthcare NHS Trust,17/05/2011,AGENCY SPECIALIST REG,Medicine & A&E,PULSE HEALTHCARE SERVICES LTD,0000270473,847.44
Department of Health,East Sussex Healthcare NHS Trust,17/05/2011,AGENCY RADIOGRAPHY STAFF,Clilcal Support Division,RIG MEDICAL RECRUIT LTD,0000270487,1178.94
Department of Health,East Sussex Healthcare NHS Trust,17/05/2011,AGENCY RADIOGRAPHY STAFF,Clilcal Support Division,RIG MEDICAL RECRUIT LTD,0000270488,1071.71
Department of Health,East Sussex Healthcare NHS Trust,17/05/2011,AGENCY RADIOGRAPHY STAFF,Clilcal Support Division,RIG MEDICAL RECRUIT LTD,0000270489,1554.00
Department of Health,East Sussex Healthcare NHS Trust,17/05/2011,PROVISIONS,Facilities,ANCHOR CATERING LTD,0000270554,538.97
Department of Health,East Sussex Healthcare NHS Trust,17/05/2011,PROVISIONS,Facilities,ANCHOR CATERING LTD,0000270555,1209.30
Department of Health,East Sussex Healthcare NHS Trust,17/05/2011,AGENCY STAFF GRADE,Clilcal Support Division,EVERGOOD ASSOCIATES,0000270600,1987.20
Department of Health,East Sussex Healthcare NHS Trust,17/05/2011,TRAVEL & SUBSISTENCE,Clilcal Support Division,EVERGOOD ASSOCIATES,0000270600,90.60
Department of Health,East Sussex Healthcare NHS Trust,17/05/2011,AGENCY MLSO,Clilcal Support Division,ATLANTIS MEDICAL LTD,0000270601,1212.75
Department of Health,East Sussex Healthcare NHS Trust,17/05/2011,AGENCY SPECIALIST REG,Medicine & A&E,MED TEAM HEALTHCARE LIMITED,0000270607,1868.80
Department of Health,East Sussex Healthcare NHS Trust,17/05/2011,AGENCY SPECIALIST REG,Medicine & A&E,THE ID GROUP LTD (MEDICAL),0000270609,3112.20
Department of Health,East Sussex Healthcare NHS Trust,17/05/2011,AGENCY MLSO,Clilcal Support Division,PULSE HEALTHCARE SERVICES LTD,0000270611,813.78
Department of Health,East Sussex Healthcare NHS Trust,17/05/2011,AGENCY SHO - LOCUM,Medicine & A&E,MYLOCUM LTD,0000270613,1322.17
Department of Health,East Sussex Healthcare NHS Trust,17/05/2011,AGENCY CONSULTANT,Medicine & A&E,MEDACS HEALTHCARE SERVICES LTD,0000270622,2231.56
Department of Health,East Sussex Healthcare NHS Trust,17/05/2011,AGENCY CONSULTANT,Medicine & A&E,MEDACS HEALTHCARE SERVICES LTD,0000270623,2231.56
Department of Health,East Sussex Healthcare NHS Trust,17/05/2011,AGENCY RADIOGRAPHY STAFF,Clilcal Support Division,RIG MEDICAL RECRUIT LTD,0000270641,1687.20
Department of Health,East Sussex Healthcare NHS Trust,17/05/2011,AGENCY RADIOGRAPHY STAFF,Clilcal Support Division,RIG MEDICAL RECRUIT LTD,0000270642,1118.30
Department of Health,East Sussex Healthcare NHS Trust,17/05/2011,AGENCY RADIOGRAPHY STAFF,Clilcal Support Division,RIG MEDICAL RECRUIT LTD,0000270643,1178.94
Department of Health,East Sussex Healthcare NHS Trust,17/05/2011,AGENCY STAFF GRADE,Medicine & A&E,RESUSCITATE MEDICAL SERVICES LTD,0000270713,758.67
Department of Health,East Sussex Healthcare NHS Trust,17/05/2011,AGENCY MTO,Anaesthetics & Surgery,ORION LOCUMS LTD,0000270719,1014.00
Department of Health,East Sussex Healthcare NHS Trust,17/05/2011,AGENCY MTO,Anaesthetics & Surgery,ORION LOCUMS LTD,0000270720,1494.80
Department of Health,East Sussex Healthcare NHS Trust,17/05/2011,AGENCY ANCILLARY,Facilities,INTERWORK RECRUITMENT CONSULTANTS LTD,0000270776,747.91
Department of Health,East Sussex Healthcare NHS Trust,17/05/2011,AGENCY - GENERAL GRADES,Facilities,INTERWORK RECRUITMENT CONSULTANTS LTD,0000270790,761.99
Department of Health,East Sussex Healthcare NHS Trust,17/05/2011,AGENCY ANCILLARY,Facilities,INTERWORK RECRUITMENT CONSULTANTS LTD,0000270796,898.09
Department of Health,East Sussex Healthcare NHS Trust,17/05/2011,AGENCY ANCILLARY,Facilities,INTERWORK RECRUITMENT CONSULTANTS LTD,0000270798,585.69
Department of Health,East Sussex Healthcare NHS Trust,17/05/2011,AGENCY ANCILLARY,Facilities,INTERWORK RECRUITMENT CONSULTANTS LTD,0000270799,692.68
Department of Health,East Sussex Healthcare NHS Trust,17/05/2011,AGENCY ANCILLARY,Facilities,INTERWORK RECRUITMENT CONSULTANTS LTD,0000270803,522.59
Department of Health,East Sussex Healthcare NHS Trust,17/05/2011,AGENCY NURSE - QUALIFIED,Anaesthetics & Surgery,ORION LOCUMS LTD,0000270815,1152.00
Department of Health,East Sussex Healthcare NHS Trust,17/05/2011,AGENCY NURSE - QUALIFIED,Anaesthetics & Surgery,ORION LOCUMS LTD,0000270817,1420.80
Department of Health,East Sussex Healthcare NHS Trust,17/05/2011,AGENCY MTO,Anaesthetics & Surgery,ORION LOCUMS LTD,0000270818,691.20
Department of Health,East Sussex Healthcare NHS Trust,17/05/2011,AGENCY MTO,Anaesthetics & Surgery,ORION LOCUMS LTD,0000270819,1152.00
Department of Health,East Sussex Healthcare NHS Trust,17/05/2011,AGENCY MTO,Anaesthetics & Surgery,ORION LOCUMS LTD,0000270820,1094.40
Department of Health,East Sussex Healthcare NHS Trust,17/05/2011,AGENCY MTO,Anaesthetics & Surgery,ORION LOCUMS LTD,0000270821,595.20
Department of Health,East Sussex Healthcare NHS Trust,17/05/2011,PROVISIONS,Facilities,BRAKE BROS (FROZEN FOODS) LTD,0000270840,630.34
Department of Health,East Sussex Healthcare NHS Trust,17/05/2011,PROVISIONS,Facilities,BRAKE BROS (FROZEN FOODS) LTD,0000270844,527.64
Department of Health,East Sussex Healthcare NHS Trust,17/05/2011,PROVISIONS,Facilities,FOODARI LIMITED,0000270895,856.90
Department of Health,East Sussex Healthcare NHS Trust,17/05/2011,PROVISIONS,Facilities,ANCHOR CATERING LTD,0000270907,538.97
Department of Health,East Sussex Healthcare NHS Trust,17/05/2011,PROVISIONS,Facilities,ANCHOR CATERING LTD,0000270911,1209.30
Department of Health,East Sussex Healthcare NHS Trust,17/05/2011,PROVISIONS,Facilities,FOODARI LIMITED,0000270914,637.64
Department of Health,East Sussex Healthcare NHS Trust,17/05/2011,PROVISIONS,Facilities,FOODARI LIMITED,0000270924,600.67
Department of Health,East Sussex Healthcare NHS Trust,17/05/2011,PROVISIONS,Facilities,ANCHOR CATERING LTD,0000270925,1209.30
Department of Health,East Sussex Healthcare NHS Trust,17/05/2011,PROVISIONS,Facilities,FOODARI LIMITED,0000270930,548.27
Department of Health,East Sussex Healthcare NHS Trust,17/05/2011,PROVISIONS,Facilities,FOODARI LIMITED,0000270932,909.67
Department of Health,East Sussex Healthcare NHS Trust,17/05/2011,AGENCY - GENERAL GRADES,Facilities,INTERWORK RECRUITMENT CONSULTANTS LTD,0000270945,673.38
Department of Health,East Sussex Healthcare NHS Trust,17/05/2011,AGENCY - GENERAL GRADES,Facilities,INTERWORK RECRUITMENT CONSULTANTS LTD,0000270947,3426.15
Department of Health,East Sussex Healthcare NHS Trust,17/05/2011,AGENCY - GENERAL GRADES,Facilities,INTERWORK RECRUITMENT CONSULTANTS LTD,0000270951,691.94
Department of Health,East Sussex Healthcare NHS Trust,17/05/2011,AGENCY SHO - LOCUM,Medicine & A&E,MEDACS HEALTHCARE SERVICES LTD,0000270954,2307.26
Department of Health,East Sussex Healthcare NHS Trust,17/05/2011,AGENCY SPECIALIST REG,Medicine & A&E,MEDACS HEALTHCARE SERVICES LTD,0000270955,2831.35
Department of Health,East Sussex Healthcare NHS Trust,17/05/2011,AGENCY - GENERAL GRADES,Facilities,INTERWORK RECRUITMENT CONSULTANTS LTD,0000270993,3305.10
Department of Health,East Sussex Healthcare NHS Trust,17/05/2011,MEDICAL GAS - VIE USE,Facilities,BOC (MANCHESTER)LTD,0000355891,516.59
Department of Health,East Sussex Healthcare NHS Trust,17/05/2011,CONTRACT ENGINEERING MAINT,Facilities,SAUTER AUTOMATION LIMITED,0000355927,466.94
Department of Health,East Sussex Healthcare NHS Trust,17/05/2011,CONTRACT ENGINEERING MAINT,Facilities,SAUTER AUTOMATION LIMITED,0000355928,466.94
Department of Health,East Sussex Healthcare NHS Trust,17/05/2011,CAPITAL EXPENDITURE,Capital,SAUTER AUTOMATION LIMITED,0000355929,652.50
Department of Health,East Sussex Healthcare NHS Trust,17/05/2011,CONTRACT ENGINEERING MAINT,Facilities,PROECONOMY LTD,0000355933,5300.00
Department of Health,East Sussex Healthcare NHS Trust,17/05/2011,CONTRACT ENGINEERING MAINT,Facilities,AXIS ELEVATORS LTD,0000355955,393.75
Department of Health,East Sussex Healthcare NHS Trust,17/05/2011,CONTRACT ENGINEERING MAINT,Facilities,AXIS ELEVATORS LTD,0000355955,14.59
Department of Health,East Sussex Healthcare NHS Trust,17/05/2011,CONTRACT ENGINEERING MAINT,Facilities,AXIS ELEVATORS LTD,0000355955,358.73
Department of Health,East Sussex Healthcare NHS Trust,17/05/2011,CONTRACT ENGINEERING MAINT,Facilities,AXIS ELEVATORS LTD,0000355955,35.00
Department of Health,East Sussex Healthcare NHS Trust,17/05/2011,MEDICAL GAS - VIE USE,Facilities,BOC (MANCHESTER)LTD,0000355991,598.16
Department of Health,East Sussex Healthcare NHS Trust,17/05/2011,MEDICAL GAS - CYLINDER USE,Facilities,BOC (MANCHESTER)LTD,0000355992,555.47
Department of Health,East Sussex Healthcare NHS Trust,17/05/2011,CONTRACT ENGINEERING MAINT,Facilities,PHS COMPLIANCE,0000356003,603.00
Department of Health,East Sussex Healthcare NHS Trust,17/05/2011,CAPITAL EXPENDITURE,Capital,PHS COMPLIANCE,0000356004,6308.00
Department of Health,East Sussex Healthcare NHS Trust,17/05/2011,MEDICAL GAS - CYLINDER RENTAL,Facilities,BOC (MANCHESTER)LTD,0000356009,2336.60
Department of Health,East Sussex Healthcare NHS Trust,17/05/2011,MEDICAL GAS - VIE RENTAL,Facilities,BOC (MANCHESTER)LTD,0000356011,43.42
Department of Health,East Sussex Healthcare NHS Trust,17/05/2011,MEDICAL GAS - VIE USE,Facilities,BOC (MANCHESTER)LTD,0000356011,795.36
Department of Health,East Sussex Healthcare NHS Trust,17/05/2011,CONTRACT ENGINEERING MAINT,Facilities,ICOM,0000356105,1121.87
Department of Health,East Sussex Healthcare NHS Trust,17/05/2011,CONTRACT ENGINEERING MAINT,Facilities,ICOM,0000356105,212.50
Department of Health,East Sussex Healthcare NHS Trust,17/05/2011,MEDICAL GAS - CYLINDER RENTAL,Facilities,BOC (MANCHESTER)LTD,0000356155,3366.05
Department of Health,East Sussex Healthcare NHS Trust,17/05/2011,CAPITAL EXPENDITURE,Capital,HEWLETT-PACKARD LTD,0000485241,714.65
Department of Health,East Sussex Healthcare NHS Trust,17/05/2011,PROSTHESES-HIP,Anaesthetics & Surgery,DEPUY INTERNATIONAL LTD (ORTHOPAEDIC),0000487833,5315.76
Department of Health,East Sussex Healthcare NHS Trust,17/05/2011,NATIONAL JOINT REGISTRY LEVY,Anaesthetics & Surgery,DEPUY INTERNATIONAL LTD (ORTHOPAEDIC),0000487833,60.01
Department of Health,East Sussex Healthcare NHS Trust,17/05/2011,PROSTHESES-HIP,Anaesthetics & Surgery,DEPUY INTERNATIONAL LTD (ORTHOPAEDIC),0000488100,16465.80
Department of Health,East Sussex Healthcare NHS Trust,17/05/2011,PROSTHESES-OTHER,Anaesthetics & Surgery,DEPUY INTERNATIONAL LTD (ORTHOPAEDIC),0000488100,71.76
Department of Health,East Sussex Healthcare NHS Trust,17/05/2011,NATIONAL JOINT REGISTRY LEVY,Anaesthetics & Surgery,DEPUY INTERNATIONAL LTD (ORTHOPAEDIC),0000488100,120.02
Department of Health,East Sussex Healthcare NHS Trust,17/05/2011,CATARACT CONSUMABLES,Anaesthetics & Surgery,ALTOMED LTD,0000488500,927.60
Department of Health,East Sussex Healthcare NHS Trust,17/05/2011,PROSTHESES-KNEES,Anaesthetics & Surgery,BIOMET EUROPE,0000488649,686.40
Department of Health,East Sussex Healthcare NHS Trust,17/05/2011,NATIONAL JOINT REGISTRY LEVY,Anaesthetics & Surgery,BIOMET EUROPE,0000488649,20.00
Department of Health,East Sussex Healthcare NHS Trust,17/05/2011,SURGICAL INSTRUMENTS,Anaesthetics & Surgery,SMITH & NEPHEW ENDOSCOPY,0000488650,1163.09
Department of Health,East Sussex Healthcare NHS Trust,17/05/2011,ARTHROSCOPY INSTRUMENTS,Anaesthetics & Surgery,SMITH & NEPHEW ENDOSCOPY,0000488650,1177.49
Department of Health,East Sussex Healthcare NHS Trust,17/05/2011,LAB MATS IL CONSUMABLES,Clilcal Support Division,INSTRUMENTATION LABORATORIES UK LTD,0000488651,6121.01
Department of Health,East Sussex Healthcare NHS Trust,17/05/2011,PACEMAKERS,Medicine & A&E,SORIN GROUP UK LTD,0000488652,23640.00
Department of Health,East Sussex Healthcare NHS Trust,17/05/2011,LAB MATS-CLINICAL,Clilcal Support Division,MANA-TECH LTD,0000488655,1164.00
Department of Health,East Sussex Healthcare NHS Trust,17/05/2011,LAB MATS IL CONSUMABLES,Clilcal Support Division,INSTRUMENTATION LABORATORIES UK LTD,0000488658,5991.36
Department of Health,East Sussex Healthcare NHS Trust,17/05/2011,INTERVENTIONAL DISPOSABLES,Medicine & A&E,JOHNSON & JOHNSON MEDICAL LTD,0000488659,234.00
Department of Health,East Sussex Healthcare NHS Trust,17/05/2011,CARDIOLOGY CATHETERS,Medicine & A&E,JOHNSON & JOHNSON MEDICAL LTD,0000488659,420.00
Department of Health,East Sussex Healthcare NHS Trust,17/05/2011,PRINTING/PRINTED MATERIALS,Medicine & A&E,COLLECTOR SET PRINTERS,0000488674,819.12
Department of Health,East Sussex Healthcare NHS Trust,17/05/2011,OTHER STATIONERY,Medicine & A&E,COLLECTOR SET PRINTERS,0000488674,164.40
Department of Health,East Sussex Healthcare NHS Trust,17/05/2011,PROSTHESIS - LENS,Anaesthetics & Surgery,ALCON LABORATORIES (UK) LTD,0000488684,1041.60
Department of Health,East Sussex Healthcare NHS Trust,17/05/2011,GENERAL LAB. CONSUMABLES,Clilcal Support Division,BIOMERIEUX UK LTD,0000488697,1321.02
Department of Health,East Sussex Healthcare NHS Trust,17/05/2011,M&S GENERAL SUPPLIES-OTHER,Anaesthetics & Surgery,BIOMET EUROPE,0000488703,72.00
Department of Health,East Sussex Healthcare NHS Trust,17/05/2011,SURGICAL INSTRUMENTS,Anaesthetics & Surgery,BIOMET EUROPE,0000488703,156.00
Department of Health,East Sussex Healthcare NHS Trust,17/05/2011,PROSTHESES-KNEES,Anaesthetics & Surgery,BIOMET EUROPE,0000488703,8305.80
Department of Health,East Sussex Healthcare NHS Trust,17/05/2011,NATIONAL JOINT REGISTRY LEVY,Anaesthetics & Surgery,BIOMET EUROPE,0000488703,20.00
Department of Health,East Sussex Healthcare NHS Trust,17/05/2011,STAPLING DEVICES,Anaesthetics & Surgery,JOHNSON & JOHNSON MEDICAL LTD,0000488706,166.27
Department of Health,East Sussex Healthcare NHS Trust,17/05/2011,LASER/LAPARASCOPIC EQUIPMENT,Anaesthetics & Surgery,JOHNSON & JOHNSON MEDICAL LTD,0000488706,1571.45
Department of Health,East Sussex Healthcare NHS Trust,17/05/2011,CARDIOLOGY CATHETERS,Anaesthetics & Surgery,JOHNSON & JOHNSON MEDICAL LTD,0000488706,481.30
Department of Health,East Sussex Healthcare NHS Trust,17/05/2011,CPAP VENTILATOR,Anaesthetics & Surgery,RESMED (UK) LTD,0000488721,2016.00
Department of Health,East Sussex Healthcare NHS Trust,17/05/2011,M&S GENERAL SUPPLIES-OTHER,Anaesthetics & Surgery,RESMED (UK) LTD,0000488721,462.00
Department of Health,East Sussex Healthcare NHS Trust,17/05/2011,CARDIOLOGY STENTS,Medicine & A&E,MEDTRONIC LTD,0000488736,720.00
Department of Health,East Sussex Healthcare NHS Trust,17/05/2011,DIAMED CONSUMABLES,Clilcal Support Division,DIAMED-GB LTD,0000488742,361.20
Department of Health,East Sussex Healthcare NHS Trust,17/05/2011,COMPUTER CONSUMABLES,Clilcal Support Division,DIAMED-GB LTD,0000488742,194.40
Department of Health,East Sussex Healthcare NHS Trust,17/05/2011,LOANER KITS - HIRE CHARGE,Anaesthetics & Surgery,DEPUY INTERNATIONAL LTD (ORTHOPAEDIC),0000488758,1512.00
Department of Health,East Sussex Healthcare NHS Trust,17/05/2011,PROSTHESES-OTHER,Anaesthetics & Surgery,DEPUY INTERNATIONAL LTD (ORTHOPAEDIC),0000488758,1438.80
Department of Health,East Sussex Healthcare NHS Trust,17/05/2011,LOANER KITS - HIRE CHARGE,Anaesthetics & Surgery,DEPUY INTERNATIONAL LTD (ORTHOPAEDIC),0000488759,1339.20
Department of Health,East Sussex Healthcare NHS Trust,17/05/2011,LOANER KITS - HIRE CHARGE,Anaesthetics & Surgery,DEPUY INTERNATIONAL LTD (ORTHOPAEDIC),0000488760,840.00
Department of Health,East Sussex Healthcare NHS Trust,17/05/2011,PROSTHESES-OTHER,Anaesthetics & Surgery,DEPUY INTERNATIONAL LTD (ORTHOPAEDIC),0000488760,3664.80
Department of Health,East Sussex Healthcare NHS Trust,17/05/2011,NATIONAL JOINT REGISTRY LEVY,Anaesthetics & Surgery,DEPUY INTERNATIONAL LTD (ORTHOPAEDIC),0000488760,20.00
Department of Health,East Sussex Healthcare NHS Trust,17/05/2011,PROSTHESES-HIP,Anaesthetics & Surgery,JOINT REPLACEMENT INSTRUMENTATION  LTD,0000488769,2980.80
Department of Health,East Sussex Healthcare NHS Trust,17/05/2011,NATIONAL JOINT REGISTRY LEVY,Anaesthetics & Surgery,JOINT REPLACEMENT INSTRUMENTATION  LTD,0000488769,20.00
Department of Health,East Sussex Healthcare NHS Trust,17/05/2011,INTERVENTIONAL DISPOSABLES,Medicine & A&E,UK MEDICAL LTD,0000488812,810.00
Department of Health,East Sussex Healthcare NHS Trust,17/05/2011,PROSTHESES-HIP,Anaesthetics & Surgery,DEPUY INTERNATIONAL LTD (ORTHOPAEDIC),0000488823,3289.68
Department of Health,East Sussex Healthcare NHS Trust,17/05/2011,NATIONAL JOINT REGISTRY LEVY,Anaesthetics & Surgery,DEPUY INTERNATIONAL LTD (ORTHOPAEDIC),0000488823,20.00
Department of Health,East Sussex Healthcare NHS Trust,17/05/2011,PROSTHESIS - LENS,Anaesthetics & Surgery,ALCON LABORATORIES (UK) LTD,0000488839,1041.60
Department of Health,East Sussex Healthcare NHS Trust,17/05/2011,M&S GENERAL SUPPLIES-OTHER,Anaesthetics & Surgery,B BRAUN MEDICAL LTD,0000488849,1661.16
Department of Health,East Sussex Healthcare NHS Trust,17/05/2011,PRINTING/PRINTED MATERIALS,Management & Corporate Services,COLLECTOR SET PRINTERS,0000488851,743.85
Department of Health,East Sussex Healthcare NHS Trust,17/05/2011,PROSTHESES-HIP,Anaesthetics & Surgery,DEPUY INTERNATIONAL LTD (ORTHOPAEDIC),0000488877,7955.04
Department of Health,East Sussex Healthcare NHS Trust,17/05/2011,NATIONAL JOINT REGISTRY LEVY,Anaesthetics & Surgery,DEPUY INTERNATIONAL LTD (ORTHOPAEDIC),0000488877,40.01
Department of Health,East Sussex Healthcare NHS Trust,17/05/2011,LOANER KITS - HIRE CHARGE,Anaesthetics & Surgery,DEPUY INTERNATIONAL LTD (ORTHOPAEDIC),0000488878,840.00
Department of Health,East Sussex Healthcare NHS Trust,17/05/2011,PROSTHESES-OTHER,Anaesthetics & Surgery,DEPUY INTERNATIONAL LTD (ORTHOPAEDIC),0000488878,530.40
Department of Health,East Sussex Healthcare NHS Trust,17/05/2011,PACEMAKERS,Medicine & A&E,MEDTRONIC LTD,0000488884,3600.00
Department of Health,East Sussex Healthcare NHS Trust,17/05/2011,M&S EQUIPMENT - OTHER,Clilcal Support Division,MEDTRONIC LTD,0000488886,532.80
Department of Health,East Sussex Healthcare NHS Trust,17/05/2011,M&S GENERAL SUPPLIES-OTHER,Clilcal Support Division,MEDTRONIC LTD,0000488886,228.00
Department of Health,East Sussex Healthcare NHS Trust,17/05/2011,SURGICAL INSTRUMENTS,Clilcal Support Division,MEDTRONIC LTD,0000488886,3040.80
Department of Health,East Sussex Healthcare NHS Trust,17/05/2011,CATARACT CONSUMABLES,Anaesthetics & Surgery,ALCON LABORATORIES (UK) LTD,0000488887,1955.16
Department of Health,East Sussex Healthcare NHS Trust,17/05/2011,CATARACT CONSUMABLES,Anaesthetics & Surgery,ALCON LABORATORIES (UK) LTD,0000488888,1910.16
Department of Health,East Sussex Healthcare NHS Trust,17/05/2011,PROSTHESIS - LENS,Anaesthetics & Surgery,ALCON LABORATORIES (UK) LTD,0000488889,918.00
Department of Health,East Sussex Healthcare NHS Trust,17/05/2011,COMPUTER HARDWARE,Clilcal Support Division,BYTES SOFTWARE SERVICES LTD,0000488892,1323.00
Department of Health,East Sussex Healthcare NHS Trust,17/05/2011,PRE-STERILE COMMERCIAL PACKS,Anaesthetics & Surgery,FRONTIER MULTIGATE,0000488896,556.80
Department of Health,East Sussex Healthcare NHS Trust,17/05/2011,DRESSINGS-OTHER,Anaesthetics & Surgery,BAXTER HEALTHCARE (BERKSHIRE)LTD,0000488906,1309.49
Department of Health,East Sussex Healthcare NHS Trust,17/05/2011,M&S GENERAL SUPPLIES-OTHER,Anaesthetics & Surgery,REPTON MEDICAL LTD (RMSP),0000488913,504.00
Department of Health,East Sussex Healthcare NHS Trust,17/05/2011,"PATS APPL - NECK, ARM, HAND",Anaesthetics & Surgery,DP MEDICAL SYSTEMS LTD,0000488922,2055.60
Department of Health,East Sussex Healthcare NHS Trust,17/05/2011,DRUGS-HAEMAPHILIA PRODUCTS,Clilcal Support Division,CSL BEHRING,0000488923,1600.00
Department of Health,East Sussex Healthcare NHS Trust,17/05/2011,GENERAL LAB. CONSUMABLES,Clilcal Support Division,OXOID LIMITED,0000488924,303.64
Department of Health,East Sussex Healthcare NHS Trust,17/05/2011,OTHER MEDIA,Clilcal Support Division,OXOID LIMITED,0000488924,677.05
Department of Health,East Sussex Healthcare NHS Trust,17/05/2011,SENSITIVITY DISKS,Clilcal Support Division,OXOID LIMITED,0000488928,406.02
Department of Health,East Sussex Healthcare NHS Trust,17/05/2011,GENERAL LAB. CONSUMABLES,Clilcal Support Division,OXOID LIMITED,0000488928,57.48
Department of Health,East Sussex Healthcare NHS Trust,17/05/2011,GENERAL CHEMICALS,Clilcal Support Division,OXOID LIMITED,0000488928,84.84
Department of Health,East Sussex Healthcare NHS Trust,17/05/2011,GENERAL LAB. CONSUMABLES,Clilcal Support Division,OXOID LIMITED,0000488929,529.31
Department of Health,East Sussex Healthcare NHS Trust,17/05/2011,OTHER MEDIA,Clilcal Support Division,OXOID LIMITED,0000488929,558.35
Department of Health,East Sussex Healthcare NHS Trust,17/05/2011,SURGICAL INSTRUMENTS,Anaesthetics & Surgery,WG HEALTHCARE UK LTD,0000488935,1188.00
Department of Health,East Sussex Healthcare NHS Trust,17/05/2011,ARTHROSCOPY INSTRUMENTS,Anaesthetics & Surgery,SMITH & NEPHEW ENDOSCOPY,0000488937,2340.58
Department of Health,East Sussex Healthcare NHS Trust,17/05/2011,INTERVENTIONAL DISPOSABLES,Medicine & A&E,MERIT MEDICAL SYSTEMS,0000488941,846.00
Department of Health,East Sussex Healthcare NHS Trust,17/05/2011,PACEMAKERS,Medicine & A&E,TECHNOMED LTD,0000488943,639.60
Department of Health,East Sussex Healthcare NHS Trust,17/05/2011,GENERAL LAB. CONSUMABLES,Clilcal Support Division,DIAGNOSTIC REAGENTS LTD,0000488951,695.56
Department of Health,East Sussex Healthcare NHS Trust,17/05/2011,PROSTHESES-KNEES,Anaesthetics & Surgery,BIOMET EUROPE,0000488955,2110.80
Department of Health,East Sussex Healthcare NHS Trust,17/05/2011,PROSTHESES-OTHER,Anaesthetics & Surgery,BIOMET EUROPE,0000488955,357.60
Department of Health,East Sussex Healthcare NHS Trust,17/05/2011,NATIONAL JOINT REGISTRY LEVY,Anaesthetics & Surgery,BIOMET EUROPE,0000488955,20.00
Department of Health,East Sussex Healthcare NHS Trust,17/05/2011,PROSTHESES-HIP,Anaesthetics & Surgery,STRYKER UK,0000488958,1930.10
Department of Health,East Sussex Healthcare NHS Trust,17/05/2011,PROSTHESES-OTHER,Anaesthetics & Surgery,STRYKER UK,0000488958,177.12
Department of Health,East Sussex Healthcare NHS Trust,17/05/2011,NATIONAL JOINT REGISTRY LEVY,Anaesthetics & Surgery,STRYKER UK,0000488958,20.00
Department of Health,East Sussex Healthcare NHS Trust,17/05/2011,SURGICAL INSTRUMENTS,Anaesthetics & Surgery,STRYKER UK,0000488960,65.34
Department of Health,East Sussex Healthcare NHS Trust,17/05/2011,PROSTHESES-OTHER,Anaesthetics & Surgery,STRYKER UK,0000488960,2525.82
Department of Health,East Sussex Healthcare NHS Trust,17/05/2011,M&S GENERAL SUPPLIES-OTHER,Anaesthetics & Surgery,STRYKER UK,0000488963,696.30
Department of Health,East Sussex Healthcare NHS Trust,17/05/2011,PROSTHESES-OTHER,Anaesthetics & Surgery,STRYKER UK,0000488963,1312.08
Department of Health,East Sussex Healthcare NHS Trust,17/05/2011,DRESSINGS-OTHER,Facilities,KCI MEDICAL LTD,0000488966,658.80
Department of Health,East Sussex Healthcare NHS Trust,17/05/2011,M&S GENERAL SUPPLIES-OTHER,Anaesthetics & Surgery,DELTEX MEDICAL,0000488968,914.40
Department of Health,East Sussex Healthcare NHS Trust,17/05/2011,IMMUNONOLOGY REAGENTS,Clilcal Support Division,LAUNCH DIAGNOSTICS LTD,0000488969,7924.61
Department of Health,East Sussex Healthcare NHS Trust,17/05/2011,GENERAL LAB. CONSUMABLES,Clilcal Support Division,PRO-LAB DIAGNOSTICS,0000488972,997.20
Department of Health,East Sussex Healthcare NHS Trust,17/05/2011,LABORATORY CHEMICALS,Clilcal Support Division,PRO-LAB DIAGNOSTICS,0000488972,40.44
Department of Health,East Sussex Healthcare NHS Trust,17/05/2011,GENERAL CHEMICALS,Clilcal Support Division,PRO-LAB DIAGNOSTICS,0000488972,107.40
Department of Health,East Sussex Healthcare NHS Trust,17/05/2011,M&S GENERAL SUPPLIES-OTHER,Medicine & A&E,BOC (MANCHESTER)LTD,0000488997,470.10
Department of Health,East Sussex Healthcare NHS Trust,17/05/2011,MEDICAL GASES,Womens & Childrens,BOC (MANCHESTER)LTD,0000488997,16.50
Department of Health,East Sussex Healthcare NHS Trust,17/05/2011,M&S GENERAL SUPPLIES-OTHER,Womens & Childrens,BOC (MANCHESTER)LTD,0000488997,907.20
Department of Health,East Sussex Healthcare NHS Trust,17/05/2011,M&S GENERAL SUPPLIES-OTHER,Womens & Childrens,DRAEGER MEDICAL UK LTD,0000488998,132.00
Department of Health,East Sussex Healthcare NHS Trust,17/05/2011,BILIARY STENTS,Clilcal Support Division,BOSTON SCIENTIFIC LTD,0000489002,600.00
Department of Health,East Sussex Healthcare NHS Trust,17/05/2011,GENERAL LAB. CONSUMABLES,Clilcal Support Division,BD UK LTD,0000489007,534.00
Department of Health,East Sussex Healthcare NHS Trust,17/05/2011,M&S GENERAL SUPPLIES-OTHER,Clilcal Support Division,UK MEDICAL LTD,0000489009,543.00
Department of Health,East Sussex Healthcare NHS Trust,17/05/2011,IMMUNONOLOGY REAGENTS,Clilcal Support Division,INSTRUMENTATION LABORATORIES UK LTD,0000489017,4666.08
Department of Health,East Sussex Healthcare NHS Trust,17/05/2011,LAB MATS IL CONSUMABLES,Clilcal Support Division,INSTRUMENTATION LABORATORIES UK LTD,0000489018,2420.40
Department of Health,East Sussex Healthcare NHS Trust,17/05/2011,LAB MATS IL CONSUMABLES,Clilcal Support Division,INSTRUMENTATION LABORATORIES UK LTD,0000489019,1856.40
Department of Health,East Sussex Healthcare NHS Trust,17/05/2011,PROSTHESES-HIP,Anaesthetics & Surgery,LIMA ORTHOPAEDICS UK LIMITED,0000489497,1126.80
Department of Health,East Sussex Healthcare NHS Trust,17/05/2011,PROSTHESES-OTHER,Anaesthetics & Surgery,LIMA ORTHOPAEDICS UK LIMITED,0000489497,165.60
Department of Health,East Sussex Healthcare NHS Trust,17/05/2011,NATIONAL JOINT REGISTRY LEVY,Anaesthetics & Surgery,LIMA ORTHOPAEDICS UK LIMITED,0000489497,20.00
Department of Health,East Sussex Healthcare NHS Trust,17/05/2011,CAPITAL EXPENDITURE,Capital,HEWLETT-PACKARD LTD,0000489684,-714.67
Department of Health,East Sussex Healthcare NHS Trust,17/05/2011,CAPITAL EXPENDITURE,Capital,MAINTEL EUROPE LIMITED,0000583484,54634.88
Department of Health,East Sussex Healthcare NHS Trust,17/05/2011,PROSTHESES-OTHER,Anaesthetics & Surgery,ZIMMER LTD,0000587291,3625.20
Department of Health,East Sussex Healthcare NHS Trust,17/05/2011,INTERVENTIONAL DISPOSABLES,Medicine & A&E,UK MEDICAL LTD,0000587296,510.00
Department of Health,East Sussex Healthcare NHS Trust,17/05/2011,DRUGS-HAEMAPHILIA PRODUCTS,Clilcal Support Division,ALLIANCE HEALTHCARE (DISTRIBUTION) LTD,0000588961,7200.00
Department of Health,East Sussex Healthcare NHS Trust,17/05/2011,LOANER KITS - HIRE CHARGE,Anaesthetics & Surgery,STRYKER UK,0000589277,444.00
Department of Health,East Sussex Healthcare NHS Trust,17/05/2011,PROSTHESES-OTHER,Anaesthetics & Surgery,STRYKER UK,0000589277,2056.80
Department of Health,East Sussex Healthcare NHS Trust,17/05/2011,NATIONAL JOINT REGISTRY LEVY,Anaesthetics & Surgery,STRYKER UK,0000589277,20.00
Department of Health,East Sussex Healthcare NHS Trust,17/05/2011,M&S GENERAL SUPPLIES-OTHER,Medicine & A&E,POSHCHAIR MEDICAL LTD,0000589278,2670.00
Department of Health,East Sussex Healthcare NHS Trust,17/05/2011,PATS.APPL.-DENTAL,Anaesthetics & Surgery,SOUTHERN ORTHO SERVICE,0000589302,1538.50
Department of Health,East Sussex Healthcare NHS Trust,17/05/2011,PRINTING/PRINTED MATERIALS,Anaesthetics & Surgery,COLLECTOR SET PRINTERS,0000589322,92.41
Department of Health,East Sussex Healthcare NHS Trust,17/05/2011,OTHER STATIONERY,Anaesthetics & Surgery,COLLECTOR SET PRINTERS,0000589322,1370.00
Department of Health,East Sussex Healthcare NHS Trust,17/05/2011,PRINTING/PRINTED MATERIALS,Womens & Childrens,COLLECTOR SET PRINTERS,0000589327,8850.00
Department of Health,East Sussex Healthcare NHS Trust,17/05/2011,COMPUTER CONSUMABLES,Facilities,PRINTERBASE LTD,0000589339,455.22
Department of Health,East Sussex Healthcare NHS Trust,17/05/2011,COMPUTER CONSUMABLES,Facilities,PRINTERBASE LTD,0000589339,-8.40
Department of Health,East Sussex Healthcare NHS Trust,17/05/2011,COMPUTER CONSUMABLES,Clilcal Support Division,PRINTERBASE LTD,0000589339,405.90
Department of Health,East Sussex Healthcare NHS Trust,17/05/2011,INTERVENTIONAL DISPOSABLES,Clilcal Support Division,MANA-TECH LTD,0000589340,1212.00
Department of Health,East Sussex Healthcare NHS Trust,17/05/2011,M&S GENERAL SUPPLIES-OTHER,Clilcal Support Division,MEDICAL INNOVATIONS LTD,0000589342,2160.00
Department of Health,East Sussex Healthcare NHS Trust,17/05/2011,LOANER KITS - HIRE CHARGE,Anaesthetics & Surgery,SMITH & NEPHEW ORTHOPAEDICS LTD,0000589356,450.00
Department of Health,East Sussex Healthcare NHS Trust,17/05/2011,PROSTHESES-OTHER,Anaesthetics & Surgery,SMITH & NEPHEW ORTHOPAEDICS LTD,0000589356,4658.09
Department of Health,East Sussex Healthcare NHS Trust,17/05/2011,NATIONAL JOINT REGISTRY LEVY,Anaesthetics & Surgery,SMITH & NEPHEW ORTHOPAEDICS LTD,0000589356,20.00
Department of Health,East Sussex Healthcare NHS Trust,17/05/2011,PACEMAKERS,Medicine & A&E,MEDTRONIC LTD,0000589359,1260.00
Department of Health,East Sussex Healthcare NHS Trust,17/05/2011,CARDIOLOGY CATHETERS,Medicine & A&E,JOHNSON & JOHNSON MEDICAL LTD,0000589381,2700.00
Department of Health,East Sussex Healthcare NHS Trust,17/05/2011,CARDIOLOGY CATHETERS,Medicine & A&E,JOHNSON & JOHNSON MEDICAL LTD,0000589382,2700.00
Department of Health,East Sussex Healthcare NHS Trust,17/05/2011,INTERVENTIONAL DISPOSABLES,Medicine & A&E,JOHNSON & JOHNSON MEDICAL LTD,0000589383,822.00
Department of Health,East Sussex Healthcare NHS Trust,17/05/2011,CARDIOLOGY CATHETERS,Medicine & A&E,JOHNSON & JOHNSON MEDICAL LTD,0000589383,68.40
Department of Health,East Sussex Healthcare NHS Trust,17/05/2011,MAINT-AGFA GEVAERT,Clilcal Support Division,AGFA HEALTHCARE UK LTD,0000589437,1511.18
Department of Health,East Sussex Healthcare NHS Trust,17/05/2011,DIESEL,Facilities,CHEVRON LTD,0000589442,24395.70
Department of Health,East Sussex Healthcare NHS Trust,17/05/2011,SENSITIVITY DISKS,Clilcal Support Division,BIOMERIEUX UK LTD,0000589458,381.89
Department of Health,East Sussex Healthcare NHS Trust,17/05/2011,GENERAL CHEMICALS,Clilcal Support Division,BIOMERIEUX UK LTD,0000589458,130.37
Department of Health,East Sussex Healthcare NHS Trust,17/05/2011,VIDAS REAGENTS,Clilcal Support Division,BIOMERIEUX UK LTD,0000589458,542.96
Department of Health,East Sussex Healthcare NHS Trust,17/05/2011,M&S GENERAL SUPPLIES-OTHER,Facilities,UNISURGE INTERNATIONAL LTD,0000589460,508.86
Department of Health,East Sussex Healthcare NHS Trust,17/05/2011,PRE-STERILE COMMERCIAL PACKS,Facilities,UNISURGE INTERNATIONAL LTD,0000589460,2319.67
Department of Health,East Sussex Healthcare NHS Trust,17/05/2011,PRE-STERILE COMMERCIAL PACKS,Facilities,FULL SUPPORT,0000589495,2313.24
Department of Health,East Sussex Healthcare NHS Trust,17/05/2011,CONT.MAIN-MED & SURG EQUIP,Facilities,SINTON'S SURGICAL INSTRUMENTS,0000589506,763.00
Department of Health,East Sussex Healthcare NHS Trust,17/05/2011,BEDDING & LINEN - OTHER,Facilities,INTERWEAVE TEXTILES LTD,0000589511,9023.71
Department of Health,East Sussex Healthcare NHS Trust,17/05/2011,M&S GENERAL SUPPLIES-OTHER,Facilities,BSN MEDICAL LTD,0000589519,918.25
Department of Health,East Sussex Healthcare NHS Trust,17/05/2011,ENDOSCOPY CONSUMABLES,Clilcal Support Division,BOSTON SCIENTIFIC LTD,0000589527,132.00
Department of Health,East Sussex Healthcare NHS Trust,17/05/2011,INTERVENTIONAL DISPOSABLES,Clilcal Support Division,BOSTON SCIENTIFIC LTD,0000589527,432.00
Department of Health,East Sussex Healthcare NHS Trust,17/05/2011,INTERVASCULAR STENTS,Clilcal Support Division,COOK (UK) LTD,0000589529,600.00
Department of Health,East Sussex Healthcare NHS Trust,17/05/2011,GENERAL LAB. CONSUMABLES,Clilcal Support Division,INSTRUMENTATION LABORATORIES UK LTD,0000589530,820.34
Department of Health,East Sussex Healthcare NHS Trust,17/05/2011,BEDDING & LINEN - BED LINEN,Facilities,PARK HOUSE HEALTHCARE LTD,0000589532,690.00
Department of Health,East Sussex Healthcare NHS Trust,17/05/2011,INTERVENTIONAL DISPOSABLES,Medicine & A&E,MERIT MEDICAL SYSTEMS,0000589538,612.00
Department of Health,East Sussex Healthcare NHS Trust,17/05/2011,GENERAL LAB. CONSUMABLES,Clilcal Support Division,BD UK LTD,0000589541,270.00
Department of Health,East Sussex Healthcare NHS Trust,17/05/2011,LAB.REAGENTS-MISCELLANEOUS,Clilcal Support Division,BD UK LTD,0000589541,8191.06
Department of Health,East Sussex Healthcare NHS Trust,17/05/2011,LAB-CONTAINERS/BOTTLES & CAPS,Clilcal Support Division,BD UK LTD,0000589541,2403.66
Department of Health,East Sussex Healthcare NHS Trust,17/05/2011,LABORATORY MEDIA,Clilcal Support Division,BD UK LTD,0000589541,288.00
Department of Health,East Sussex Healthcare NHS Trust,17/05/2011,CONT.MAIN-MED & SURG EQUIP,Facilities,KARL STORZ  ENDOSCOPY (UK) LTD,0000589542,2019.00
Department of Health,East Sussex Healthcare NHS Trust,17/05/2011,PRE-STERILE COMMERCIAL PACKS,Facilities,FRONTIER MULTIGATE,0000589550,992.29
Department of Health,East Sussex Healthcare NHS Trust,17/05/2011,PRE-STERILE COMMERCIAL PACKS,Facilities,PELICAN HEALTHCARE LTD,0000589571,1212.72
Department of Health,East Sussex Healthcare NHS Trust,17/05/2011,PRE-STERILE COMMERCIAL PACKS,Facilities,PELICAN HEALTHCARE LTD,0000589572,708.40
Department of Health,East Sussex Healthcare NHS Trust,17/05/2011,SENSITIVITY DISKS,Clilcal Support Division,OXOID LIMITED,0000589575,262.01
Department of Health,East Sussex Healthcare NHS Trust,17/05/2011,GENERAL LAB. CONSUMABLES,Clilcal Support Division,OXOID LIMITED,0000589575,68.40
Department of Health,East Sussex Healthcare NHS Trust,17/05/2011,GENERAL CHEMICALS,Clilcal Support Division,OXOID LIMITED,0000589575,210.00
Department of Health,East Sussex Healthcare NHS Trust,17/05/2011,M&S GENERAL SUPPLIES-OTHER,Clilcal Support Division,PURICORE INTERNATIONAL LTD,0000589581,552.00
Department of Health,East Sussex Healthcare NHS Trust,17/05/2011,ENGINEERING MATERIALS,Facilities,EASTNOR LTD,0000589601,958.36
Department of Health,East Sussex Healthcare NHS Trust,17/05/2011,TELEPHONES-WIRING & EQUIPMENT,Facilities,ROCOM,0000589611,562.50
Department of Health,East Sussex Healthcare NHS Trust,17/05/2011,COMPUTER HARDWARE,Facilities,HEWLETT-PACKARD LTD,0000589613,711.06
Department of Health,East Sussex Healthcare NHS Trust,17/05/2011,COMPUTER HARDWARE,Facilities,HEWLETT-PACKARD LTD,0000589614,698.35
Department of Health,East Sussex Healthcare NHS Trust,17/05/2011,COMPUTER HARDWARE,Clilcal Support Division,HEWLETT-PACKARD LTD,0000589616,540.00
Department of Health,East Sussex Healthcare NHS Trust,17/05/2011,CONT.MAIN-MED & SURG EQUIP,Facilities,SMITH & NEPHEW ENDOSCOPY,0000589617,1046.40
Department of Health,East Sussex Healthcare NHS Trust,17/05/2011,GENERAL LAB. CONSUMABLES,Clilcal Support Division,PRO-LAB DIAGNOSTICS,0000589620,225.18
Department of Health,East Sussex Healthcare NHS Trust,17/05/2011,LABORATORY CHEMICALS,Clilcal Support Division,PRO-LAB DIAGNOSTICS,0000589620,244.20
Department of Health,East Sussex Healthcare NHS Trust,17/05/2011,GENERAL CHEMICALS,Clilcal Support Division,PRO-LAB DIAGNOSTICS,0000589620,115.14
Department of Health,East Sussex Healthcare NHS Trust,17/05/2011,INTERVENTIONAL DISPOSABLES,Medicine & A&E,APC CARDIOVASCULAR LTD,0000589622,1503.00
Department of Health,East Sussex Healthcare NHS Trust,17/05/2011,GENERAL LAB. CONSUMABLES,Clilcal Support Division,G & N LABORATORY LTD,0000589624,132.00
Department of Health,East Sussex Healthcare NHS Trust,17/05/2011,LAB-CONTAINERS/BOTTLES & CAPS,Clilcal Support Division,G & N LABORATORY LTD,0000589624,2823.74
Department of Health,East Sussex Healthcare NHS Trust,17/05/2011,FURNITURE & FITTINGS,Clilcal Support Division,G & N LABORATORY LTD,0000589624,156.60
Department of Health,East Sussex Healthcare NHS Trust,17/05/2011,CARDIOLOGY CATHETERS,Medicine & A&E,MEDTRONIC LTD,0000589631,3600.00
Department of Health,East Sussex Healthcare NHS Trust,17/05/2011,IMPLANTABLE DEFIBRILLATOR,Medicine & A&E,MEDTRONIC LTD,0000589633,20400.00
Department of Health,East Sussex Healthcare NHS Trust,17/05/2011,IMPLANTABLE DEFIBRILLATOR,Medicine & A&E,MEDTRONIC LTD,0000589634,20400.00
Department of Health,East Sussex Healthcare NHS Trust,17/05/2011,PATS.APPL.-DENTAL,Anaesthetics & Surgery,SOUTHERN ORTHO SERVICE,0000589758,1952.00
Department of Health,East Sussex Healthcare NHS Trust,17/05/2011,CONT.MAIN-MED & SURG EQUIP,Facilities,OLYMPUS KEYMED,0000589891,1790.41
Department of Health,East Sussex Healthcare NHS Trust,17/05/2011,STAFF UNIFORMS,Facilities, BLUEPRINT LEISURE LTD,0000590327,744.10
Department of Health,East Sussex Healthcare NHS Trust,17/05/2011,CONTRACT ENGINEERING MAINT,Facilities,GTA CIVILS LTD,0000617010,750.00
Department of Health,East Sussex Healthcare NHS Trust,17/05/2011,EME MATERIALS-INC.GENERATION,Facilities,GE MEDICAL SYSTEMS INFORMATION TECHNOL,0000617011,589.20
Department of Health,East Sussex Healthcare NHS Trust,17/05/2011,CONT.MAIN-MED & SURG EQUIP,Anaesthetics & Surgery,GE MEDICAL SYSTEMS INFORMATION TECHNOL,0000617012,1120.72
Department of Health,East Sussex Healthcare NHS Trust,17/05/2011,M & S EQUIP REPAIR MATERIALS,Anaesthetics & Surgery,GE MEDICAL SYSTEMS INFORMATION TECHNOL,0000617012,594.23
Department of Health,East Sussex Healthcare NHS Trust,17/05/2011,EME MATERIALS-INC.GENERATION,Facilities,GE MEDICAL SYSTEMS INFORMATION TECHNOL,0000617012,117.75
Department of Health,East Sussex Healthcare NHS Trust,17/05/2011,CAPITAL EXPENDITURE,Capital,PTS PLUMBING TRADE SUPPLIES,0000617075,679.78
Department of Health,East Sussex Healthcare NHS Trust,17/05/2011,CAPITAL EXPENDITURE,Capital,PTS PLUMBING TRADE SUPPLIES,0000617076,679.78
Department of Health,East Sussex Healthcare NHS Trust,17/05/2011,CAPITAL EXPENDITURE,Capital,PTS PLUMBING TRADE SUPPLIES,0000617077,679.78
Department of Health,East Sussex Healthcare NHS Trust,17/05/2011,CAPITAL EXPENDITURE,Capital,PTS PLUMBING TRADE SUPPLIES,0000617078,1238.16
Department of Health,East Sussex Healthcare NHS Trust,17/05/2011,CAPITAL EXPENDITURE,Capital,PTS PLUMBING TRADE SUPPLIES,0000617079,619.08
Department of Health,East Sussex Healthcare NHS Trust,17/05/2011,M&S EQUIPMENT - OTHER,Anaesthetics & Surgery,PURICORE ENDOSCOPY,0000617082,3000.00
Department of Health,East Sussex Healthcare NHS Trust,17/05/2011,CONT.MAIN-MED & SURG EQUIP,Anaesthetics & Surgery,PURICORE ENDOSCOPY,0000617082,1205.00
Department of Health,East Sussex Healthcare NHS Trust,17/05/2011,ENGINEERING MATERIALS,Facilities,BSS (LEWES),0000617104,1171.80
Department of Health,East Sussex Healthcare NHS Trust,17/05/2011,CAPITAL EXPENDITURE,Capital,RUPERT BELLAMY LTD,0000617113,730.00
Department of Health,East Sussex Healthcare NHS Trust,17/05/2011,M & S EQUIP REPAIR MATERIALS,Anaesthetics & Surgery,GE MEDICAL SYSTEMS INFORMATION TECHNOL,0000617117,498.38
Department of Health,East Sussex Healthcare NHS Trust,17/05/2011,EME MATERIALS-INC.GENERATION,Facilities,GE MEDICAL SYSTEMS INFORMATION TECHNOL,0000617215,911.29
Department of Health,East Sussex Healthcare NHS Trust,17/05/2011,PATS APPL - FOOTWARE,Clilcal Support Division,KENWARD ORTHOPAEDICS LTD,0000749153,585.72
Department of Health,East Sussex Healthcare NHS Trust,17/05/2011,PATS APPL - FOOTWARE,Clilcal Support Division,KENWARD ORTHOPAEDICS LTD,0000749154,577.53
Department of Health,East Sussex Healthcare NHS Trust,17/05/2011,PROSTHESES-KNEES,Anaesthetics & Surgery,BIOMET EUROPE,0000880754,1908.00
Department of Health,East Sussex Healthcare NHS Trust,17/05/2011,PROSTHESIS - SHOULDERS,Anaesthetics & Surgery,BIOMET EUROPE,0000880754,1380.00
Department of Health,East Sussex Healthcare NHS Trust,17/05/2011,PROSTHESES-OTHER,Anaesthetics & Surgery,BIOMET EUROPE,0000880754,650.40
Department of Health,East Sussex Healthcare NHS Trust,17/05/2011,NATIONAL JOINT REGISTRY LEVY,Anaesthetics & Surgery,BIOMET EUROPE,0000880754,20.00
Department of Health,East Sussex Healthcare NHS Trust,17/05/2011,M&S GENERAL SUPPLIES-OTHER,Anaesthetics & Surgery,JOHNSON & JOHNSON MEDICAL LTD,0000880761,759.41
Department of Health,East Sussex Healthcare NHS Trust,17/05/2011,SURGICAL INSTRUMENTS,Anaesthetics & Surgery,JOHNSON & JOHNSON MEDICAL LTD,0000880761,1220.98
Department of Health,East Sussex Healthcare NHS Trust,17/05/2011,LASER/LAPARASCOPIC EQUIPMENT,Anaesthetics & Surgery,JOHNSON & JOHNSON MEDICAL LTD,0000880762,195.78
Department of Health,East Sussex Healthcare NHS Trust,17/05/2011,M&S GENERAL SUPPLIES-OTHER,Anaesthetics & Surgery,JOHNSON & JOHNSON MEDICAL LTD,0000880762,1174.68
Department of Health,East Sussex Healthcare NHS Trust,17/05/2011,STAPLING DEVICES,Anaesthetics & Surgery,JOHNSON & JOHNSON MEDICAL LTD,0000880764,2030.19
Department of Health,East Sussex Healthcare NHS Trust,17/05/2011,M&S GENERAL SUPPLIES-OTHER,Anaesthetics & Surgery,ARIZANT UK,0000880767,772.80
Department of Health,East Sussex Healthcare NHS Trust,17/05/2011,M&S GENERAL SUPPLIES-OTHER,Womens & Childrens,CME MEDICAL UK LIMITED,0000880770,623.94
Department of Health,East Sussex Healthcare NHS Trust,17/05/2011,SURGICAL INSTRUMENTS,Anaesthetics & Surgery,LINA MEDICAL UK LTD,0000880776,121.44
Department of Health,East Sussex Healthcare NHS Trust,17/05/2011,VAGINAL/HYSTERECT REPAIR INSTR,Anaesthetics & Surgery,LINA MEDICAL UK LTD,0000880776,540.00
Department of Health,East Sussex Healthcare NHS Trust,17/05/2011,M&S GENERAL SUPPLIES-OTHER,Anaesthetics & Surgery,SMITH & NEPHEW ENDOSCOPY,0000880778,760.68
Department of Health,East Sussex Healthcare NHS Trust,17/05/2011,"PATS APPL - NECK, ARM, HAND",Anaesthetics & Surgery,DACEY LIMITED (ORTHOTIX),0000880781,182.88
Department of Health,East Sussex Healthcare NHS Trust,17/05/2011,PATS APPL - LEG SUPPORTS,Anaesthetics & Surgery,DACEY LIMITED (ORTHOTIX),0000880781,377.28
Department of Health,East Sussex Healthcare NHS Trust,17/05/2011,M&S GENERAL SUPPLIES-OTHER,Anaesthetics & Surgery,ALCON LABORATORIES (UK) LTD,0000880782,3415.20
Department of Health,East Sussex Healthcare NHS Trust,17/05/2011,PRE-STERILE COMMERCIAL PACKS,Anaesthetics & Surgery,ALCON LABORATORIES (UK) LTD,0000880782,1497.60
Department of Health,East Sussex Healthcare NHS Trust,17/05/2011,PROSTHESIS - LENS,Anaesthetics & Surgery,ALCON LABORATORIES (UK) LTD,0000880783,595.20
Department of Health,East Sussex Healthcare NHS Trust,17/05/2011,STAPLING DEVICES,Anaesthetics & Surgery,JOHNSON & JOHNSON MEDICAL LTD,0000880784,676.73
Department of Health,East Sussex Healthcare NHS Trust,17/05/2011,M&S GENERAL SUPPLIES-OTHER,Womens & Childrens,JOHNSON & JOHNSON MEDICAL LTD,0000880792,1320.00
Department of Health,East Sussex Healthcare NHS Trust,17/05/2011,INCONTINENCE M&S,Anaesthetics & Surgery,JOHNSON & JOHNSON MEDICAL LTD,0000880793,2376.00
Department of Health,East Sussex Healthcare NHS Trust,17/05/2011,M&S GENERAL SUPPLIES-OTHER,Anaesthetics & Surgery,JOHNSON & JOHNSON MEDICAL LTD,0000880793,391.56
Department of Health,East Sussex Healthcare NHS Trust,17/05/2011,SURGICAL INSTRUMENTS,Anaesthetics & Surgery,JOHNSON & JOHNSON MEDICAL LTD,0000880793,1211.27
Department of Health,East Sussex Healthcare NHS Trust,17/05/2011,STAPLING DEVICES,Anaesthetics & Surgery,JOHNSON & JOHNSON MEDICAL LTD,0000880797,676.73
Department of Health,East Sussex Healthcare NHS Trust,17/05/2011,PROSTHESES-HIP,Anaesthetics & Surgery,JOINT REPLACEMENT INSTRUMENTATION  LTD,0000880801,909.60
Department of Health,East Sussex Healthcare NHS Trust,17/05/2011,CARDIOLOGY CATHETERS,Anaesthetics & Surgery,BARD LTD,0000880816,570.13
Department of Health,East Sussex Healthcare NHS Trust,17/05/2011,PROSTHESIS - LENS,Anaesthetics & Surgery,ALCON LABORATORIES (UK) LTD,0000880833,595.20
Department of Health,East Sussex Healthcare NHS Trust,17/05/2011,PROSTHESES-OTHER,Anaesthetics & Surgery,ARTHROCARE UK LIMITED,0000880834,710.12
Department of Health,East Sussex Healthcare NHS Trust,17/05/2011,M&S GENERAL SUPPLIES-OTHER,Anaesthetics & Surgery,HAMILTON MEDICAL UK,0000880835,768.00
Department of Health,East Sussex Healthcare NHS Trust,17/05/2011,SUTURES,Anaesthetics & Surgery,ARTHROCARE UK LIMITED,0000880840,504.00
Department of Health,East Sussex Healthcare NHS Trust,17/05/2011,M&S GENERAL SUPPLIES-OTHER,Anaesthetics & Surgery,ARTHROCARE UK LIMITED,0000880840,90.00
Department of Health,East Sussex Healthcare NHS Trust,17/05/2011,PROSTHESES-OTHER,Anaesthetics & Surgery,ARTHROCARE UK LIMITED,0000880840,6.88
Department of Health,East Sussex Healthcare NHS Trust,17/05/2011,M&S GENERAL SUPPLIES-OTHER,Anaesthetics & Surgery,HAEMONETICS LTD,0000880843,653.95
Department of Health,East Sussex Healthcare NHS Trust,17/05/2011,PROSTHESES-KNEES,Anaesthetics & Surgery,BIOMET EUROPE,0000880847,1320.00
Department of Health,East Sussex Healthcare NHS Trust,17/05/2011,NATIONAL JOINT REGISTRY LEVY,Anaesthetics & Surgery,BIOMET EUROPE,0000880847,20.00
Department of Health,East Sussex Healthcare NHS Trust,17/05/2011,UTETEROSCOPY CONSUMABLES,Anaesthetics & Surgery,BOSTON SCIENTIFIC LTD,0000880864,1800.00
Department of Health,East Sussex Healthcare NHS Trust,17/05/2011,M&S GENERAL SUPPLIES-OTHER,Anaesthetics & Surgery,BOSTON SCIENTIFIC LTD,0000880864,1416.00
Department of Health,East Sussex Healthcare NHS Trust,17/05/2011,INTERVENTIONAL DISPOSABLES,Anaesthetics & Surgery,BOSTON SCIENTIFIC LTD,0000880864,516.00
Department of Health,East Sussex Healthcare NHS Trust,17/05/2011,INTERVASCULAR STENTS,Anaesthetics & Surgery,BOSTON SCIENTIFIC LTD,0000880864,87.96
Department of Health,East Sussex Healthcare NHS Trust,17/05/2011,RENAL STENTS,Anaesthetics & Surgery,BOSTON SCIENTIFIC LTD,0000880864,390.00
Department of Health,East Sussex Healthcare NHS Trust,17/05/2011,PRE-STERILE COMMERCIAL PACKS,Anaesthetics & Surgery,MOLNLYCKE HEALTHCARE,0000880869,139.50
Department of Health,East Sussex Healthcare NHS Trust,17/05/2011,DISPOSABLE DRAPES,Anaesthetics & Surgery,MOLNLYCKE HEALTHCARE,0000880869,393.41
Department of Health,East Sussex Healthcare NHS Trust,17/05/2011,LASER/LAPARASCOPIC EQUIPMENT,Anaesthetics & Surgery,PROMED LTD,0000880873,636.00
Department of Health,East Sussex Healthcare NHS Trust,17/05/2011,SURGICAL INSTRUMENTS,Anaesthetics & Surgery,SMITH & NEPHEW ENDOSCOPY,0000880876,595.94
Department of Health,East Sussex Healthcare NHS Trust,17/05/2011,PROSTHESES-HIP,Anaesthetics & Surgery,BIOMET EUROPE,0000880879,2162.26
Department of Health,East Sussex Healthcare NHS Trust,17/05/2011,PROSTHESES-KNEES,Anaesthetics & Surgery,BIOMET EUROPE,0000880879,1680.00
Department of Health,East Sussex Healthcare NHS Trust,17/05/2011,PROSTHESES-OTHER,Anaesthetics & Surgery,BIOMET EUROPE,0000880879,2475.60
Department of Health,East Sussex Healthcare NHS Trust,17/05/2011,NATIONAL JOINT REGISTRY LEVY,Anaesthetics & Surgery,BIOMET EUROPE,0000880879,40.00
Department of Health,East Sussex Healthcare NHS Trust,17/05/2011,SURGICAL INSTRUMENTS,Anaesthetics & Surgery,TIMESCO OF LONDON LTD,0000881006,558.00
Department of Health,East Sussex Healthcare NHS Trust,17/05/2011,PROSTHESES-HIP,Anaesthetics & Surgery,JOINT REPLACEMENT INSTRUMENTATION  LTD,0000881207,-680.58
Department of Health,East Sussex Healthcare NHS Trust,17/05/2011,TURIS UROLOGY M&S,Anaesthetics & Surgery,OLYMPUS KEYMED,0000881263,1497.50
Department of Health,East Sussex Healthcare NHS Trust,17/05/2011,TURIS UROLOGY M&S,Anaesthetics & Surgery,OLYMPUS KEYMED,0000881264,2995.00
Department of Health,East Sussex Healthcare NHS Trust,17/05/2011,TURIS UROLOGY M&S,Anaesthetics & Surgery,OLYMPUS KEYMED,0000881286,1497.50
Department of Health,East Sussex Healthcare NHS Trust,17/05/2011,PROVISIONS,Facilities,BRAKE BROS (FROZEN FOODS) LTD,0000912924,695.35
Department of Health,East Sussex Healthcare NHS Trust,17/05/2011,PROVISIONS,Facilities,BRAKE BROS (FROZEN FOODS) LTD,0000912926,584.38
Department of Health,East Sussex Healthcare NHS Trust,17/05/2011,PROVISIONS,Facilities,BRAKE BROS (FROZEN FOODS) LTD,0000912927,537.69
Department of Health,East Sussex Healthcare NHS Trust,17/05/2011,STOCK-ASCRIBE CONQUEST,Pharmacy Stock,ADVANCED MEDICAL SOLUTION (PLYMOUTH) LTD,0001177403,917.10
Department of Health,East Sussex Healthcare NHS Trust,17/05/2011,STOCK-ASCRIBE CONQUEST,Pharmacy Stock,FRESENIUS LTD,0001177406,577.80
Department of Health,East Sussex Healthcare NHS Trust,17/05/2011,STOCK-ASCRIBE CONQUEST,Pharmacy Stock,NOVARTIS PHARMACEUTICALS UK LTD,0001177441,1836.00
Department of Health,East Sussex Healthcare NHS Trust,17/05/2011,STOCK-ASCRIBE CONQUEST,Pharmacy Stock,IDIS LTD,0001177443,1664.64
Department of Health,East Sussex Healthcare NHS Trust,17/05/2011,STOCK-ASCRIBE CONQUEST,Pharmacy Stock,HEALTHCARE PRODUCT SERVICES LIMITED,0001177446,20966.40
Department of Health,East Sussex Healthcare NHS Trust,17/05/2011,STOCK-ASCRIBE CONQUEST,Pharmacy Stock,HEALTHCARE PRODUCT SERVICES LIMITED,0001177447,4043.76
Department of Health,East Sussex Healthcare NHS Trust,17/05/2011,STOCK-ASCRIBE CONQUEST,Pharmacy Stock,NOVARTIS PHARMACEUTICALS UK LTD,0001177450,44652.12
Department of Health,East Sussex Healthcare NHS Trust,17/05/2011,STOCK-ASCRIBE CONQUEST,Pharmacy Stock,BAXTER HEALTHCARE (BERKSHIRE)LTD,0001177453,4513.03
Department of Health,East Sussex Healthcare NHS Trust,17/05/2011,STOCK-ASCRIBE CONQUEST,Pharmacy Stock,BAXTER HEALTHCARE (BERKSHIRE)LTD,0001177454,750.00
Department of Health,East Sussex Healthcare NHS Trust,17/05/2011,STOCK-ASCRIBE CONQUEST,Pharmacy Stock,ABBOTT LABORATORIES LTD,0001177457,2535.41
Department of Health,East Sussex Healthcare NHS Trust,17/05/2011,STOCK-ASCRIBE CONQUEST,Pharmacy Stock,ROSEMONT PHARMACEUTICALS LTD,0001177462,625.20
Department of Health,East Sussex Healthcare NHS Trust,17/05/2011,STOCK-ASCRIBE CONQUEST,Pharmacy Stock,ROCHE PRODUCTS LTD,0001177463,17462.10
Department of Health,East Sussex Healthcare NHS Trust,17/05/2011,STOCK-ASCRIBE CONQUEST,Pharmacy Stock,ROCHE PRODUCTS LTD,0001177464,1843.20
Department of Health,East Sussex Healthcare NHS Trust,17/05/2011,STOCK-ASCRIBE CONQUEST,Pharmacy Stock,HOSPIRA ASEPTIC SERVICES LIMITED,0001177468,884.40
Department of Health,East Sussex Healthcare NHS Trust,17/05/2011,STOCK-ASCRIBE CONQUEST,Pharmacy Stock,UNIDRUG DISTRIBUTION GROUP LTD,0001177469,1324.98
Department of Health,East Sussex Healthcare NHS Trust,17/05/2011,STOCK-ASCRIBE CONQUEST,Pharmacy Stock,ABBOTT LABORATORIES LTD,0001177471,1690.27
Department of Health,East Sussex Healthcare NHS Trust,17/05/2011,STOCK-ASCRIBE CONQUEST,Pharmacy Stock,BAXTER HEALTHCARE (BERKSHIRE)LTD,0001177473,1000.00
Department of Health,East Sussex Healthcare NHS Trust,17/05/2011,STOCK-ASCRIBE CONQUEST,Pharmacy Stock,BAXTER HEALTHCARE (BERKSHIRE)LTD,0001177474,890.55
Department of Health,East Sussex Healthcare NHS Trust,17/05/2011,STOCK-ASCRIBE CONQUEST,Pharmacy Stock,CENTRAL HOMECARE LTD,0001177565,715.00
Department of Health,East Sussex Healthcare NHS Trust,17/05/2011,STOCK-ASCRIBE CONQUEST,Pharmacy Stock,CENTRAL HOMECARE LTD,0001177566,704.28
Department of Health,East Sussex Healthcare NHS Trust,17/05/2011,STOCK-ASCRIBE CONQUEST,Pharmacy Stock,CENTRAL HOMECARE LTD,0001177567,704.28
Department of Health,East Sussex Healthcare NHS Trust,17/05/2011,STOCK-ASCRIBE CONQUEST,Pharmacy Stock,CENTRAL HOMECARE LTD,0001177568,1408.56
Department of Health,East Sussex Healthcare NHS Trust,17/05/2011,STOCK-ASCRIBE CONQUEST,Pharmacy Stock,CENTRAL HOMECARE LTD,0001177570,715.00
Department of Health,East Sussex Healthcare NHS Trust,17/05/2011,STOCK-ASCRIBE CONQUEST,Pharmacy Stock,CENTRAL HOMECARE LTD,0001177571,715.00
Department of Health,East Sussex Healthcare NHS Trust,17/05/2011,STOCK-ASCRIBE CONQUEST,Pharmacy Stock,CENTRAL HOMECARE LTD,0001177572,704.28
Department of Health,East Sussex Healthcare NHS Trust,17/05/2011,STOCK-ASCRIBE CONQUEST,Pharmacy Stock,HEALTHCARE PRODUCT SERVICES LIMITED,0001177590,18144.00
Department of Health,East Sussex Healthcare NHS Trust,17/05/2011,STOCK-ASCRIBE CONQUEST,Pharmacy Stock,ALCON LABORATORIES (UK) LTD,0001177592,731.82
Department of Health,East Sussex Healthcare NHS Trust,17/05/2011,STOCK-ASCRIBE CONQUEST,Pharmacy Stock,GENZYME THERAPEUTICS,0001177593,950.81
Department of Health,East Sussex Healthcare NHS Trust,17/05/2011,STOCK-ASCRIBE CONQUEST,Pharmacy Stock,ELI LILLY & CO LTD,0001177598,5312.16
Department of Health,East Sussex Healthcare NHS Trust,17/05/2011,STOCK-ASCRIBE CONQUEST,Pharmacy Stock,NOVARTIS PHARMACEUTICALS UK LTD,0001177607,1588.37
Department of Health,East Sussex Healthcare NHS Trust,17/05/2011,STOCK-ASCRIBE CONQUEST,Pharmacy Stock,BAXTER HEALTHCARE (BERKSHIRE)LTD,0001177616,650.00
Department of Health,East Sussex Healthcare NHS Trust,17/05/2011,STOCK-ASCRIBE CONQUEST,Pharmacy Stock,HAMELN PHARMACEUTICALS LTD,0001177741,522.60
Department of Health,East Sussex Healthcare NHS Trust,17/05/2011,STOCK-ASCRIBE CONQUEST,Pharmacy Stock,NOVARTIS PHARMACEUTICALS UK LTD,0001177742,1689.90
Department of Health,East Sussex Healthcare NHS Trust,17/05/2011,STOCK-ASCRIBE CONQUEST,Pharmacy Stock,ABBOTT LABORATORIES LTD,0001177754,4690.08
Department of Health,East Sussex Healthcare NHS Trust,17/05/2011,STOCK-ASCRIBE CONQUEST,Pharmacy Stock,WAYMADE HEALTHCARE PLC,0001177782,727.94
Department of Health,East Sussex Healthcare NHS Trust,17/05/2011,STOCK-ASCRIBE CONQUEST,Pharmacy Stock,UNIDRUG DISTRIBUTION GROUP LTD,0001177785,1367.40
Department of Health,East Sussex Healthcare NHS Trust,17/05/2011,STOCK-ASCRIBE CONQUEST,Pharmacy Stock,UNIDRUG DISTRIBUTION GROUP LTD,0001177786,720.00
Department of Health,East Sussex Healthcare NHS Trust,17/05/2011,STOCK-ASCRIBE CONQUEST,Pharmacy Stock,UNIDRUG DISTRIBUTION GROUP LTD,0001177901,1042.08
Department of Health,East Sussex Healthcare NHS Trust,17/05/2011,STOCK-ASCRIBE CONQUEST,Pharmacy Stock,UNIDRUG DISTRIBUTION GROUP LTD,0001178148,1489.32
Department of Health,East Sussex Healthcare NHS Trust,17/05/2011,STOCK-ASCRIBE CONQUEST,Pharmacy Stock,AAH PHARMACEUTICALS LTD,0001178188,982.80
Department of Health,East Sussex Healthcare NHS Trust,17/05/2011,STOCK-ASCRIBE CONQUEST,Pharmacy Stock,AAH PHARMACEUTICALS LTD,0001178189,592.02
Department of Health,East Sussex Healthcare NHS Trust,17/05/2011,STOCK-ASCRIBE CONQUEST,Pharmacy Stock,AAH PHARMACEUTICALS LTD,0001178193,533.34
Department of Health,East Sussex Healthcare NHS Trust,17/05/2011,STOCK-ASCRIBE CONQUEST,Pharmacy Stock,AAH PHARMACEUTICALS LTD,0001178196,898.77
Department of Health,East Sussex Healthcare NHS Trust,17/05/2011,STOCK-ASCRIBE CONQUEST,Pharmacy Stock,AAH PHARMACEUTICALS LTD,0001178197,26801.28
Department of Health,East Sussex Healthcare NHS Trust,17/05/2011,STOCK-ASCRIBE CONQUEST,Pharmacy Stock,AAH PHARMACEUTICALS LTD,0001178202,1128.90
Department of Health,East Sussex Healthcare NHS Trust,17/05/2011,STOCK-ASCRIBE CONQUEST,Pharmacy Stock,AAH PHARMACEUTICALS LTD,0001178211,13400.64
Department of Health,East Sussex Healthcare NHS Trust,17/05/2011,STOCK-ASCRIBE CONQUEST,Pharmacy Stock,AAH PHARMACEUTICALS LTD,0001178212,801.25
Department of Health,East Sussex Healthcare NHS Trust,17/05/2011,STOCK-ASCRIBE CONQUEST,Pharmacy Stock,AAH PHARMACEUTICALS LTD,0001178213,898.20
Department of Health,East Sussex Healthcare NHS Trust,17/05/2011,STOCK-ASCRIBE CONQUEST,Pharmacy Stock,AAH PHARMACEUTICALS LTD,0001178246,591.29
Department of Health,East Sussex Healthcare NHS Trust,17/05/2011,STOCK-ASCRIBE CONQUEST,Pharmacy Stock,AAH PHARMACEUTICALS LTD,0001178247,1217.23
Department of Health,East Sussex Healthcare NHS Trust,17/05/2011,STOCK-ASCRIBE CONQUEST,Pharmacy Stock,AAH PHARMACEUTICALS LTD,0001178252,13400.64
Department of Health,East Sussex Healthcare NHS Trust,17/05/2011,STOCK-ASCRIBE CONQUEST,Pharmacy Stock,AAH PHARMACEUTICALS LTD,0001178254,1128.00
Department of Health,East Sussex Healthcare NHS Trust,17/05/2011,STOCK-ASCRIBE CONQUEST,Pharmacy Stock,AAH PHARMACEUTICALS LTD,0001178278,1033.88
Department of Health,East Sussex Healthcare NHS Trust,17/05/2011,STOCK-ASCRIBE CONQUEST,Pharmacy Stock,AAH PHARMACEUTICALS LTD,0001178311,610.42
Department of Health,East Sussex Healthcare NHS Trust,17/05/2011,STOCK-ASCRIBE CONQUEST,Pharmacy Stock,AAH PHARMACEUTICALS LTD,0001178312,614.40
Department of Health,East Sussex Healthcare NHS Trust,17/05/2011,STOCK-ASCRIBE CONQUEST,Pharmacy Stock,AAH PHARMACEUTICALS LTD,0001178321,1044.60
Department of Health,East Sussex Healthcare NHS Trust,17/05/2011,STOCK-ASCRIBE CONQUEST,Pharmacy Stock,AAH PHARMACEUTICALS LTD,0001178324,1945.49
Department of Health,East Sussex Healthcare NHS Trust,17/05/2011,STOCK-ASCRIBE CONQUEST,Pharmacy Stock,AAH PHARMACEUTICALS LTD,0001178325,612.02
